Trans No.,Service Area Categorisation,Service Division Catgeorisation,Responsible Unit,Unit Code,Expense Type,Expense Sub Type,Expense Code,Narrative,Amount,Invoice Date,Cap/Rev,Supplier Name
1,Central Services,SupS Chief Execs,Local Involvement Network,A01039,Third Party Payments          ,Private Contractors           ,EH10,Contract Payments                       ,752,31/10/2016,R,VOICEABILITY                  
2,Cultural Env Reg&Plan Services,Comm Safety (Crime Reduction),Crime and Strategy Team,A01100,Supplies & Services           ,Expenses                      ,DH50,Special Projects                        ,2115,21/11/2016,R,ASS FOR THE POLISH FAMILY PYZA
3,Cultural Env Reg&Plan Services,Comm Safety (Crime Reduction),Crime and Strategy Team,A01100,Supplies & Services           ,Expenses                      ,DH50,Special Projects                        ,3139,03/11/2016,R,INNER STRENGTH NETWORK CCC    
4,Cultural Env Reg&Plan Services,Comm Safety (Crime Reduction),CCTV,A01200,Supplies & Services           ,Equip Furniture/Materials     ,DA01,Equipment - R & M                       ,3554.12,09/11/2016,R,TYCO FIRE & INTEGR'TD SOL (UK 
5,Cultural Env Reg&Plan Services,Comm Safety (Crime Reduction),CCTV,A01200,Supplies & Services           ,Services                      ,DF57,Consulting Engineers Fees               ,2024.92,31/10/2016,R,GLOBAL MSC SECURITY LTD       
6,Central Services,SupS Chief Execs,NON-STATUTORY MARKETING & COMM,A02019,Supplies & Services           ,Equip Furniture/Materials     ,DA03,Hire of Equipment                       ,1005,17/11/2016,R,FIZZ AV                       
7,Central Services,SupS Chief Execs,NON-STATUTORY MARKETING & COMM,A02019,Supplies & Services           ,Prntng Stnry Gen Off Exp      ,DE11,Print Room Costs,725.01,01/11/2016,R,REDACTED
8,Central Services,SupS Chief Execs,NON-STATUTORY MARKETING & COMM,A02019,Supplies & Services           ,Prntng Stnry Gen Off Exp      ,DE11,Print Room Costs,963.9,10/11/2016,R,REDACTED
9,Central Services,SupS Chief Execs,NON-STATUTORY MARKETING & COMM,A02019,Supplies & Services           ,Services                      ,DF02,Misc Advertising/Publicity              ,533,21/10/2016,R,NEWSQUEST MEDIA GROUP LTD     
10,Central Services,SupS Chief Execs,Democratic Services,A02023,Supplies & Services           ,Equip Furniture/Materials     ,DA09,Equip-Purchases                         ,1945,15/11/2016,R,REDACTED
11,Central Services,SupS Chief Execs,Democratic Services,A02023,Supplies & Services           ,Clothing Unfrms Laundry       ,DC02,Clothing & Uniforms                     ,516.67,11/11/2016,R,A.E. HALFHIDE & CO. LTD       
12,Central Services,SupS Chief Execs,Democratic Services,A02023,Supplies & Services           ,Comms and Computing           ,DG09,Computer Purchases - Misc               ,9010,01/11/2016,R,MODERN MINDSET                
13,Central Services,SupS Chief Execs,Press and Public Relations.,A02026,Supplies & Services           ,Prntng Stnry Gen Off Exp      ,DE11,Print Room Costs,9146,11/11/2016,R,REDACTED
14,Central Services,SupS Chief Execs,Press and Public Relations.,A02026,Supplies & Services           ,Prntng Stnry Gen Off Exp      ,DE22,Marketing                               ,3968,16/09/2016,R,LONDON LETTERBOX MARKETING    
15,Central Services,SupS Chief Execs,Press and Public Relations.,A02026,Supplies & Services           ,Expenses                      ,DH21,Christma Lights               ,1488.87,31/10/2016,R,FM CONWAY LTD                 
16,Central Services,SupS Chief Execs,Sales and Marketing                     ,A02034,Supplies & Services           ,Prntng Stnry Gen Off Exp      ,DE11,Print Room Costs,1073,16/11/2016,R,REDACTED
17,CS -Oth Operating Inc & Expend,T/A Corporate Services,Prting Jobs - Internal,A03040,Supplies & Services           ,Prntng Stnry Gen Off Exp      ,DE05,Micro-filming                           ,895.75,26/10/2016,R,MISL LTD                      
18,CS -Oth Operating Inc & Expend,T/A Corporate Services,Prting Jobs - Internal,A03040,Supplies & Services           ,Prntng Stnry Gen Off Exp      ,DE05,Micro-filming                           ,965.5,02/11/2016,R,MISL LTD                      
19,CS -Oth Operating Inc & Expend,T/A Corporate Services,Prting Jobs - Internal,A03040,Supplies & Services           ,Prntng Stnry Gen Off Exp      ,DE05,Micro-filming                           ,1148.9,08/11/2016,R,MISL LTD                      
20,CS -Oth Operating Inc & Expend,T/A Corporate Services,Prting Jobs - Internal,A03040,Supplies & Services           ,Prntng Stnry Gen Off Exp      ,DE05,Micro-filming                           ,10145.76,02/11/2016,R,MISL LTD                      
21,CS -Oth Operating Inc & Expend,T/A Corporate Services,Prtng Jobs - Ext Agncy,A03041,Supplies & Services           ,Prntng Stnry Gen Off Exp      ,DE01,External Printing                       ,515,23/11/2016,R,IMAGE DATA GOUP               
22,CS -Oth Operating Inc & Expend,T/A Corporate Services,Prtng Jobs - Ext Agncy,A03041,Supplies & Services           ,Prntng Stnry Gen Off Exp      ,DE01,External Printing                       ,558,16/11/2016,R,LIMETREE OFFSET LTD           
23,CS -Oth Operating Inc & Expend,T/A Corporate Services,Prtng Jobs - Ext Agncy,A03041,Supplies & Services           ,Prntng Stnry Gen Off Exp      ,DE01,External Printing                       ,756,31/10/2016,R,CLIFFE ENTERPRISE LTD         
24,CS -Oth Operating Inc & Expend,T/A Corporate Services,Prtng Jobs - Ext Agncy,A03041,Supplies & Services           ,Prntng Stnry Gen Off Exp      ,DE01,External Printing                       ,757,15/11/2016,R,IMPRESS PRINT SERVICES LTD    
25,CS -Oth Operating Inc & Expend,T/A Corporate Services,Prtng Jobs - Ext Agncy,A03041,Supplies & Services           ,Prntng Stnry Gen Off Exp      ,DE01,External Printing                       ,1416,31/10/2016,R,CUSTOMISED GRAPHICS PRINT LTD 
26,CS -Oth Operating Inc & Expend,T/A Corporate Services,Prtng Jobs - Ext Agncy,A03041,Supplies & Services           ,Prntng Stnry Gen Off Exp      ,DE01,External Printing                       ,1416,17/11/2016,R,CUSTOMISED GRAPHICS PRINT LTD 
27,CS -Oth Operating Inc & Expend,T/A Corporate Services,Prtng Jobs - Ext Agncy,A03041,Supplies & Services           ,Prntng Stnry Gen Off Exp      ,DE01,External Printing                       ,7624.5,23/11/2016,R,CLIFFE ENTERPRISE LTD         
28,CS -Oth Operating Inc & Expend,T/A Corporate Services,PrintUnit-HighVolPhtcopying,A03042,Supplies & Services           ,Prntng Stnry Gen Off Exp      ,DE03,Stationery                    ,559.8,01/11/2016,R,ENCORE ENVELOPES LIMITED      
29,Central Services,SupS Comm and Member Services,COMMUNITY ENGAGAMENT,A04057,Supplies & Services           ,Services                      ,DF32,Customer Survey               ,5590,30/09/2016,R,EXPERIAN LTD                  
30,CS -Oth Operating Inc & Expend,T/A Corporate Services,Translation Services,A04060,Supplies & Services           ,Services                      ,DF45,Payment of Sessional Workers            ,585,31/10/2016,R,COSMIC EUROPE LIMTED          
31,CS -Oth Operating Inc & Expend,T/A Corporate Services,Translation Services,A04060,Supplies & Services           ,Services                      ,DF45,Payment of Sessional Workers            ,700,31/10/2016,R,COSMIC EUROPE LIMTED          
32,CS -Oth Operating Inc & Expend,T/A Corporate Services,Translation Services,A04060,Supplies & Services           ,Services                      ,DF45,Payment of Sessional Workers            ,965,31/12/2015,R,COSMIC EUROPE LIMTED          
33,Central Services,SupS Best Value,Merton Link,A04070,Supplies & Services           ,Grants and Subscriptions      ,DJ04,Subscriptions                           ,1380,28/10/2016,R,SOCITM LTD                    
34,Central Services,SupS Comm and Member Services,Local Strategic Partnership,A04080,Premises Related Expenditure  ,Rents                         ,BC03,Room/venue rental hire                  ,1492,11/10/2016,R,EVERYDAY CHURCH               
35,Central Services,SupS Comm and Member Services,Local Strategic Partnership,A04080,Supplies & Services           ,Catering                      ,DB50,Refreshments                            ,1905,14/11/2016,R,JASPERS CATERING SERVICES     
36,Central Services,Grants - Voluntary Groups,VOLUNTARY SECTOR COORDINATION,A04082,Supplies & Services           ,Grants and Subscriptions      ,DJ04,Subscriptions                           ,53629,28/09/2016,R,LONDON COUNCILS               
37,Central Services,SupS Comm and Member Services,COMMERICIAL SERVICES,A04085,Employees                     ,Direct Employee Expenses      ,AA17,Agency Staff & Casual Paymts            ,2292.75,26/10/2016,R,HAYS SPECIALIST RECRUITM'T LTD
38,Highways & Transport Services,On-street parking,Blue Badge Service,A04088,Supplies & Services           ,Services                      ,DF14,Doctors and Other Fees                  ,600,27/10/2016,R,LLOYDS TSB COMMERCIAL FINANCE 
39,Central Services,SupS Health & Safety,Learning and Development,B06146,Employees                     ,Indirect Employee Expenses    ,AB57,EXTERNAL TRAINING COSTS                 ,507.56,01/11/2016,R,KEL COMPUTING LTD             
40,Central Services,SupS Health & Safety,Learning and Development,B06146,Employees                     ,Indirect Employee Expenses    ,AB57,EXTERNAL TRAINING COSTS                 ,522,27/10/2016,R,RH ENVIRONMENTAL              
41,Central Services,SupS Health & Safety,Learning and Development,B06146,Employees                     ,Indirect Employee Expenses    ,AB57,EXTERNAL TRAINING COSTS                 ,550,22/10/2016,R,MSH TRAINING & CONSULTANCY LTD
42,Central Services,SupS Health & Safety,Learning and Development,B06146,Employees                     ,Indirect Employee Expenses    ,AB57,EXTERNAL TRAINING COSTS                 ,550,28/10/2016,R,MSH TRAINING & CONSULTANCY LTD
43,Central Services,SupS Health & Safety,Learning and Development,B06146,Employees                     ,Indirect Employee Expenses    ,AB57,EXTERNAL TRAINING COSTS                 ,550,15/11/2016,R,MSH TRAINING & CONSULTANCY LTD
44,Central Services,SupS Health & Safety,Learning and Development,B06146,Employees                     ,Indirect Employee Expenses    ,AB57,EXTERNAL TRAINING COSTS                 ,675,21/11/2016,R,PEARLCATCHERS LIMITED         
45,Central Services,SupS Health & Safety,Learning and Development,B06146,Employees                     ,Indirect Employee Expenses    ,AB57,EXTERNAL TRAINING COSTS                 ,675,21/11/2016,R,PEARLCATCHERS LIMITED         
46,Central Services,SupS Health & Safety,Learning and Development,B06146,Employees                     ,Indirect Employee Expenses    ,AB57,EXTERNAL TRAINING COSTS                 ,830,25/10/2016,R,MAYBO LTD                     
47,Central Services,SupS Health & Safety,Learning and Development,B06146,Employees                     ,Indirect Employee Expenses    ,AB57,EXTERNAL TRAINING COSTS                 ,1050,10/10/2016,R,ENDEAVOUR UK                  
48,Central Services,SupS Health & Safety,Learning and Development,B06146,Employees                     ,Indirect Employee Expenses    ,AB57,EXTERNAL TRAINING COSTS                 ,1132.5,19/10/2016,R,UNIVERSITY OF DERBY           
49,Central Services,SupS Health & Safety,Learning and Development,B06146,Employees                     ,Indirect Employee Expenses    ,AB57,EXTERNAL TRAINING COSTS                 ,1300,05/09/2016,R,DOT SIGN LANGUAGE             
50,Central Services,SupS Health & Safety,Learning and Development,B06146,Employees                     ,Indirect Employee Expenses    ,AB57,EXTERNAL TRAINING COSTS                 ,1420,17/11/2016,R,TREND CONTROL SYSTEMS LIMITED 
51,Central Services,SupS Health & Safety,Learning and Development,B06146,Employees                     ,Indirect Employee Expenses    ,AB57,EXTERNAL TRAINING COSTS                 ,1789.58,09/09/2016,R,NOVUM (TRADING METIER-MCD LTD)
52,Central Services,SupS Health & Safety,Learning and Development,B06146,Employees                     ,Indirect Employee Expenses    ,AB57,EXTERNAL TRAINING COSTS                 ,4600,07/11/2016,R,LOCAL GOVERNMENT ASSOCIATION  
53,Human Resources,Human Resources,INTRIM HEAD OF HR & SHARED SERV' TRANSAC,B06151,Third Party Payments          ,Private Contractors           ,EH01,Miscellaneous Agency Services           ,235044.85,26/10/2016,R,LONDON BOROUGH OF SUTTON      
54,0,0,Acquisitions Budget                     ,CA003MA,Acquisition of Land and Existing Buildings,,A4,Other Acquisition Costs                 ,161122,29/11/2016,C,HM REVENUE AND CUSTOMS        
55,0,0,Library Self Service                    ,CC011AB,New Construction Conversion and Renovation,,B4,Contractor - Site works                 ,965,24/11/2016,C,SUNA COMMUNICATION            
56,0,0,CCTV (match funding)                    ,CE002EA,New Construction Conversion and Renovation,,B4,Contractor - Site works                 ,2200,03/08/2016,C,BILFINGER EUROPA FACILITY     
57,0,0,CCTV (match funding)                    ,CE002EA,Vehicles Plant Equipment and Machinery,,D5 ,Software                                ,909,03/11/2016,C,REVEAL MEDIA LTD              
58,0,0,CCTV (match funding)                    ,CE002EA,Vehicles Plant Equipment and Machinery,,D5 ,Software                                ,9214.78,03/11/2016,C,REVEAL MEDIA LTD              
59,0,0,Disabled Facilities Grant DCLG          ,CE004RA,Other Capital Expenditure,,E1,Grants                                  ,559.08,23/11/2016,C,REDACTED
60,0,0,Disabled Facilities Grant DCLG          ,CE004RA,Other Capital Expenditure,,E1,Grants                                  ,694.5,25/11/2016,C,SUTTON STAYING PUT            
61,0,0,Disabled Facilities Grant DCLG          ,CE004RA,Other Capital Expenditure,,E1,Grants                                  ,1097.46,10/11/2016,C,CBS ADAPTATION                
62,0,0,Disabled Facilities Grant DCLG          ,CE004RA,Other Capital Expenditure,,E1,Grants                                  ,1304,10/11/2016,C,CBS ADAPTATION                
63,0,0,Disabled Facilities Grant DCLG          ,CE004RA,Other Capital Expenditure,,E1,Grants                                  ,1314.07,24/11/2016,C,CBS ADAPTATION                
64,0,0,Disabled Facilities Grant DCLG          ,CE004RA,Other Capital Expenditure,,E1,Grants                                  ,1373.77,10/11/2016,C,CBS ADAPTATION                
65,0,0,Disabled Facilities Grant DCLG          ,CE004RA,Other Capital Expenditure,,E1,Grants                                  ,1421.6,15/11/2016,C,CBS ADAPTATION                
66,0,0,Disabled Facilities Grant DCLG          ,CE004RA,Other Capital Expenditure,,E1,Grants                                  ,1498.25,10/11/2016,C,CBS ADAPTATION                
67,0,0,Disabled Facilities Grant DCLG          ,CE004RA,Other Capital Expenditure,,E1,Grants                                  ,1552.21,23/11/2016,C,CBS ADAPTATION                
68,0,0,Disabled Facilities Grant DCLG          ,CE004RA,Other Capital Expenditure,,E1,Grants                                  ,2514.23,25/11/2016,C,CBS ADAPTATION                
69,0,0,Disabled Facilities Grant DCLG          ,CE004RA,Other Capital Expenditure,,E1,Grants                                  ,2869.31,23/11/2016,C,CBS ADAPTATION                
70,0,0,Disabled Facilities Grant DCLG          ,CE004RA,Other Capital Expenditure,,E1,Grants                                  ,3056.68,10/11/2016,C,CBS ADAPTATION                
71,0,0,Disabled Facilities Grant DCLG          ,CE004RA,Other Capital Expenditure,,E1,Grants                                  ,3727.05,23/11/2016,C,TLC STAIRLIFTS                
72,0,0,Disabled Facilities Grant DCLG          ,CE004RA,Other Capital Expenditure,,E1,Grants                                  ,4188.53,10/11/2016,C,CBS ADAPTATION                
73,0,0,Disabled Facilities Grant DCLG          ,CE004RA,Other Capital Expenditure,,E1,Grants                                  ,5923.75,24/11/2016,C,TLC STAIRLIFTS                
74,0,0,Disabled Facilities Grant DCLG          ,CE004RA,Other Capital Expenditure,,E1,Grants                                  ,24740,15/11/2016,C,T BROWN LTD                   
75,0,0,Parks Investment                        ,CE013SA,New Construction Conversion and Renovation,,B4,Contractor - Site works                 ,898,21/11/2016,C,TAYLOR BUILDING COMPANY LTD   
76,0,0,Parks Investment                        ,CE013SA,New Construction Conversion and Renovation,,B4,Contractor - Site works                 ,8600,04/11/2016,C,INTERCITY CONTRACTORS LTD     
77,0,0,Parks Investment                        ,CE013SA,New Construction Conversion and Renovation,,B4,Contractor - Site works                 ,8600,12/11/2016,C,INTERCITY CONTRACTORS LTD     
78,0,0,Parks Investment                        ,CE013SA,New Construction Conversion and Renovation,,B4,Contractor - Site works                 ,8600,22/10/2016,C,INTERCITY CONTRACTORS LTD     
79,0,0,Parks Investment                        ,CE013SA,New Construction Conversion and Renovation,,B4,Contractor - Site works                 ,8600,29/10/2016,C,INTERCITY CONTRACTORS LTD     
80,0,0,Parks Investment                        ,CE013SA,New Construction Conversion and Renovation,,B4,Contractor - Site works                 ,8750,03/11/2016,C,TAYLOR BUILDING COMPANY LTD   
81,0,0,Parks Investment                        ,CE013SA,New Construction Conversion and Renovation,,B4,Contractor - Site works                 ,9443,03/11/2016,C,TAYLOR BUILDING COMPANY LTD   
82,0,0,Parks Investment                        ,CE013SA,New Construction Conversion and Renovation,,B4,Contractor - Site works                 ,9880,03/11/2016,C,TAYLOR BUILDING COMPANY LTD   
83,0,0,Parks Investment                        ,CE013SA,New Construction Conversion and Renovation,,B4,Contractor - Site works                 ,17850,21/11/2016,C,TAYLOR BUILDING COMPANY LTD   
84,0,0,Parks Investment                        ,CE013SA,New Construction Conversion and Renovation,,B5,Suppliers - Site works                  ,10000,24/11/2016,C,BARCHAM TREES P.L.C.          
85,0,0,Surface Water Drainage                  ,CE024FA,New Construction Conversion and Renovation,,B4,Contractor - Site works                 ,10177.16,02/11/2016,C,FM CONWAY LTD                 
86,0,0,Leisure Centre Plant & Machine          ,CE038MA,New Construction Conversion and Renovation,,B4,Contractor - Site works                 ,510,08/11/2016,C,LA BELLE ROOFING CO LTD       
87,0,0,Leisure Centre Plant & Machine          ,CE038MA,New Construction Conversion and Renovation,,B4,Contractor - Site works                 ,14046.7,26/10/2016,C,NATIONCARE WINDOWS LTD        
88,0,0,Morden Leisure Centre                   ,CE045AA,Acquisition of Land and Existing Buildings,,A2,External Fees                           ,1560,26/10/2016,C,REDACTED
89,0,0,Morden Leisure Centre                   ,CE045AA,New Construction Conversion and Renovation,,B1,Consultants Fees D&S Structure          ,2830,14/11/2016,C,BUILDING DESIGN PARTNERSHIP LT
90,0,0,Morden Leisure Centre                   ,CE045AA,New Construction Conversion and Renovation,,B1,Consultants Fees D&S Structure          ,2830,02/11/2016,C,BUILDING DESIGN PARTNERSHIP LT
91,0,0,Morden Leisure Centre                   ,CE045AA,New Construction Conversion and Renovation,,B1,Consultants Fees D&S Structure          ,3882,21/10/2016,C,GARDINER & THEOBALD LLP       
92,0,0,Morden Leisure Centre                   ,CE045AA,New Construction Conversion and Renovation,,B1,Consultants Fees D&S Structure          ,6000,17/11/2016,C,GT3 ARCHITECTS                
93,0,0,Morden Leisure Centre                   ,CE045AA,New Construction Conversion and Renovation,,B2,Site Surveys D&S Structure              ,1420,17/10/2016,C,GPM ECOLOGY                   
94,0,0,Industrial Estate Investment,CE059FA,New Construction Conversion and Renovation,,B4,Contractor - Site works                 ,5673.5,21/09/2016,C,KIARA DECORATING CONTRACTORS  
95,0,0,Rediscover Mitcham                      ,CE061FG,New Construction Conversion and Renovation,,B4,Contractor - Site works                 ,5713.3,02/11/2016,C,KIER INTEGRATED SERVICES LTD  
96,0,0,Morden Shopping Parade                  ,CE061FH,New Construction Conversion and Renovation,,B4,Contractor - Site works                 ,12650,18/10/2016,C,ROCKIT EVENT PRODUCTION       
97,0,0,Morden Shopping Parade                  ,CE061FH,New Construction Conversion and Renovation,,B4,Contractor - Site works                 ,74488.12,28/10/2016,C,CUTTLE CONSTRUCTION LIMITED   
98,0,0,Morden Shopping Parade                  ,CE061FH,New Construction Conversion and Renovation,,B6,Other Costs - Site works                ,1500,27/10/2016,C,REDACTED
99,0,0,Morden Shopping Parade                  ,CE061FH,New Construction Conversion and Renovation,,B6,Other Costs - Site works                ,1500,27/10/2016,C,REDACTED
100,0,0,Morden Shopping Parade                  ,CE061FH,New Construction Conversion and Renovation,,B6,Other Costs - Site works                ,1500,20/09/2016,C,REDACTED
101,0,0,Brighter Business,CE061FJ,Other Capital Expenditure,,E1,Grants                                  ,1590,08/11/2016,C,CORLEONE RESTAURANT LTD       
102,0,0,Brighter Business,CE061FJ,Other Capital Expenditure,,E1,Grants                                  ,1762,08/11/2016,C,STANDARD CARS LIMITED         
103,0,0,Street Tree Programme                   ,CE067FA,New Construction Conversion and Renovation,,B5,Suppliers - Site works                  ,1638,18/11/2016,C,BARCHAM TREES P.L.C.          
104,0,0,Street Tree Programme                   ,CE067FA,New Construction Conversion and Renovation,,B5,Suppliers - Site works                  ,5315.4,07/11/2016,C,BARCHAM TREES P.L.C.          
105,0,0,Street Tree Programme                   ,CE067FA,New Construction Conversion and Renovation,,B5,Suppliers - Site works                  ,5417.1,18/11/2016,C,BARCHAM TREES P.L.C.          
106,0,0,Street Lighting Replacement Pr          ,CE068FA,New Construction Conversion and Renovation,,B4,Contractor - Site works                 ,1032.49,02/11/2016,C,KIER INTEGRATED SERVICES LTD  
107,0,0,Street Lighting Replacement Pr          ,CE068FA,New Construction Conversion and Renovation,,B4,Contractor - Site works                 ,1367.28,03/11/2016,C,KIER INTEGRATED SERVICES LTD  
108,0,0,Street Lighting Replacement Pr          ,CE068FA,New Construction Conversion and Renovation,,B4,Contractor - Site works                 ,1535.74,03/11/2016,C,KIER INTEGRATED SERVICES LTD  
109,0,0,Street Lighting Replacement Pr          ,CE068FA,New Construction Conversion and Renovation,,B4,Contractor - Site works                 ,4982.14,02/11/2016,C,KIER INTEGRATED SERVICES LTD  
110,0,0,Street Lighting Replacement Pr          ,CE068FA,New Construction Conversion and Renovation,,B4,Contractor - Site works                 ,5060.28,02/11/2016,C,KIER INTEGRATED SERVICES LTD  
111,0,0,Street Lighting Replacement Pr          ,CE068FA,New Construction Conversion and Renovation,,B4,Contractor - Site works                 ,9939.72,02/11/2016,C,KIER INTEGRATED SERVICES LTD  
112,0,0,Street Lighting Replacement Pr          ,CE068FA,New Construction Conversion and Renovation,,B4,Contractor - Site works                 ,10000,02/11/2016,C,KIER INTEGRATED SERVICES LTD  
113,0,0,Street Lighting Replacement Pr          ,CE068FA,New Construction Conversion and Renovation,,B5,Suppliers - Site works                  ,1978.8,09/11/2016,C,MALLATITE LTD                 
114,0,0,Street Lighting Replacement Pr          ,CE068FA,New Construction Conversion and Renovation,,B5,Suppliers - Site works                  ,6991.68,25/10/2016,C,MARWOOD ELECTRICAL COMPANY LTD
115,0,0,Street Lighting Replacement Pr          ,CE068FA,New Construction Conversion and Renovation,,B5,Suppliers - Site works                  ,8061,09/11/2016,C,MALLATITE LTD                 
116,0,0,Street Lighting Replacement Pr          ,CE068FA,New Construction Conversion and Renovation,,B5,Suppliers - Site works                  ,8417.8,08/11/2016,C,MARWOOD ELECTRICAL COMPANY LTD
117,0,0,Street Lighting Replacement Pr          ,CE068FA,New Construction Conversion and Renovation,,B6,Other Costs - Site works                ,605,05/09/2016,C,UK POWER NETWORKS (OPERATIONS)
118,0,0,Street Lighting Replacement Pr          ,CE068FA,New Construction Conversion and Renovation,,B6,Other Costs - Site works                ,693,21/11/2016,C,UK POWER NETWORKS (OPERATIONS)
119,0,0,Street Lighting Replacement Pr          ,CE068FA,New Construction Conversion and Renovation,,B6,Other Costs - Site works                ,748,21/11/2016,C,UK POWER NETWORKS (OPERATIONS)
120,0,0,Street Lighting Replacement Pr          ,CE068FA,New Construction Conversion and Renovation,,B6,Other Costs - Site works                ,748,06/10/2016,C,UK POWER NETWORKS (OPERATIONS)
121,0,0,Street Lighting Replacement Pr          ,CE068FA,New Construction Conversion and Renovation,,B6,Other Costs - Site works                ,1578,05/09/2016,C,UK POWER NETWORKS (OPERATIONS)
122,0,0,Street Lighting Replacement Pr          ,CE068FA,New Construction Conversion and Renovation,,B6,Other Costs - Site works                ,1705,06/10/2016,C,UK POWER NETWORKS (OPERATIONS)
123,0,0,Street Lighting Replacement Pr          ,CE068FA,New Construction Conversion and Renovation,,B6,Other Costs - Site works                ,3210,05/09/2016,C,UK POWER NETWORKS (OPERATIONS)
124,0,0,Street Lighting Replacement Pr          ,CE068FA,New Construction Conversion and Renovation,,B6,Other Costs - Site works                ,4496,05/09/2016,C,UK POWER NETWORKS (OPERATIONS)
125,0,0,Street Lighting Replacement Pr          ,CE068FA,New Construction Conversion and Renovation,,B6,Other Costs - Site works                ,4665,21/11/2016,C,UK POWER NETWORKS (OPERATIONS)
126,0,0,Street Lighting Replacement Pr          ,CE068FA,New Construction Conversion and Renovation,,B6,Other Costs - Site works                ,8100,06/10/2016,C,UK POWER NETWORKS (OPERATIONS)
127,0,0,Street Lighting Replacement Pr          ,CE068FA,New Construction Conversion and Renovation,,B6,Other Costs - Site works                ,20150,06/10/2016,C,UK POWER NETWORKS (OPERATIONS)
128,0,0,Replacement of Fleet Vehicles           ,CE082EA,Vehicles Plant Equipment and Machinery,,D1 ,Vehicles                                ,58606.66,10/10/2016,C,COMMERCIAL SERV'S TRADING LTD 
129,0,0,Replacement of Fleet Vehicles           ,CE082EA,Vehicles Plant Equipment and Machinery,,D1 ,Vehicles                                ,58606.66,10/10/2016,C,COMMERCIAL SERV'S TRADING LTD 
130,0,0,Cycle access/parking                    ,CE104FG,New Construction Conversion and Renovation,,B2,Site Surveys D&S Structure              ,1895,24/10/2016,C,TRAFFICWATCH (UK) LTD.        
131,0,0,Cycle access/parking                    ,CE104FG,New Construction Conversion and Renovation,,B4,Contractor - Site works                 ,800,02/11/2016,C,FM CONWAY LTD                 
132,0,0,Cycle access/parking                    ,CE104FG,New Construction Conversion and Renovation,,B4,Contractor - Site works                 ,3598.64,02/11/2016,C,FM CONWAY LTD                 
133,0,0,Casualty Reduction & Schools            ,CE104RA,New Construction Conversion and Renovation,,B3,Other Expenses D&S Structure            ,1157.83,18/10/2016,C,NETWORK RAIL INFRASTRUCTURE LT
134,0,0,TfL Prinicipal Road Maint               ,CE105FV,New Construction Conversion and Renovation,,B4,Contractor - Site works                 ,1114.87,02/11/2016,C,FM CONWAY LTD                 
135,0,0,TfL Prinicipal Road Maint               ,CE105FV,New Construction Conversion and Renovation,,B4,Contractor - Site works                 ,7800,02/11/2016,C,FM CONWAY LTD                 
136,,,Outdoor Gyms PH Funding,CE110SH,Vehicles Plant Equipment and Machinery,,D3 ,Equipment                               ,5447,10/11/2016,C,THE GREAT OUTDOOR GYM COMPANY 
137,0,0,Biking Borough Programme                ,CE128RA,Vehicles Plant Equipment and Machinery,,D3 ,Equipment                               ,1000,13/10/2016,C,CYCLEHOOP LTD                 
138,0,0,Traffic Schemes                         ,CE142FA,New Construction Conversion and Renovation,,B4,Contractor - Site works                 ,513.26,18/11/2016,C,FM CONWAY LTD                 
139,0,0,Traffic Schemes                         ,CE142FA,New Construction Conversion and Renovation,,B4,Contractor - Site works                 ,4255,11/11/2016,C,FM CONWAY LTD                 
140,0,0,Traffic Schemes                         ,CE142FA,New Construction Conversion and Renovation,,B4,Contractor - Site works                 ,4255.01,11/11/2016,C,FM CONWAY LTD                 
141,0,0,Canons Parks for People                 ,CE157AA,New Construction Conversion and Renovation,,B1,Consultants Fees D&S Structure          ,4125,26/10/2016,C,SOUTHERN GREEN LIMITED        
142,0,0,Civic Centre- Upgrading lifts           ,CF001AL,Vehicles Plant Equipment and Machinery,,D5 ,Software                                ,876.75,02/11/2016,C,SUNA COMMUNICATION            
143,0,0,Energy Utility Invest to Save           ,CF002SA,New Construction Conversion and Renovation,,B4,Contractor - Site works                 ,7189.32,22/11/2016,C,JOJU SOLA                     
144,0,0,Invest to Save schemes-General          ,CF003SA,New Construction Conversion and Renovation,,B4,Contractor - Site works                 ,8921.5,01/11/2016,C,JOJU SOLA                     
145,0,0,Repair and Maintenance                  ,CF004SA,New Construction Conversion and Renovation,,B4,Contractor - Site works                 ,1914,24/11/2016,C,FORBO FLOORING UK LTD         
146,0,0,Repair and Maintenance                  ,CF004SA,New Construction Conversion and Renovation,,B4,Contractor - Site works                 ,8311,16/11/2016,C,KH FLOORING LTD               
147,0,0,Repair and Maintenance                  ,CF004SA,New Construction Conversion and Renovation,,B4,Contractor - Site works                 ,10375.96,08/11/2016,C,SOUTHERN FIRE DOORS LTD       
148,0,0,Repair and Maintenance                  ,CF004SA,New Construction Conversion and Renovation,,B4,Contractor - Site works                 ,11962.5,24/11/2016,C,FORBO FLOORING UK LTD         
149,0,0,Repair and Maintenance                  ,CF004SA,New Construction Conversion and Renovation,,B5,Suppliers - Site works                  ,1905.3,31/10/2016,C,THORLUX LIGHTING              
150,0,0,Repair and Maintenance                  ,CF004SA,New Construction Conversion and Renovation,,B5,Suppliers - Site works                  ,2051.78,31/10/2016,C,THORLUX LIGHTING              
151,0,0,Repair and Maintenance                  ,CF004SA,New Construction Conversion and Renovation,,B5,Suppliers - Site works                  ,6542.92,31/10/2016,C,THORLUX LIGHTING              
152,0,0,Dundonald expansion                     ,CS031AC,New Construction Conversion and Renovation,,B1,Consultants Fees D&S Structure          ,500,25/10/2016,C,EIGHT ASSOCIATES LTD          
153,0,0,Dundonald expansion                     ,CS031AC,New Construction Conversion and Renovation,,B1,Consultants Fees D&S Structure          ,1000,31/10/2016,C,SYNERGY CPC LLP               
154,0,0,Dundonald expansion                     ,CS031AC,New Construction Conversion and Renovation,,B1,Consultants Fees D&S Structure          ,4000,10/11/2016,C,HAVERSTOCK ASSOCIATES LLP     
155,0,0,Dundonald expansion                     ,CS031AC,New Construction Conversion and Renovation,,B1,Consultants Fees D&S Structure          ,12767,30/09/2016,C,HAVERSTOCK ASSOCIATES LLP     
156,0,0,Dundonald expansion                     ,CS031AC,New Construction Conversion and Renovation,,B4,Contractor - Site works                 ,80000,23/11/2016,C,KIND & COMPANY (BUILDERS) LTD 
157,0,0,Dundonald expansion                     ,CS031AC,Vehicles Plant Equipment and Machinery,,D3 ,Equipment                               ,895.68,26/10/2016,C,LANDSCAPE SUPPLY COMPANY      
158,0,0,Singlegate expansion                    ,CS049AA,New Construction Conversion and Renovation,,B4,Contractor - Site works                 ,1723.75,17/11/2016,C,KIND & COMPANY (BUILDERS) LTD 
159,0,0,Schs Cap Maint & Accessibility          ,CS080SD,New Construction Conversion and Renovation,,B4,Contractor - Site works                 ,2226.4,14/11/2016,C,BILFINGER EUROPA FACILITY     
160,0,0,Schs Cap Maint & Accessibility          ,CS080SD,New Construction Conversion and Renovation,,B4,Contractor - Site works                 ,6587,31/10/2016,C,MOY CONSTRUCTION CO LTD       
161,0,0,Schs Cap Maint & Accessibility          ,CS080SD,New Construction Conversion and Renovation,,B4,Contractor - Site works                 ,39004.37,21/11/2016,C,BILFINGER EUROPA FACILITY     
162,0,0,New School 6fe,CS085SF,Acquisition of Land and Existing Buildings,,A1,Purchase                                ,294500,16/11/2016,C,HM REVENUE AND CUSTOMS        
163,0,0,New School 6fe,CS085SF,Acquisition of Land and Existing Buildings,,A1,Purchase                                ,6100000,09/11/2016,C,REDACTED
164,0,0,Harris Merton 2fe                       ,CS085SG,New Construction Conversion and Renovation,,B1,Consultants Fees D&S Structure          ,1033,31/10/2016,C,SUMMERS INMAN                 
165,0,0,Harris Merton 2fe                       ,CS085SG,New Construction Conversion and Renovation,,B1,Consultants Fees D&S Structure          ,1708.44,31/10/2016,C,HAZLE MCCORMACK YOUNG LLP     
166,0,0,Disaster recovery                       ,CT003EA,Vehicles Plant Equipment and Machinery,,D3 ,Equipment                               ,2000,08/11/2016,C,ASSURED NETWORK SERVICES LTD  
167,0,0,IT Equipment                            ,CT006EA,Vehicles Plant Equipment and Machinery,,D3 ,Equipment                               ,1261.4,27/10/2016,C,XMA LIMITED                   
168,0,0,IT Equipment                            ,CT006EA,Vehicles Plant Equipment and Machinery,,D3 ,Equipment                               ,1495,31/10/2016,C,NETWORK SOLUTIONS INC         
169,0,0,IT Equipment                            ,CT006EA,Other Capital Expenditure,,E3,Miscellaneous Capital Expendit          ,1252,20/10/2016,C,HANDD BUSINESS SOLUTIONS LTD  
170,0,0,Improving Information Systems           ,CT020NB,Vehicles Plant Equipment and Machinery,,D5 ,Software                                ,995,31/10/2016,C,ADVANCED BUSINESS SOLUTIONS   
171,Central Services,Council tax collection,Local Taxation Services,E02100,Supplies & Services           ,Services                      ,DF11,Counsel's Fees                          ,580.92,04/11/2016,R,HMCTS                         
172,Central Services,Council tax collection,Local Taxation Services,E02100,Supplies & Services           ,Services                      ,DF11,Counsel's Fees                          ,861.6,02/11/2016,R,WELBECK LAW LLP               
173,Central Services,Council tax collection,Local Taxation Services,E02100,Supplies & Services           ,Services                      ,DF11,Counsel's Fees                          ,871.1,04/11/2016,R,HMCTS                         
174,Central Services,Council tax collection,Local Taxation Services,E02100,Supplies & Services           ,Services                      ,DF11,Counsel's Fees                          ,6695.12,04/11/2016,R,HMCTS                         
175,Central Services,Council tax collection,Local Taxation Services,E02100,Supplies & Services           ,Comms and Computing           ,DG09,Computer Purchases - Misc               ,984.2,01/11/2016,R,MAG:NET SOLUTIONS             
176,Central Services,Council tax collection,Local Taxation Services,E02100,Supplies & Services           ,Comms and Computing           ,DG09,Computer Purchases - Misc               ,1921.65,28/10/2016,R,CIVICA UK LIMITED             
177,Central Services,Council tax collection,Local Taxation Services,E02100,Supplies & Services           ,Comms and Computing           ,DG09,Computer Purchases - Misc               ,2517.38,22/11/2016,R,CIVICA UK LIMITED             
178,Central Services,Council tax collection,Local Taxation Services,E02100,Supplies & Services           ,Comms and Computing           ,DG09,Computer Purchases - Misc               ,3656.63,28/10/2016,R,CIVICA UK LIMITED             
179,Central Services,Council tax collection,Local Taxation Bailiffs,E02101,Supplies & Services           ,Services                      ,DF18,Bailiffs' fees                          ,679.87,31/10/2016,R,HPI LIMITED                   
180,Central Services,Council tax collection,Local Taxation Bailiffs,E02101,Supplies & Services           ,Services                      ,DF18,Bailiffs' fees                          ,1160,02/11/2016,R,R F GREASBY (LONDON) LTD      
181,Central Services,Council tax collection,Sutton Shared Bailiffs Service          ,E02102,Third Party Payments          ,Other Local Authorities       ,EB01,Payments to OLAs                        ,167584.24,22/11/2016,R,LONDON BOROUGH OF SUTTON      
182,Central Services,SupS Pensions,Pensions,E02160,Supplies & Services           ,Comms and Computing           ,DG02,Software Licences                       ,54570.5,13/10/2016,R,HEYWOOD                       
183,Central Services,SupS Pensions,Pensions,E02160,Third Party Payments          ,Other Local Authorities       ,EB01,Payments to OLAs                        ,38123,03/11/2016,R,WANDSWORTH CORPORATION        
184,Central Services,SupS Facilities,Post Room,E02220,Supplies & Services           ,Comms and Computing           ,DG04,Postage - General                       ,531.14,24/10/2016,R,STREETWISE COURIERS           
185,Central Services,SupS Facilities,Post Room,E02220,Supplies & Services           ,Comms and Computing           ,DG04,Postage - General                       ,575.68,19/09/2016,R,STREETWISE COURIERS           
186,Central Services,SupS Facilities,Post Room,E02220,Supplies & Services           ,Comms and Computing           ,DG04,Postage - General                       ,584.35,14/11/2016,R,STREETWISE COURIERS           
187,Central Services,SupS Facilities,Post Room,E02220,Supplies & Services           ,Comms and Computing           ,DG04,Postage - General                       ,613.05,30/09/2016,R,STREETWISE COURIERS           
188,Central Services,SupS Facilities,Post Room,E02220,Supplies & Services           ,Comms and Computing           ,DG04,Postage - General                       ,692.23,31/10/2016,R,STREETWISE COURIERS           
189,Central Services,SupS Facilities,Post Room,E02220,Supplies & Services           ,Comms and Computing           ,DG04,Postage - General                       ,5000,14/11/2016,R,NEOPOST FINANCE LIMITED       
190,Central Services,SupS Facilities,Security Services,E02221,Third Party Payments          ,Private Contractors           ,EH10,Contract Payments                       ,8963.7,01/11/2016,R,SIGHT & SOUND                 
191,Central Services,SupS Facilities,Civic Centre,E02222,Premises Related Expenditure  ,RepairsAlterations&MtceOfBldgs,BA01,DDM - General Building                  ,864.54,23/11/2016,R,SALTASH ENTERPRISES LTD       
192,Central Services,SupS Facilities,Civic Centre,E02222,Premises Related Expenditure  ,RepairsAlterations&MtceOfBldgs,BA01,DDM - General Building                  ,2500,23/11/2016,R,SALTASH ENTERPRISES LTD       
193,Central Services,SupS Facilities,Civic Centre,E02222,Premises Related Expenditure  ,RepairsAlterations&MtceOfBldgs,BA29,Build Maint Mgt Fees                    ,856.15,23/11/2016,R,SALTASH ENTERPRISES LTD       
194,Central Services,SupS Facilities,Civic Centre,E02222,Supplies & Services           ,Equip Furniture/Materials     ,DA09,Equip-Purchases                         ,875,31/10/2016,R,CAD-CAPTURE                   
195,Central Services,SupS Facilities,Facilities,E02231,Premises Related Expenditure  ,RepairsAlterations&MtceOfBldgs,BA01,DDM - General Building                  ,3979.68,08/11/2016,R,SALTASH ENTERPRISES LTD       
196,Central Services,SupS Facilities,Facilities,E02231,Premises Related Expenditure  ,RepairsAlterations&MtceOfBldgs,BA02,ENERGY CONSERVATION                     ,541.26,11/11/2016,R,ENERGY ASSETS LIMITED         
197,Central Services,SupS Facilities,Facilities,E02231,Premises Related Expenditure  ,RepairsAlterations&MtceOfBldgs,BA02,ENERGY CONSERVATION                     ,900,28/10/2016,R,UK POWER NETWORKS (OPERATIONS)
198,Central Services,SupS Facilities,Facilities,E02231,Premises Related Expenditure  ,RepairsAlterations&MtceOfBldgs,BA02,ENERGY CONSERVATION                     ,900,04/11/2016,R,UK POWER NETWORKS (OPERATIONS)
199,Central Services,SupS Facilities,Facilities,E02231,Premises Related Expenditure  ,RepairsAlterations&MtceOfBldgs,BA02,ENERGY CONSERVATION                     ,1087.5,31/10/2016,R,NDA CONSULTING                
200,Central Services,SupS Facilities,Facilities,E02231,Premises Related Expenditure  ,RepairsAlterations&MtceOfBldgs,BA02,ENERGY CONSERVATION                     ,1432,07/11/2016,R,FLETCHERS FACILITIES LIMITED  
201,Central Services,SupS Facilities,Facilities,E02231,Premises Related Expenditure  ,RepairsAlterations&MtceOfBldgs,BA02,ENERGY CONSERVATION                     ,1881.81,22/11/2016,R,STARK SOFTWARE INTERNATIONAL  
202,Central Services,SupS Facilities,Facilities,E02231,Premises Related Expenditure  ,RepairsAlterations&MtceOfBldgs,BA02,ENERGY CONSERVATION                     ,4000,21/11/2016,R,JOJU SOLA                     
203,Central Services,SupS Facilities,Facilities,E02231,Premises Related Expenditure  ,RepairsAlterations&MtceOfBldgs,BA02,ENERGY CONSERVATION                     ,4900,21/11/2016,R,JOJU SOLA                     
204,Central Services,SupS Facilities,Facilities,E02231,Premises Related Expenditure  ,RepairsAlterations&MtceOfBldgs,BA02,ENERGY CONSERVATION                     ,5350,08/11/2016,R,SIMMONS TAYLOR HALL LTD       
205,Central Services,SupS Facilities,Facilities,E02231,Premises Related Expenditure  ,RepairsAlterations&MtceOfBldgs,BA02,ENERGY CONSERVATION                     ,7736.05,17/11/2016,R,JOJU SOLA                     
206,Central Services,SupS Facilities,Corporate Services Buildings,E02240,Premises Related Expenditure  ,RepairsAlterations&MtceOfBldgs,BA01,DDM - General Building                  ,2347.47,23/11/2016,R,SALTASH ENTERPRISES LTD       
207,Central Services,SupS Facilities,Corporate Services Buildings,E02240,Premises Related Expenditure  ,RepairsAlterations&MtceOfBldgs,BA03,DDM - Mechanical                        ,554.5,10/11/2016,R,BILFINGER EUROPA FACILITY     
208,Central Services,SupS Facilities,Corporate Services Buildings,E02240,Premises Related Expenditure  ,RepairsAlterations&MtceOfBldgs,BA03,DDM - Mechanical                        ,3787.99,10/11/2016,R,BILFINGER EUROPA FACILITY     
209,Central Services,SupS Facilities,Corporate Services Buildings,E02240,Premises Related Expenditure  ,RepairsAlterations&MtceOfBldgs,BA03,DDM - Mechanical                        ,7806.26,16/11/2016,R,FUTURE TECH                   
210,Central Services,SupS Facilities,Corporate Services Buildings,E02240,Premises Related Expenditure  ,RepairsAlterations&MtceOfBldgs,BA06,REPAIRS & MAINTENANCE GENERAL           ,1000,07/11/2016,R,KEYTREE LIMITED               
211,Central Services,SupS Facilities,Corporate Services Buildings,E02240,Premises Related Expenditure  ,RepairsAlterations&MtceOfBldgs,BA29,Build Maint Mgt Fees                    ,2567.25,10/11/2016,R,BILFINGER EUROPA FACILITY     
212,Central Services,SupS Facilities,Corporate Services Buildings,E02240,Premises Related Expenditure  ,Water Services                ,BE01,Use of Water (Metered)                  ,535.92,28/10/2016,R,SUTTON AND EAST SURREY WATER  
213,Childrens & Education Services,Strategic Management,CSF Buildings,E02256,Premises Related Expenditure  ,RepairsAlterations&MtceOfBldgs,BA01,DDM - General Building                  ,1152.3,21/10/2016,R,SALTASH ENTERPRISES LTD       
214,Adult Social Care,OP 65 & Over Day Care,Pollards Hill Day Centre,E02270,Premises Related Expenditure  ,RepairsAlterations&MtceOfBldgs,BA06,REPAIRS & MAINTENANCE GENERAL           ,940,30/09/2016,R,INDEPTH HYGIENE SERVICES LTD  
215,Adult Social Care,OP 65 & Over Day Care,Pollards Hill Day Centre,E02270,Premises Related Expenditure  ,Cleaning and Domestic Supplies,BH03,Cleaning Services                       ,865.12,01/11/2016,R,BIRKIN CLEANING SERVICES LTD  
216,Adult Social Care,OP 65 & Over Day Care,Pollards Hill Day Centre,E02270,Premises Related Expenditure  ,Cleaning and Domestic Supplies,BH03,Cleaning Services                       ,885.31,01/11/2016,R,BIRKIN CLEANING SERVICES LTD  
217,Adult Social Care,OP 65 & Over Day Care,Pollards Hill Day Centre,E02270,Premises Related Expenditure  ,Cleaning and Domestic Supplies,BH03,Cleaning Services                       ,892.7,01/11/2016,R,BIRKIN CLEANING SERVICES LTD  
218,Adult Social Care,OP 65 & Over Day Care,Pollards Hill Day Centre,E02270,Premises Related Expenditure  ,Cleaning and Domestic Supplies,BH03,Cleaning Services                       ,1304.95,01/11/2016,R,BIRKIN CLEANING SERVICES LTD  
219,Adult Social Care,OP 65 & Over Day Care,Pollards Hill Day Centre,E02270,Premises Related Expenditure  ,Cleaning and Domestic Supplies,BH03,Cleaning Services                       ,1497.38,01/11/2016,R,BIRKIN CLEANING SERVICES LTD  
220,Adult Social Care,OP 65 & Over Day Care,Pollards Hill Day Centre,E02270,Premises Related Expenditure  ,Cleaning and Domestic Supplies,BH03,Cleaning Services                       ,1591.8,01/11/2016,R,BIRKIN CLEANING SERVICES LTD  
221,Adult Social Care,OP 65 & Over Day Care,Pollards Hill Day Centre,E02270,Premises Related Expenditure  ,Cleaning and Domestic Supplies,BH03,Cleaning Services                       ,1623.45,01/11/2016,R,BIRKIN CLEANING SERVICES LTD  
222,Adult Social Care,OP 65 & Over Day Care,Pollards Hill Day Centre,E02270,Premises Related Expenditure  ,Cleaning and Domestic Supplies,BH03,Cleaning Services                       ,1764.19,01/11/2016,R,BIRKIN CLEANING SERVICES LTD  
223,Adult Social Care,OP 65 & Over Day Care,Pollards Hill Day Centre,E02270,Premises Related Expenditure  ,Cleaning and Domestic Supplies,BH03,Cleaning Services                       ,5216.05,01/11/2016,R,BIRKIN CLEANING SERVICES LTD  
224,Adult Social Care,OP 65 & Over Day Care,Pollards Hill Day Centre,E02270,Premises Related Expenditure  ,Cleaning and Domestic Supplies,BH03,Cleaning Services                       ,7302.68,01/11/2016,R,BIRKIN CLEANING SERVICES LTD  
225,Adult Social Care,OP 65 & Over Day Care,Pollards Hill Day Centre,E02270,Third Party Payments          ,Private Contractors           ,EH02,Miscellaneous Hired Services            ,573.03,01/11/2016,R,OCS GROUP UK LTD T/A CANNON   
226,Central Services,SupS Facilities,CORPORATE ELECTRICITY RECHARGE,E02275,Premises Related Expenditure  ,Energy Costs                  ,BB02,Electricity                             ,2213.23,17/11/2016,R,SCOTTISH POWER                
227,Central Services,SupS Facilities,CORPORATE ELECTRICITY RECHARGE,E02275,Premises Related Expenditure  ,Energy Costs                  ,BB02,Electricity                             ,26983.58,17/11/2016,R,SCOTTISH POWER                
228,Cultural Env Reg&Plan Services,Parks & Open Spaces,E & R Buildings,E02344,Premises Related Expenditure  ,RepairsAlterations&MtceOfBldgs,BA03,DDM - Mechanical                        ,542.52,10/11/2016,R,BILFINGER EUROPA FACILITY     
229,Cultural Env Reg&Plan Services,Parks & Open Spaces,E & R Buildings,E02344,Premises Related Expenditure  ,RepairsAlterations&MtceOfBldgs,BA05,DDM - ELECTRICAL                        ,959.62,25/10/2016,R,BILFINGER EUROPA FACILITY     
230,Adult Social Care,PS u65 Day Care,C & H Buildings,E02345,Premises Related Expenditure  ,RepairsAlterations&MtceOfBldgs,BA01,DDM - General Building                  ,698.75,08/08/2016,R,SALTASH ENTERPRISES LTD       
231,Adult Social Care,PS u65 Day Care,C & H Buildings,E02345,Premises Related Expenditure  ,RepairsAlterations&MtceOfBldgs,BA03,DDM - Mechanical                        ,515.32,10/11/2016,R,BILFINGER EUROPA FACILITY     
232,Cultural Env Reg&Plan Services,Parks & Open Spaces,Leisure Buildings,E02350,Premises Related Expenditure  ,RepairsAlterations&MtceOfBldgs,BA03,DDM - Mechanical                        ,557.76,10/11/2016,R,BILFINGER EUROPA FACILITY     
233,Central Services,SupS DOF,AD RESOURCES,E04061,Supplies & Services           ,Services                      ,DF03,Consultants                             ,6900,27/10/2016,R,PUBLIC SECTOR CONSULTANTS     
234,Central Services,SupS DOF,AD RESOURCES,E04061,Supplies & Services           ,Grants and Subscriptions      ,DJ04,Subscriptions                           ,2100,03/11/2016,R,ICHABODS INDUSTRIES LIMITED   
235,Central Services,SupS Corporate Finance,Corporate Accountancy,E06209,Supplies & Services           ,Services                      ,DF58,Audit Fee                     ,42955,27/10/2016,R,ERNST & YOUNG LLP             
236,Central Services,SupS Strategic Finance,Treasury & Insurance,E06222,Employees                     ,Direct Employee Expenses      ,AA17,Agency Staff & Casual Paymts            ,1008,26/10/2016,R,HAYS SPECIALIST RECRUITM'T LTD
237,Central Services,SupS Strategic Finance,Treasury & Insurance,E06222,Employees                     ,Direct Employee Expenses      ,AA17,Agency Staff & Casual Paymts            ,1252,26/10/2016,R,HAYS SPECIALIST RECRUITM'T LTD
238,Central Services,SupS Strategic Finance,Treasury & Insurance,E06222,Employees                     ,Direct Employee Expenses      ,AA17,Agency Staff & Casual Paymts            ,2260,09/11/2016,R,HAYS SPECIALIST RECRUITM'T LTD
239,Central Services,SupS Strategic Finance,Treasury & Insurance,E06222,Employees                     ,Direct Employee Expenses      ,AA17,Agency Staff & Casual Paymts            ,2260,16/11/2016,R,HAYS SPECIALIST RECRUITM'T LTD
240,Central Services,SupS Strategic Finance,Treasury & Insurance,E06222,Employees                     ,Direct Employee Expenses      ,AA17,Agency Staff & Casual Paymts            ,2260,04/11/2016,R,HAYS SPECIALIST RECRUITM'T LTD
241,Central Services,SupS Strategic Finance,Treasury & Insurance,E06222,Supplies & Services           ,Comms and Computing           ,DG02,Software Licences                       ,2400,03/11/2016,R,LOGOTECH SYSTEMS              
242,Central Services,SupS Strategic Finance,Treasury & Insurance,E06222,Supplies & Services           ,Comms and Computing           ,DG02,Software Licences                       ,2880.4,08/09/2016,R,LOGOTECH SYSTEMS              
243,Central Services,GENERATED ACCOUNT,Parking Cash Collect'n Contrct,E06225,Third Party Payments          ,Private Contractors           ,EH02,Miscellaneous Hired Services            ,11638.41,31/10/2016,R,JADE SECURITY SERVICE LTD     
244,Central Services,GENERATED ACCOUNT,Establishments' Cash Collect'n,E06226,Third Party Payments          ,Private Contractors           ,EH02,Miscellaneous Hired Services            ,530.1,31/10/2016,R,JADE SECURITY SERVICE LTD     
245,Central Services,Registration of electors,Electoral Registration,E10285,Supplies & Services           ,Prntng Stnry Gen Off Exp      ,DE01,External Printing                       ,3884.17,27/10/2016,R,FINANCIAL DATA MANAGEMENT PLC 
246,Central Services,Registration of electors,Electoral Registration,E10285,Supplies & Services           ,Comms and Computing           ,DG04,Postage - General                       ,1094.46,07/11/2016,R,ROYAL MAIL GROUP LTD          
247,Central Services,Registration of electors,Electoral Registration,E10285,Supplies & Services           ,Comms and Computing           ,DG04,Postage - General                       ,1712.37,31/10/2016,R,FINANCIAL DATA MANAGEMENT PLC 
248,Central Services,SupS Legal,Shared Legal Service,E10288,Employees                     ,Indirect Employee Expenses    ,AB57,EXTERNAL TRAINING COSTS                 ,500,13/10/2016,R,REDACTED
249,Central Services,SupS Legal,Shared Legal Service,E10288,Employees                     ,Indirect Employee Expenses    ,AB57,EXTERNAL TRAINING COSTS                 ,875,24/10/2016,R,LEXIS NEXIS                   
250,Central Services,SupS Legal,Shared Legal Service,E10288,Supplies & Services           ,Prntng Stnry Gen Off Exp      ,DE30,General Office Expense                  ,954.1,31/10/2016,R,RESTORE PLC                   
251,Central Services,SupS Legal,Shared Legal Service,E10288,Supplies & Services           ,Services                      ,DF95,Services from Provider                  ,2175,30/09/2016,R,LEWIS SILKIN LLP              
252,Central Services,SupS Legal,Shared Legal Service,E10288,Supplies & Services           ,Services                      ,DF95,Services from Provider                  ,9151,31/10/2016,R,LEWIS SILKIN LLP              
253,Central Services,SupS Legal,Shared Legal Service,E10288,Supplies & Services           ,Services                      ,DF95,Services from Provider                  ,9480,30/09/2016,R,LEWIS SILKIN LLP              
254,Central Services,SupS Legal,Shared Legal Service,E10288,Supplies & Services           ,Comms and Computing           ,DG04,Postage - General                       ,658,28/10/2016,R,NEOPOST FINANCE LIMITED       
255,Central Services,SupS Legal,Shared Legal Service,E10288,Supplies & Services           ,Comms and Computing           ,DG04,Postage - General                       ,787,10/11/2016,R,ROYAL MAIL GROUP LTD          
256,Central Services,SupS Legal,Shared Legal Service,E10288,Supplies & Services           ,Comms and Computing           ,DG04,Postage - General                       ,798,27/10/2016,R,DX NETWORK SERVICES LTD       
257,Central Services,SupS Legal,Richmond Legal,E10289,Supplies & Services           ,Services                      ,DF11,Counsel's Fees                          ,1750,31/10/2016,R,REDACTED
258,Central Services,SupS Legal,Richmond Legal,E10289,Supplies & Services           ,Services                      ,DF95,Services from Provider                  ,1273,14/11/2016,R,OLSWANG LLP                   
259,Central Services,SupS Legal,Richmond Legal,E10289,Supplies & Services           ,Services                      ,DF95,Services from Provider                  ,5419,31/10/2016,R,SHARPE PRITCHARD SOLICITORS   
260,Central Services,SupS Legal,Richmond Legal,E10289,Supplies & Services           ,Services                      ,DF95,Services from Provider                  ,5857,28/10/2016,R,REDACTED
261,Central Services,SupS Legal,Richmond Legal,E10289,Supplies & Services           ,Services                      ,DF95,Services from Provider                  ,9564,29/09/2016,R,REDACTED
262,Central Services,SupS Legal,LBR INCOME,E10290,Third Party Payments          ,Other Local Authorities       ,EB01,Payments to OLAs                        ,9420,10/11/2016,R,L.B OF RICHMOND UPON THAMES   
263,Central Services,SupS Legal,K&S Shared Legal,E10291,Third Party Payments          ,Other Local Authorities       ,EB01,Payments to OLAs                        ,887.72,10/11/2016,R,LONDON BOROUGH OF SUTTON      
264,Central Services,SupS Legal,K&S Shared Legal,E10291,Third Party Payments          ,Other Local Authorities       ,EB01,Payments to OLAs                        ,1905,10/11/2016,R,SUTTON HOUSING PARTNERSHIP LTD
265,Central Services,SupS Legal,K&S Shared Legal,E10291,Third Party Payments          ,Other Local Authorities       ,EB01,Payments to OLAs                        ,6050,10/11/2016,R,KINGSTON CORPORATION          
266,Central Services,SupS Legal,Kingston Legal                          ,E10292,Supplies & Services           ,Services                      ,DF11,Counsel's Fees                          ,900,30/10/2016,R,REDACTED
267,Central Services,SupS Legal,Kingston Legal                          ,E10292,Supplies & Services           ,Services                      ,DF11,Counsel's Fees                          ,1250,31/10/2016,R,REDACTED
268,Central Services,SupS Legal,Kingston Legal                          ,E10292,Supplies & Services           ,Services                      ,DF11,Counsel's Fees                          ,1250,09/11/2016,R,REDACTED
269,Central Services,SupS Legal,Kingston Legal                          ,E10292,Supplies & Services           ,Services                      ,DF11,Counsel's Fees                          ,1550,07/10/2016,R,REDACTED
270,Central Services,SupS Legal,Sutton Legal                            ,E10293,Supplies & Services           ,Services                      ,DF11,Counsel's Fees                          ,500,12/10/2016,R,REDACTED
271,Central Services,SupS Legal,Sutton Legal                            ,E10293,Supplies & Services           ,Services                      ,DF11,Counsel's Fees                          ,500,12/09/2016,R,REDACTED
272,Central Services,SupS Legal,Sutton Legal                            ,E10293,Supplies & Services           ,Services                      ,DF11,Counsel's Fees                          ,500,09/11/2016,R,REDACTED
273,Central Services,SupS Legal,Sutton Legal                            ,E10293,Supplies & Services           ,Services                      ,DF11,Counsel's Fees                          ,505,07/10/2016,R,REDACTED
274,Central Services,SupS Legal,Sutton Legal                            ,E10293,Supplies & Services           ,Services                      ,DF11,Counsel's Fees                          ,510,02/11/2016,R,REDACTED
275,Central Services,SupS Legal,Sutton Legal                            ,E10293,Supplies & Services           ,Services                      ,DF11,Counsel's Fees                          ,510,17/10/2016,R,REDACTED
276,Central Services,SupS Legal,Sutton Legal                            ,E10293,Supplies & Services           ,Services                      ,DF11,Counsel's Fees                          ,510,28/09/2016,R,REDACTED
277,Central Services,SupS Legal,Sutton Legal                            ,E10293,Supplies & Services           ,Services                      ,DF11,Counsel's Fees                          ,520,05/10/2016,R,REDACTED
278,Central Services,SupS Legal,Sutton Legal                            ,E10293,Supplies & Services           ,Services                      ,DF11,Counsel's Fees                          ,520,14/11/2016,R,REDACTED
279,Central Services,SupS Legal,Sutton Legal                            ,E10293,Supplies & Services           ,Services                      ,DF11,Counsel's Fees                          ,675,08/11/2016,R,REDACTED
280,Central Services,SupS Legal,Sutton Legal                            ,E10293,Supplies & Services           ,Services                      ,DF11,Counsel's Fees                          ,750,04/11/2016,R,REDACTED
281,Central Services,SupS Legal,Sutton Legal                            ,E10293,Supplies & Services           ,Services                      ,DF11,Counsel's Fees                          ,805,02/11/2016,R,REDACTED
282,Central Services,SupS Legal,Sutton Legal                            ,E10293,Supplies & Services           ,Services                      ,DF11,Counsel's Fees                          ,805,31/10/2016,R,REDACTED
283,Central Services,SupS Legal,Sutton Legal                            ,E10293,Supplies & Services           ,Services                      ,DF11,Counsel's Fees                          ,810,02/11/2016,R,REDACTED
284,Central Services,SupS Legal,Sutton Legal                            ,E10293,Supplies & Services           ,Services                      ,DF11,Counsel's Fees                          ,810,28/09/2016,R,REDACTED
285,Central Services,SupS Legal,Sutton Legal                            ,E10293,Supplies & Services           ,Services                      ,DF11,Counsel's Fees                          ,900,09/05/2016,R,REDACTED
286,Central Services,SupS Legal,Sutton Legal                            ,E10293,Supplies & Services           ,Services                      ,DF11,Counsel's Fees                          ,940,30/09/2016,R,REDACTED
287,Central Services,SupS Legal,Sutton Legal                            ,E10293,Supplies & Services           ,Services                      ,DF11,Counsel's Fees                          ,1030,01/10/2016,R,REDACTED
288,Central Services,SupS Legal,Sutton Legal                            ,E10293,Supplies & Services           ,Services                      ,DF11,Counsel's Fees                          ,1130,26/08/2016,R,REDACTED
289,Central Services,SupS Legal,Sutton Legal                            ,E10293,Supplies & Services           ,Services                      ,DF11,Counsel's Fees                          ,1250,10/11/2016,R,REDACTED
290,Central Services,SupS Legal,Sutton Legal                            ,E10293,Supplies & Services           ,Services                      ,DF11,Counsel's Fees                          ,1250,20/10/2016,R,REDACTED
291,Central Services,SupS Legal,Sutton Legal                            ,E10293,Supplies & Services           ,Services                      ,DF11,Counsel's Fees                          ,1305,22/09/2016,R,REDACTED
292,Central Services,SupS Legal,Sutton Legal                            ,E10293,Supplies & Services           ,Services                      ,DF11,Counsel's Fees                          ,1402,14/09/2016,R,REDACTED
293,Central Services,SupS Legal,Sutton Legal                            ,E10293,Supplies & Services           ,Services                      ,DF11,Counsel's Fees                          ,1440,30/09/2016,R,REDACTED
294,Central Services,SupS Legal,Sutton Legal                            ,E10293,Supplies & Services           ,Services                      ,DF11,Counsel's Fees                          ,1500,08/11/2016,R,REDACTED
295,Central Services,SupS Legal,Sutton Legal                            ,E10293,Supplies & Services           ,Services                      ,DF11,Counsel's Fees                          ,1625,28/10/2016,R,JONATHAN MOFFETT              
296,Central Services,SupS Legal,Sutton Legal                            ,E10293,Supplies & Services           ,Services                      ,DF11,Counsel's Fees                          ,2610,30/09/2016,R,REDACTED
297,Central Services,SupS Legal,Sutton Legal                            ,E10293,Supplies & Services           ,Services                      ,DF11,Counsel's Fees                          ,5906.25,29/09/2016,R,REDACTED
298,Central Services,SupS Legal,Sutton Legal                            ,E10293,Supplies & Services           ,Services                      ,DF11,Counsel's Fees                          ,14563,11/10/2016,R,REDACTED
299,Central Services,SupS Legal,Sutton Legal                            ,E10293,Supplies & Services           ,Services                      ,DF14,Doctors and Other Fees                  ,540,21/09/2016,R,REDACTED
300,Central Services,SupS Legal,Sutton Legal                            ,E10293,Supplies & Services           ,Services                      ,DF14,Doctors and Other Fees                  ,902,11/11/2016,R,REDACTED
301,Central Services,SupS Legal,Sutton Legal                            ,E10293,Supplies & Services           ,Services                      ,DF14,Doctors and Other Fees                  ,1434,31/08/2016,R,CARTER BROWN THE EXPERT SERV  
302,Central Services,SupS Legal,Sutton Legal                            ,E10293,Supplies & Services           ,Services                      ,DF14,Doctors and Other Fees                  ,1500,31/05/2016,R,CAMBRIDGE LONDON GROUP LIMITED
303,Central Services,SupS Legal,Sutton Legal                            ,E10293,Supplies & Services           ,Services                      ,DF14,Doctors and Other Fees                  ,1741.2,23/11/2016,R,EXPERT IN MIND                
304,Central Services,SupS Legal,Sutton Legal                            ,E10293,Supplies & Services           ,Services                      ,DF95,Services from Provider                  ,816,02/09/2016,R,REDACTED
305,Central Services,SupS Legal,Sutton Legal                            ,E10293,Supplies & Services           ,Services                      ,DF95,Services from Provider                  ,929.1,25/10/2016,R,UBIQUS UK LTD                 
306,Central Services,SupS Legal,Sutton Legal                            ,E10293,Supplies & Services           ,Services                      ,DF95,Services from Provider                  ,1500,28/01/2016,R,REDACTED
307,Central Services,SupS Legal,Sutton Legal                            ,E10293,Supplies & Services           ,Services                      ,DF95,Services from Provider                  ,2998.5,27/09/2016,R,REDACTED
308,Central Services,SupS Legal,Sutton Legal                            ,E10293,Supplies & Services           ,Services                      ,DF95,Services from Provider                  ,3534,10/10/2016,R,REDACTED
309,Central Services,SupS Legal,Sutton Legal                            ,E10293,Supplies & Services           ,Services                      ,DF95,Services from Provider                  ,9125,02/09/2016,R,REDACTED
310,Central Services,SupS Legal,Achieving for Children (AFC),E10295,Supplies & Services           ,Services                      ,DF11,Counsel's Fees                          ,520,02/11/2016,R,REDACTED
311,Central Services,SupS Legal,Achieving for Children (AFC),E10295,Supplies & Services           ,Services                      ,DF11,Counsel's Fees                          ,520,07/10/2016,R,REDACTED
312,Central Services,SupS Legal,Achieving for Children (AFC),E10295,Supplies & Services           ,Services                      ,DF11,Counsel's Fees                          ,570,17/11/2016,R,REDACTED
313,Central Services,SupS Legal,Achieving for Children (AFC),E10295,Supplies & Services           ,Services                      ,DF11,Counsel's Fees                          ,1135,19/10/2016,R,REDACTED
314,Central Services,SupS Legal,Achieving for Children (AFC),E10295,Supplies & Services           ,Services                      ,DF11,Counsel's Fees                          ,1200,28/10/2016,R,REDACTED
315,Central Services,SupS Legal,Achieving for Children (AFC),E10295,Supplies & Services           ,Services                      ,DF11,Counsel's Fees                          ,1260,19/10/2016,R,REDACTED
316,Central Services,SupS Legal,Achieving for Children (AFC),E10295,Supplies & Services           ,Services                      ,DF11,Counsel's Fees                          ,2800,02/11/2016,R,REDACTED
317,Central Services,SupS Legal,Achieving for Children (AFC),E10295,Supplies & Services           ,Services                      ,DF11,Counsel's Fees                          ,4715.82,10/10/2016,R,REDACTED
318,Central Services,SupS Legal,Achieving for Children (AFC),E10295,Supplies & Services           ,Services                      ,DF14,Doctors and Other Fees                  ,522.75,28/09/2016,R,CARTER BROWN THE EXPERT SERV  
319,Central Services,SupS Legal,Achieving for Children (AFC),E10295,Supplies & Services           ,Services                      ,DF14,Doctors and Other Fees                  ,538.2,23/09/2016,R,BISBEY LTD                    
320,Central Services,SupS Legal,Achieving for Children (AFC),E10295,Supplies & Services           ,Services                      ,DF14,Doctors and Other Fees                  ,564,25/10/2016,R,ORCHID CELLMARK LTD           
321,Central Services,SupS Legal,Achieving for Children (AFC),E10295,Supplies & Services           ,Services                      ,DF14,Doctors and Other Fees                  ,1080,08/11/2016,R,REDACTED
322,Central Services,SupS Legal,Achieving for Children (AFC),E10295,Supplies & Services           ,Services                      ,DF14,Doctors and Other Fees                  ,1206,01/08/2016,R,REDACTED
323,Central Services,SupS Legal,Achieving for Children (AFC),E10295,Supplies & Services           ,Services                      ,DF14,Doctors and Other Fees                  ,4696,28/10/2016,R,CHILD & FAMILY SOLUTIONS LTD  
324,Central Services,SupS Legal,Achieving for Children (AFC),E10295,Supplies & Services           ,Services                      ,DF14,Doctors and Other Fees                  ,6440,12/10/2016,R,PH SOCIAL WORK LTD            
325,Central Services,SupS Legal,Achieving for Children (AFC),E10295,Supplies & Services           ,Services                      ,DF95,Services from Provider                  ,542.5,21/09/2016,R,REDACTED
326,Central Services,SupS Legal,Achieving for Children (AFC),E10295,Supplies & Services           ,Services                      ,DF95,Services from Provider                  ,682.5,01/08/2016,R,REDACTED
327,Central Services,SupS Legal,Achieving for Children (AFC),E10295,Supplies & Services           ,Services                      ,DF95,Services from Provider                  ,1770.75,08/07/2016,R,REDACTED
328,Central Services,SupS Legal,Achieving for Children (AFC),E10295,Supplies & Services           ,Services                      ,DF95,Services from Provider                  ,4051.4,31/07/2016,R,SHARPE PRITCHARD SOLICITORS   
329,Central Services,SupS Legal,Wandsworth Project(SLLP),E10296,Supplies & Services           ,Services                      ,DF95,Services from Provider                  ,6611.3,31/10/2016,R,BROWNE JACOBSON               
330,Central Services,SupS Legal,Wandsworth Project(SLLP),E10296,Supplies & Services           ,Comms and Computing           ,DG02,Software Licences                       ,4400,27/10/2016,R,LEXIS NEXIS                   
331,Central Services,SupS IT,Social Care Info System (SCI)           ,E14357,Employees                     ,Direct Employee Expenses      ,AA17,Agency Staff & Casual Paymts            ,1575,30/10/2016,R,HAMPTON'S RESOURCING          
332,Central Services,SupS IT,Social Care Info System (SCI)           ,E14357,Employees                     ,Direct Employee Expenses      ,AA17,Agency Staff & Casual Paymts            ,1575,23/10/2016,R,HAMPTON'S RESOURCING          
333,Central Services,SupS IT,Social Care Info System (SCI)           ,E14357,Employees                     ,Direct Employee Expenses      ,AA17,Agency Staff & Casual Paymts            ,1575,16/10/2016,R,HAMPTON'S RESOURCING          
334,Central Services,SupS IT,Social Care Info System (SCI)           ,E14357,Employees                     ,Direct Employee Expenses      ,AA17,Agency Staff & Casual Paymts            ,1575,14/08/2016,R,HAMPTON'S RESOURCING          
335,Central Services,SupS IT,Social Care Info System (SCI)           ,E14357,Employees                     ,Direct Employee Expenses      ,AA17,Agency Staff & Casual Paymts            ,1975,04/11/2016,R,NUMBER 10 INTERIM LTD         
336,Central Services,SupS IT,Social Care Info System (SCI)           ,E14357,Employees                     ,Direct Employee Expenses      ,AA17,Agency Staff & Casual Paymts            ,2500,26/09/2016,R,NUMBER 10 INTERIM LTD         
337,Central Services,SupS IT,Social Care Info System (SCI)           ,E14357,Employees                     ,Direct Employee Expenses      ,AA17,Agency Staff & Casual Paymts            ,4850,04/11/2016,R,NUMBER 10 INTERIM LTD         
338,Central Services,SupS IT,Social Care Info System (SCI)           ,E14357,Employees                     ,Direct Employee Expenses      ,AA17,Agency Staff & Casual Paymts            ,6050,07/11/2016,R,NUMBER 10 INTERIM LTD         
339,Central Services,SupS IT,Social Care Info System (SCI)           ,E14357,Employees                     ,Direct Employee Expenses      ,AA17,Agency Staff & Casual Paymts            ,7500,04/11/2016,R,NUMBER 10 INTERIM LTD         
340,Central Services,SupS IT,Social Care Info System (SCI)           ,E14357,Employees                     ,Direct Employee Expenses      ,AA17,Agency Staff & Casual Paymts            ,8550,08/09/2016,R,MILESTONES COMMUNICATIONS LTD 
341,Central Services,SupS IT,Social Care Info System (SCI)           ,E14357,Employees                     ,Direct Employee Expenses      ,AA17,Agency Staff & Casual Paymts            ,9430,02/11/2016,R,REDACTED
342,Central Services,SupS IT,Social Care Info System (SCI)           ,E14357,Supplies & Services           ,Services                      ,DF03,Consultants                             ,12506.55,02/09/2016,R,INTERQUEST GROUP UK LIMITED   
343,Central Services,SupS IT,Corp Saving-Print Strategy,E14359,Supplies & Services           ,Equip Furniture/Materials     ,DA77,Photocopier Rental            ,7255.93,24/10/2016,R,ALTODIGITAL NETWORKS LTD      
344,Central Services,SupS IT,Corp Saving-Print Strategy,E14359,Supplies & Services           ,Equip Furniture/Materials     ,DA77,Photocopier Rental            ,49735.72,24/10/2016,R,ALTODIGITAL NETWORKS LTD      
345,Central Services,SupS IT,Corp Saving-Print Strategy,E14359,Supplies & Services           ,Prntng Stnry Gen Off Exp      ,DE06,Multi-Functional Printers     ,36401.75,24/10/2016,R,ALTODIGITAL NETWORKS LTD      
346,Central Services,SupS IT,BI IT Projects,E14360,Employees                     ,Direct Employee Expenses      ,AA17,Agency Staff & Casual Paymts            ,10080,01/11/2016,R,MERIDIAN BUSINESS SUPPORT LTD 
347,CS -Oth Operating Inc & Expend,SupS Codes No Longer Used,No longer used,E14362,Supplies & Services           ,Services                      ,DF95,Services from Provider                  ,600,30/09/2016,R,ASSOC OF PUBLIC AUTHORITY DEP 
348,Central Services,SupS IT,Systems & Projects,E14366,Supplies & Services           ,Comms and Computing           ,DG50,Other IT Expenditure                    ,12000,25/10/2016,R,DUE NORTH LTD                 
349,Central Services,SupS IT,Distributed Services,E14368,Supplies & Services           ,Comms and Computing           ,DG63,Software Licences - Data                ,3325,24/10/2016,R,NET-CTRL                      
350,Central Services,SupS IT,Distributed Services,E14368,Supplies & Services           ,Comms and Computing           ,DG63,Software Licences - Data                ,13667,17/11/2016,R,FORDWAY LTD                   
351,Central Services,SupS IT,Distributed Services,E14368,Supplies & Services           ,Comms and Computing           ,DG65,Application Licences          ,653.54,24/10/2016,R,NET-CTRL                      
352,Central Services,SupS IT,Distributed Services,E14368,Supplies & Services           ,Comms and Computing           ,DG65,Application Licences          ,815,24/10/2016,R,NET-CTRL                      
353,Central Services,SupS IT,Distributed Services,E14368,Supplies & Services           ,Comms and Computing           ,DG65,Application Licences          ,2032,24/10/2016,R,NET-CTRL                      
354,Central Services,SupS IT,Distributed Services,E14368,Supplies & Services           ,Comms and Computing           ,DG65,Application Licences          ,2535.43,24/10/2016,R,NET-CTRL                      
355,Central Services,SupS IT,Distributed Services,E14368,Supplies & Services           ,Comms and Computing           ,DG65,Application Licences          ,9922,24/10/2016,R,NET-CTRL                      
356,Central Services,SupS IT,Distributed Services,E14368,Supplies & Services           ,Comms and Computing           ,DG65,Application Licences          ,11338.7,24/10/2016,R,NET-CTRL                      
357,Central Services,SupS IT,Corp Saving-IT Consolidation,E14370,Premises Related Expenditure  ,RepairsAlterations&MtceOfBldgs,BA03,DDM - Mechanical                        ,763.36,24/11/2016,R,FUTURE TECH                   
358,Central Services,SupS IT,Corp Saving-IT Consolidation,E14370,Premises Related Expenditure  ,RepairsAlterations&MtceOfBldgs,BA03,DDM - Mechanical                        ,889.68,24/11/2016,R,FUTURE TECH                   
359,Central Services,SupS IT,Corp Saving-IT Consolidation,E14370,Premises Related Expenditure  ,RepairsAlterations&MtceOfBldgs,BA29,Build Maint Mgt Fees                    ,1446.88,28/10/2016,R,UNIQUE OFFICE SOLUTIONS LTD   
360,Central Services,SupS IT,Corp Saving-IT Consolidation,E14370,Premises Related Expenditure  ,RepairsAlterations&MtceOfBldgs,BA29,Build Maint Mgt Fees                    ,1790,28/10/2016,R,UNIQUE OFFICE SOLUTIONS LTD   
361,Central Services,SupS IT,No longer used,E14371,Employees                     ,Direct Employee Expenses      ,AA17,Agency Staff & Casual Paymts            ,24000,01/11/2016,R,MILESTONES COMMUNICATIONS LTD 
362,Central Services,SupS IT,CS Procurement,E14372,Employees                     ,Direct Employee Expenses      ,AA17,Agency Staff & Casual Paymts            ,1980,20/10/2016,R,HAYS SPECIALIST RECRUITM'T LTD
363,Central Services,SupS IT,CS Procurement,E14372,Employees                     ,Direct Employee Expenses      ,AA17,Agency Staff & Casual Paymts            ,2475,06/10/2016,R,HAYS SPECIALIST RECRUITM'T LTD
364,Central Services,SupS IT,CS Procurement,E14372,Employees                     ,Direct Employee Expenses      ,AA17,Agency Staff & Casual Paymts            ,2475,26/10/2016,R,HAYS SPECIALIST RECRUITM'T LTD
365,Central Services,SupS IT,CS Procurement,E14372,Employees                     ,Direct Employee Expenses      ,AA17,Agency Staff & Casual Paymts            ,2635.75,16/11/2016,R,HAYS SPECIALIST RECRUITM'T LTD
366,Central Services,SupS IT,CS Procurement,E14372,Employees                     ,Direct Employee Expenses      ,AA17,Agency Staff & Casual Paymts            ,2636.25,21/09/2016,R,HAYS SPECIALIST RECRUITM'T LTD
367,Central Services,SupS IT,CS Procurement,E14372,Employees                     ,Direct Employee Expenses      ,AA17,Agency Staff & Casual Paymts            ,2636.25,09/11/2016,R,HAYS SPECIALIST RECRUITM'T LTD
368,Cultural Env Reg&Plan Services,Housing Standards,Shared Regulatory Service Proj,G00091,Employees                     ,Direct Employee Expenses      ,AA17,Agency Staff & Casual Paymts            ,3361.75,09/11/2016,R,HAYS SPECIALIST RECRUITM'T LTD
369,Cultural Env Reg&Plan Services,Housing Standards,Shared Regulatory Service Proj,G00091,Employees                     ,Direct Employee Expenses      ,AA17,Agency Staff & Casual Paymts            ,3361.75,16/11/2016,R,HAYS SPECIALIST RECRUITM'T LTD
370,Cultural Env Reg&Plan Services,Housing Standards,Shared Regulatory Service Proj,G00091,Employees                     ,Direct Employee Expenses      ,AA17,Agency Staff & Casual Paymts            ,3361.75,02/11/2016,R,HAYS SPECIALIST RECRUITM'T LTD
371,Cultural Env Reg&Plan Services,Housing Standards,Shared Regulatory Service Proj,G00091,Employees                     ,Direct Employee Expenses      ,AA17,Agency Staff & Casual Paymts            ,3361.75,23/11/2016,R,HAYS SPECIALIST RECRUITM'T LTD
372,Cultural Env Reg&Plan Services,Mgt & Support (Env),Senior Mgt. - E.S.C.,G00100,Employees                     ,Indirect Employee Expenses    ,AB02,Recruitment Adverts                     ,2800,25/11/2016,R,GATENBY SANDERSON LIMITED     
373,Cultural Env Reg&Plan Services,Mgt & Support (Env),Senior Mgt. - E.S.C.,G00100,Employees                     ,Indirect Employee Expenses    ,AB02,Recruitment Adverts                     ,4200,17/11/2016,R,GATENBY SANDERSON LIMITED     
374,Highways & Transport Services,Hwys/Rds (struct) not split,Surf Water Drainage,G00123,Third Party Payments          ,Private Contractors           ,EH56,Carriageway/Fway Maint                  ,675,31/10/2016,R,FM CONWAY LTD                 
375,Highways & Transport Services,Repair prin/oth rds not split,Walk Sheets,G00127,Third Party Payments          ,Private Contractors           ,EH10,Contract Payments                       ,3373.53,02/11/2016,R,FM CONWAY LTD                 
376,Highways & Transport Services,Repair prin/oth rds not split,Walk Sheets,G00127,Third Party Payments          ,Private Contractors           ,EH56,Carriageway/Fway Maint                  ,4800,02/11/2016,R,FM CONWAY LTD                 
377,Highways & Transport Services,Repair prin/oth rds not split,Walk Sheets,G00127,Third Party Payments          ,Private Contractors           ,EH56,Carriageway/Fway Maint                  ,11826.71,11/11/2016,R,FM CONWAY LTD                 
378,Highways & Transport Services,Repair prin/oth rds not split,Walk Sheets,G00127,Third Party Payments          ,Private Contractors           ,EH56,Carriageway/Fway Maint                  ,28913.08,02/11/2016,R,FM CONWAY LTD                 
379,Highways & Transport Services,Winter Maintenance.,Winter Maintenance,G00150,Third Party Payments          ,Private Contractors           ,EH10,Contract Payments                       ,1250,04/10/2016,R,MARTIN SACHS ASSOCIATES LTD   
380,Highways & Transport Services,Winter Maintenance.,Winter Maintenance,G00150,Third Party Payments          ,Private Contractors           ,EH56,Carriageway/Fway Maint                  ,3035,11/11/2016,R,FM CONWAY LTD                 
381,Highways & Transport Services,Saf mtc prin/oth rds not split,Traffic Signs.,G00160,Third Party Payments          ,Private Contractors           ,EH01,Miscellaneous Agency Services           ,507.53,02/11/2016,R,FM CONWAY LTD                 
382,Highways & Transport Services,Saf mtc prin/oth rds not split,Traffic Signs.,G00160,Third Party Payments          ,Private Contractors           ,EH01,Miscellaneous Agency Services           ,1000,02/11/2016,R,FM CONWAY LTD                 
383,Highways & Transport Services,Saf mtc prin/oth rds not split,Traffic Signs.,G00160,Third Party Payments          ,Private Contractors           ,EH01,Miscellaneous Agency Services           ,1142.22,02/11/2016,R,KIER INTEGRATED SERVICES LTD  
384,Highways & Transport Services,Saf mtc prin/oth rds not split,Traffic Signs.,G00160,Third Party Payments          ,Private Contractors           ,EH01,Miscellaneous Agency Services           ,1500,02/11/2016,R,KIER INTEGRATED SERVICES LTD  
385,Highways & Transport Services,Saf mtc prin/oth rds not split,Traffic Signs.,G00160,Third Party Payments          ,Private Contractors           ,EH01,Miscellaneous Agency Services           ,1669,06/10/2016,R,UK POWER NETWORKS (OPERATIONS)
386,Highways & Transport Services,Saf mtc prin/oth rds not split,Traffic Signs.,G00160,Third Party Payments          ,Private Contractors           ,EH01,Miscellaneous Agency Services           ,1770.32,31/10/2016,R,FM CONWAY LTD                 
387,Highways & Transport Services,Saf mtc prin/oth rds not split,Traffic Signs.,G00160,Third Party Payments          ,Private Contractors           ,EH02,Miscellaneous Hired Services            ,1132.85,02/11/2016,R,FM CONWAY LTD                 
388,Highways & Transport Services,0,TRAF & HWYS CAPITAL PROJECTS,G00210,Supplies & Services           ,Services                      ,DF05,Surveys (General)                       ,23191.48,31/10/2016,R,HIGHWAY SURVEYORS             
389,Highways & Transport Services,Transport Plg/Policy/Strategy,CPZ implementation & Consultat,G00211,Supplies & Services           ,Services                      ,DF02,Misc Advertising/Publicity              ,528,28/10/2016,R,NEWSQUEST MEDIA GROUP LTD     
390,Highways & Transport Services,Transport Plg/Policy/Strategy,CPZ implementation & Consultat,G00211,Third Party Payments          ,Private Contractors           ,EH56,Carriageway/Fway Maint                  ,531.76,11/11/2016,R,FM CONWAY LTD                 
391,Highways & Transport Services,Transport Plg/Policy/Strategy,CPZ implementation & Consultat,G00211,Third Party Payments          ,Private Contractors           ,EH56,Carriageway/Fway Maint                  ,959.57,02/11/2016,R,FM CONWAY LTD                 
392,Highways & Transport Services,Transport Plg/Policy/Strategy,CPZ implementation & Consultat,G00211,Third Party Payments          ,Private Contractors           ,EH56,Carriageway/Fway Maint                  ,2325.42,11/11/2016,R,FM CONWAY LTD                 
393,Highways & Transport Services,Structural Maintenance,Bushy/Waite/Goat Bridges TFL            ,G00215,Premises Related Expenditure  ,RepairsAlterations&MtceOfBldgs,BA59,Periodic Inspections                    ,6368.17,29/09/2016,R,NETWORK RAIL INFRASTRUCTURE LT
394,Highways & Transport Services,Street Lighting.,Street Lighting .,G00260,Premises Related Expenditure  ,Energy Costs                  ,BB02,Electricity                             ,23304.18,07/11/2016,R,SCOTTISH POWER                
395,Highways & Transport Services,Street Lighting.,Street Lighting .,G00260,Premises Related Expenditure  ,Energy Costs                  ,BB02,Electricity                             ,30105.29,07/11/2016,R,SCOTTISH POWER                
396,Highways & Transport Services,Street Lighting.,Street Lighting .,G00260,Third Party Payments          ,Private Contractors           ,EH01,Miscellaneous Agency Services           ,500,03/11/2016,R,WIMBLEDON TREE SURGEONS       
397,Highways & Transport Services,Street Lighting.,Street Lighting .,G00260,Third Party Payments          ,Private Contractors           ,EH01,Miscellaneous Agency Services           ,500,03/11/2016,R,WIMBLEDON TREE SURGEONS       
398,Highways & Transport Services,Street Lighting.,Street Lighting .,G00260,Third Party Payments          ,Private Contractors           ,EH01,Miscellaneous Agency Services           ,775,17/11/2016,R,UK POWER NETWORKS (OPERATIONS)
399,Highways & Transport Services,Street Lighting.,Street Lighting .,G00260,Third Party Payments          ,Private Contractors           ,EH01,Miscellaneous Agency Services           ,1100,05/09/2016,R,UK POWER NETWORKS (OPERATIONS)
400,Highways & Transport Services,Street Lighting.,Street Lighting .,G00260,Third Party Payments          ,Private Contractors           ,EH01,Miscellaneous Agency Services           ,1381,07/11/2016,R,UK POWER NETWORKS (OPERATIONS)
401,Highways & Transport Services,Street Lighting.,Street Lighting .,G00260,Third Party Payments          ,Private Contractors           ,EH01,Miscellaneous Agency Services           ,1541,07/11/2016,R,UK POWER NETWORKS (OPERATIONS)
402,Highways & Transport Services,Street Lighting.,Street Lighting .,G00260,Third Party Payments          ,Private Contractors           ,EH01,Miscellaneous Agency Services           ,1623.51,31/10/2016,R,FM CONWAY LTD                 
403,Highways & Transport Services,Street Lighting.,Street Lighting .,G00260,Third Party Payments          ,Private Contractors           ,EH01,Miscellaneous Agency Services           ,1648,07/11/2016,R,UK POWER NETWORKS (OPERATIONS)
404,Highways & Transport Services,Street Lighting.,Street Lighting .,G00260,Third Party Payments          ,Private Contractors           ,EH01,Miscellaneous Agency Services           ,1914.93,18/11/2016,R,FM CONWAY LTD                 
405,Highways & Transport Services,Street Lighting.,Street Lighting .,G00260,Third Party Payments          ,Private Contractors           ,EH01,Miscellaneous Agency Services           ,2055.15,02/11/2016,R,KIER INTEGRATED SERVICES LTD  
406,Highways & Transport Services,Street Lighting.,Street Lighting .,G00260,Third Party Payments          ,Private Contractors           ,EH01,Miscellaneous Agency Services           ,2112.51,02/11/2016,R,KIER INTEGRATED SERVICES LTD  
407,Highways & Transport Services,Street Lighting.,Street Lighting .,G00260,Third Party Payments          ,Private Contractors           ,EH01,Miscellaneous Agency Services           ,3130.3,31/10/2016,R,FM CONWAY LTD                 
408,Highways & Transport Services,Street Lighting.,Street Lighting .,G00260,Third Party Payments          ,Private Contractors           ,EH01,Miscellaneous Agency Services           ,4211.41,31/10/2016,R,FM CONWAY LTD                 
409,Highways & Transport Services,Street Lighting.,Street Lighting .,G00260,Third Party Payments          ,Private Contractors           ,EH01,Miscellaneous Agency Services           ,5448.41,02/11/2016,R,KIER INTEGRATED SERVICES LTD  
410,Highways & Transport Services,Street Lighting.,Street Lighting .,G00260,Third Party Payments          ,Private Contractors           ,EH01,Miscellaneous Agency Services           ,13737.1,11/10/2016,R,KIER INTEGRATED SERVICES LTD  
411,Highways & Transport Services,Off-street parking,Car Parks (Unloc),G00291,Third Party Payments          ,Private Contractors           ,EH02,Miscellaneous Hired Services            ,3666,31/10/2016,R,COBALT TELEPHONE TECHNOLOGIES 
412,Highways & Transport Services,Off-street parking,Peel Hse C P - Upper,G00303,Premises Related Expenditure  ,Rents                         ,BD01,NNDR LBM                      ,9801,08/11/2016,R,REDACTED
413,Highways & Transport Services,Road Safety Education,TFL CAPT SPEND (REV),G00326,Third Party Payments          ,Private Contractors           ,EH10,Contract Payments                       ,22545.23,01/11/2016,R,CYCLE CONFIDENT               
414,Highways & Transport Services,Parking Enforcement not split,Operational Running Costs,G00331,Supplies & Services           ,Equip Furniture/Materials     ,DA09,Equip-Purchases                         ,629,08/11/2016,R,PARKEON LTD                   
415,Highways & Transport Services,Parking Enforcement not split,Operational Running Costs,G00331,Supplies & Services           ,Equip Furniture/Materials     ,DA09,Equip-Purchases                         ,4000,22/11/2016,R,PARKEON LTD                   
416,Highways & Transport Services,Parking Enforcement not split,Operational Running Costs,G00331,Supplies & Services           ,Equip Furniture/Materials     ,DA09,Equip-Purchases                         ,14842,08/11/2016,R,PARKEON LTD                   
417,Highways & Transport Services,Parking Enforcement not split,Operational Running Costs,G00331,Supplies & Services           ,Prntng Stnry Gen Off Exp      ,DE01,External Printing                       ,1107.6,29/09/2016,R,LIBERTY PRINTERS (AR RF REDDIN
418,Highways & Transport Services,Parking Enforcement not split,Operational Running Costs,G00331,Supplies & Services           ,Prntng Stnry Gen Off Exp      ,DE01,External Printing                       ,2782,29/09/2016,R,LIBERTY PRINTERS (AR RF REDDIN
419,Highways & Transport Services,Parking Enforcement not split,Operational Running Costs,G00331,Supplies & Services           ,Prntng Stnry Gen Off Exp      ,DE01,External Printing                       ,2808,02/11/2016,R,NAGELS UK LTD                 
420,Highways & Transport Services,Parking Enforcement not split,Operational Running Costs,G00331,Supplies & Services           ,Prntng Stnry Gen Off Exp      ,DE01,External Printing                       ,7199.4,29/09/2016,R,LIBERTY PRINTERS (AR RF REDDIN
421,Highways & Transport Services,Parking Enforcement not split,Operational Running Costs,G00331,Supplies & Services           ,Services                      ,DF95,Services from Provider                  ,2882,26/10/2016,R,REDACTED
422,Highways & Transport Services,Parking Enforcement not split,Operational Running Costs,G00331,Supplies & Services           ,Comms and Computing           ,DG61,Computer Servs Special        ,590.16,31/10/2016,R,IMPERIAL CIVIL ENFORC.SOLUT.  
423,Highways & Transport Services,Parking Enforcement not split,Operational Running Costs,G00331,Supplies & Services           ,Comms and Computing           ,DG61,Computer Servs Special        ,750,31/10/2016,R,IMPERIAL CIVIL ENFORC.SOLUT.  
424,Highways & Transport Services,Hwys/Rds (struct) not split,Footpath Crossings.,G00390,Third Party Payments          ,Private Contractors           ,EH56,Carriageway/Fway Maint                  ,693,22/09/2016,R,UK POWER NETWORKS (OPERATIONS)
425,Highways & Transport Services,Hwys/Rds (struct) not split,Footpath Crossings.,G00390,Third Party Payments          ,Private Contractors           ,EH56,Carriageway/Fway Maint                  ,963.37,02/11/2016,R,FM CONWAY LTD                 
426,Highways & Transport Services,Hwys/Rds (struct) not split,Footpath Crossings.,G00390,Third Party Payments          ,Private Contractors           ,EH56,Carriageway/Fway Maint                  ,1424.09,02/11/2016,R,FM CONWAY LTD                 
427,Highways & Transport Services,Hwys/Rds (struct) not split,Footpath Crossings.,G00390,Third Party Payments          ,Private Contractors           ,EH56,Carriageway/Fway Maint                  ,2464.5,11/11/2016,R,FM CONWAY LTD                 
428,Highways & Transport Services,Hwys/Rds (struct) not split,Footpath Crossings.,G00390,Third Party Payments          ,Private Contractors           ,EH56,Carriageway/Fway Maint                  ,2865.05,11/11/2016,R,FM CONWAY LTD                 
429,Highways & Transport Services,Hwys/Rds (struct) not split,Footpath Crossings.,G00390,Third Party Payments          ,Private Contractors           ,EH56,Carriageway/Fway Maint                  ,4437.46,11/11/2016,R,FM CONWAY LTD                 
430,Highways & Transport Services,Hwys/Rds (struct) not split,Footpath Crossings.,G00390,Third Party Payments          ,Private Contractors           ,EH65,MH Clients                    ,693,22/09/2016,R,UK POWER NETWORKS (OPERATIONS)
431,Cultural Env Reg&Plan Services,Street Clean - Not highways,Street Cleansing (Inc. Gully),G00492,Supplies & Services           ,Equip Furniture/Materials     ,DA31,Waste Sacks & Bags                      ,1145.95,28/10/2016,R,IMPERIAL POLYTHENE PRODUCTS LT
432,Cultural Env Reg&Plan Services,Street Clean - Not highways,Street Cleansing (Inc. Gully),G00492,Supplies & Services           ,Equip Furniture/Materials     ,DA31,Waste Sacks & Bags                      ,2798.25,28/10/2016,R,IMPERIAL POLYTHENE PRODUCTS LT
433,Cultural Env Reg&Plan Services,Waste Disposal (not separated),Waste Disposal .,G00550,Third Party Payments          ,Private Contractors           ,EH04,C1 Viridor SLWP Landfill Contract       ,1230.96,31/10/2016,R,KINGSTON CORPORATION          
434,Cultural Env Reg&Plan Services,Waste Disposal (not separated),Waste Disposal .,G00550,Third Party Payments          ,Private Contractors           ,EH04,C1 Viridor SLWP Landfill Contract       ,25213.52,31/10/2016,R,KINGSTON CORPORATION          
435,Cultural Env Reg&Plan Services,Waste Disposal (not separated),Waste Disposal .,G00550,Third Party Payments          ,Private Contractors           ,EH04,C1 Viridor SLWP Landfill Contract       ,92145.36,31/10/2016,R,KINGSTON CORPORATION          
436,Cultural Env Reg&Plan Services,Waste Disposal (not separated),Waste Disposal .,G00550,Third Party Payments          ,Private Contractors           ,EH04,C1 Viridor SLWP Landfill Contract       ,268123.88,31/10/2016,R,KINGSTON CORPORATION          
437,Cultural Env Reg&Plan Services,Waste Disposal (not separated),Waste Disposal .,G00550,Third Party Payments          ,Other Agencies                ,EJ50,Link Courses                  ,538.97,27/10/2016,R,CITY OF LONDON CORPORATION    
438,Cultural Env Reg&Plan Services,Waste Disposal (not separated),Waste Disposal .,G00550,Third Party Payments          ,Other Agencies                ,EJ50,Link Courses                  ,3541.91,24/10/2016,R,CITY OF LONDON CORPORATION    
439,Cultural Env Reg&Plan Services,Waste Disposal (not separated),Waste Disposal .,G00550,Third Party Payments          ,Other Agencies                ,EJ50,Link Courses                  ,5000,27/10/2016,R,CITY OF LONDON CORPORATION    
440,Cultural Env Reg&Plan Services,Civic Amenity Sites,Garth Road Site,G00580,Premises Related Expenditure  ,RepairsAlterations&MtceOfBldgs,BA70,Maintenance of Weighbridge              ,7450,03/11/2016,R,PRECIA MOLEN UK LTD           
441,Cultural Env Reg&Plan Services,Civic Amenity Sites,Garth Road Site,G00580,Third Party Payments          ,Private Contractors           ,EH18,SLWP C3 Food Waste Gate Fees            ,6933.78,31/10/2016,R,KINGSTON CORPORATION          
442,Cultural Env Reg&Plan Services,Civic Amenity Sites,Garth Road Site,G00580,Third Party Payments          ,Private Contractors           ,EH61,Green Waste Disposal                    ,11344.03,31/10/2016,R,KINGSTON CORPORATION          
443,Cultural Env Reg&Plan Services,Civic Amenity Sites,Garth Road Site,G00580,Third Party Payments          ,Private Contractors           ,EH65,MH Clients                    ,517.99,31/10/2016,R,KINGSTON CORPORATION          
444,Cultural Env Reg&Plan Services,Recycling (Collection),Recycling Activities,G00640,Supplies & Services           ,Equip Furniture/Materials     ,DA32,Wheeled Bins                            ,950,18/11/2016,R,PLASTIC OMNIUM URBAN SYSTEMS  
445,Cultural Env Reg&Plan Services,Recycling (Collection),Recycling Activities,G00640,Supplies & Services           ,Equip Furniture/Materials     ,DA32,Wheeled Bins                            ,1428,15/11/2016,R,UK CONTAINER MAINTENANCE LTD  
446,Cultural Env Reg&Plan Services,Recycling (Collection),Recycling Activities,G00640,Supplies & Services           ,Equip Furniture/Materials     ,DA32,Wheeled Bins                            ,1700,09/11/2016,R,PLASTIC OMNIUM URBAN SYSTEMS  
447,Cultural Env Reg&Plan Services,Recycling (Collection),Recycling Activities,G00640,Supplies & Services           ,Equip Furniture/Materials     ,DA32,Wheeled Bins                            ,1985.5,02/11/2016,R,UK CONTAINER MAINTENANCE LTD  
448,Cultural Env Reg&Plan Services,Recycling (Collection),Recycling Activities,G00640,Supplies & Services           ,Equip Furniture/Materials     ,DA32,Wheeled Bins                            ,2517.5,22/11/2016,R,UK CONTAINER MAINTENANCE LTD  
449,Cultural Env Reg&Plan Services,Recycling (Collection),Recycling Activities,G00640,Supplies & Services           ,Equip Furniture/Materials     ,DA32,Wheeled Bins                            ,6368,09/11/2016,R,PLASTIC OMNIUM URBAN SYSTEMS  
450,Cultural Env Reg&Plan Services,Recycling (Collection),Recycling Activities,G00640,Third Party Payments          ,Private Contractors           ,EH08,SLWP C1 Haulage Dry Recyclable          ,880,31/10/2016,R,KINGSTON CORPORATION          
451,Cultural Env Reg&Plan Services,Recycling (Collection),Recycling Activities,G00640,Third Party Payments          ,Private Contractors           ,EH08,SLWP C1 Haulage Dry Recyclable          ,27215.54,31/10/2016,R,KINGSTON CORPORATION          
452,Cultural Env Reg&Plan Services,Recycling (Collection),Recycling Activities,G00640,Third Party Payments          ,Private Contractors           ,EH94,Waste Disposal - Alt. Site              ,5920.34,31/10/2016,R,KINGSTON CORPORATION          
453,Cultural Env Reg&Plan Services,Recycling (Collection),Garden Waste Service,G00647,Supplies & Services           ,Equip Furniture/Materials     ,DA09,Equip-Purchases                         ,4236.03,31/10/2016,R,SMI GROUP                     
454,Cultural Env Reg&Plan Services,Recycling (Collection),Garden Waste Service,G00647,Third Party Payments          ,Private Contractors           ,EH61,Green Waste Disposal                    ,8430.56,31/10/2016,R,KINGSTON CORPORATION          
455,Cultural Env Reg&Plan Services,Recycling (Collection),Food Waste Service,G00648,Third Party Payments          ,Private Contractors           ,EH19,SLWP C3 FOOD WASTE HAULAGE              ,2517.47,31/10/2016,R,KINGSTON CORPORATION          
456,Cultural Env Reg&Plan Services,Recycling (Collection),Food Waste Service,G00648,Third Party Payments          ,Private Contractors           ,EH19,SLWP C3 FOOD WASTE HAULAGE              ,2689.6,31/10/2016,R,KINGSTON CORPORATION          
457,Cultural Env Reg&Plan Services,Recycling (Collection),Food Waste Serv(LWARB funding),G00649,Supplies & Services           ,Services                      ,DF35,Graphic Design                          ,1235,09/09/2016,R,TA2                           
458,Cultural Env Reg&Plan Services,Household Waste Collection,Refuse Collection (Operations),G00661,Transport Related Expenditure ,Direct Transport Costs        ,CA52,Reps Vehicles Ins Claims                ,750,03/11/2016,R,S.E.T.S SERVICES              
459,Cultural Env Reg&Plan Services,Household Waste Collection,Refuse Collection (Operations),G00661,Transport Related Expenditure ,Direct Transport Costs        ,CA52,Reps Vehicles Ins Claims                ,750,03/11/2016,R,S.E.T.S SERVICES              
460,Cultural Env Reg&Plan Services,Household Waste Collection,Refuse Collection (Operations),G00661,Transport Related Expenditure ,Direct Transport Costs        ,CA52,Reps Vehicles Ins Claims                ,1500,26/08/2016,R,S.E.T.S SERVICES              
461,Cultural Env Reg&Plan Services,Household Waste Collection,Refuse Collection (Operations),G00661,Supplies & Services           ,Equip Furniture/Materials     ,DA03,Hire of Equipment                       ,2170,27/10/2016,R,COMCIR RADIO COMMUNICATIONS LT
462,Cultural Env Reg&Plan Services,Trade Waste Collection,Commercial Waste,G00663,Third Party Payments          ,Private Contractors           ,EH04,C1 Viridor SLWP Landfill Contract       ,36973.88,31/10/2016,R,KINGSTON CORPORATION          
463,Cultural Env Reg&Plan Services,Trade Waste Collection,Commercial Waste,G00663,Third Party Payments          ,Private Contractors           ,EH08,SLWP C1 Haulage Dry Recyclable          ,1538.51,31/10/2016,R,KINGSTON CORPORATION          
464,Cultural Env Reg&Plan Services,Trade Waste Collection,Commercial Waste Collection,G00665,Supplies & Services           ,Equip Furniture/Materials     ,DA09,Equip-Purchases                         ,913.5,24/10/2016,R,GREENHAM                      
465,Cultural Env Reg&Plan Services,Street Clean - Not highways,Waste Enforcement,G00680,Third Party Payments          ,Private Contractors           ,EH02,Miscellaneous Hired Services            ,22893.86,31/10/2016,R,KINGDOM SECURITY LTD          
466,Cultural Env Reg&Plan Services,Inspect/Enforce (Consumer P),Trading Standards,G00690,Supplies & Services           ,Services                      ,DF11,Counsel's Fees                          ,1500,08/11/2016,R,REDACTED
467,Cultural Env Reg&Plan Services,Mgt & Support (Env),SLWP (rechargeable)                     ,G00905,Supplies & Services           ,Services                      ,DF03,Consultants                             ,4151.25,28/10/2016,R,BRAND NARRATIVE LIMITED       
468,Central Services,Grants - Voluntary Groups,Vestry Hall,G19290,Premises Related Expenditure  ,RepairsAlterations&MtceOfBldgs,BA79,Security of Premises                    ,5565.4,10/11/2016,R,KINGDOM SECURITY LTD          
469,Central Services,Grants - Voluntary Groups,Vestry Hall,G19290,Premises Related Expenditure  ,Cleaning and Domestic Supplies,BH03,Cleaning Services                       ,1934.45,01/11/2016,R,BIRKIN CLEANING SERVICES LTD  
470,Highways & Transport Services,Safe routes inc schl x patrol,School & Road Safety TFL                ,H01083,Supplies & Services           ,Equip Furniture/Materials     ,DA04,Materials                               ,822,16/11/2016,R,NORTHERN LIGHTS PROMOTIONS    
471,Cultural Env Reg&Plan Services,DC Advice Apps & Reg not split,Development Control,H01130,Supplies & Services           ,Services                      ,DF02,Misc Advertising/Publicity              ,624,04/11/2016,R,NEWSQUEST MEDIA GROUP LTD     
472,Cultural Env Reg&Plan Services,DC Advice Apps & Reg not split,Development Control,H01130,Supplies & Services           ,Services                      ,DF11,Counsel's Fees                          ,2499,15/11/2016,R,ZYDA LAW                      
473,Cultural Env Reg&Plan Services,Economic Dev (Not separated),NHB-Morden Shopping Parades             ,H01190,Third Party Payments          ,Private Contractors           ,EH01,Miscellaneous Agency Services           ,1750,03/11/2016,R,SOBOYE                        
474,Cultural Env Reg&Plan Services,Economic Dev (Not separated),LABGI-BUSINESS SUPPORT SERVICE,H01219,Third Party Payments          ,Private Contractors           ,EH02,Miscellaneous Hired Services            ,25000,26/10/2016,R,MERTON CHAMBER OF COMMERCE    
475,Cultural Env Reg&Plan Services,Economic Dev (Not separated),TOWN CENTRE MANAGEMENT,H01223,Third Party Payments          ,Private Contractors           ,EH10,Contract Payments                       ,2625,28/10/2016,R,GRENFELL HOUSING ASSOCIATION  
476,Cultural Env Reg&Plan Services,Economic Dev (Not separated),Capt Ambition-Suburban Opprt Z,H01231,Premises Related Expenditure  ,RepairsAlterations&MtceOfBldgs,BA01,DDM - General Building                  ,4600,25/10/2016,R,MCELLIGOTT BUILDING LTD       
477,Cultural Env Reg&Plan Services,Economic Dev (Not separated),Capt Ambition-Suburban Opprt Z,H01231,Premises Related Expenditure  ,RepairsAlterations&MtceOfBldgs,BA01,DDM - General Building                  ,19461,07/10/2016,R,MCELLIGOTT BUILDING LTD       
478,Cultural Env Reg&Plan Services,Economic Dev (Not separated),Capt Ambition-Suburban Opprt Z,H01231,Supplies & Services           ,Services                      ,DF03,Consultants                             ,650,02/11/2016,R,URBAN ENTERPRISE NETWORK      
479,Cultural Env Reg&Plan Services,Economic Dev (Not separated),Capt Ambition-Suburban Opprt Z,H01231,Supplies & Services           ,Services                      ,DF03,Consultants                             ,975,18/11/2016,R,URBAN ENTERPRISE NETWORK      
480,Cultural Env Reg&Plan Services,Economic Dev (Not separated),Capt Ambition-Suburban Opprt Z,H01231,Supplies & Services           ,Services                      ,DF03,Consultants                             ,975,18/11/2016,R,URBAN ENTERPRISE NETWORK      
481,Cultural Env Reg&Plan Services,Economic Dev (Not separated),Capt Ambition-Suburban Opprt Z,H01231,Supplies & Services           ,Services                      ,DF03,Consultants                             ,975,02/11/2016,R,URBAN ENTERPRISE NETWORK      
482,Cultural Env Reg&Plan Services,Economic Dev (Not separated),Capt Ambition-Suburban Opprt Z,H01231,Supplies & Services           ,Grants and Subscriptions      ,DJ01,Grants                                  ,1233,24/11/2016,R,STANDARD CARS LIMITED         
483,Cultural Env Reg&Plan Services,Economic Dev (Not separated),Capt Ambition-Suburban Opprt Z,H01231,Supplies & Services           ,Grants and Subscriptions      ,DJ01,Grants                                  ,2238,08/11/2016,R,STANDARD CARS LIMITED         
484,Cultural Env Reg&Plan Services,Economic Dev (Not separated),Capt Ambition-Suburban Opprt Z,H01231,Supplies & Services           ,Grants and Subscriptions      ,DJ01,Grants                                  ,5459,07/11/2016,R,CORLEONE RESTAURANT LTD       
485,Cultural Env Reg&Plan Services,Economic Dev (Not separated),Capt Ambition-Suburban Opprt Z,H01231,Supplies & Services           ,Grants and Subscriptions      ,DJ01,Grants                                  ,8000,09/11/2016,R,HOUSING SOFTWARE              
486,Cultural Env Reg&Plan Services,Economic Dev (Not separated),Capt Ambition-Suburban Opprt Z,H01231,Supplies & Services           ,Grants and Subscriptions      ,DJ54,Contributions                           ,740.12,28/10/2016,R,HALLMARK GLASS AND GLAZING LTD
487,Cultural Env Reg&Plan Services,Economic Dev (Not separated),Capt Ambition-Suburban Opprt Z,H01231,Third Party Payments          ,Private Contractors           ,EH02,Miscellaneous Hired Services            ,3500,09/11/2016,R,WIMBLEDON BOOKFEST            
488,CS -Oth Operating Inc & Expend,T/A Vehicle Maintenance etc,Transport-Contract Hire,J01374,Employees                     ,Direct Employee Expenses      ,AA17,Agency Staff & Casual Paymts            ,8352,03/11/2016,R,REDACTED
489,CS -Oth Operating Inc & Expend,T/A Vehicle Maintenance etc,Transport-Contract Hire,J01374,Transport Related Expenditure ,Direct Transport Costs        ,CA01,Petrol Derv & Oil                       ,31745.78,10/11/2016,R,EMO OILS LTD                  
490,CS -Oth Operating Inc & Expend,T/A Vehicle Maintenance etc,Transport-Contract Hire,J01374,Transport Related Expenditure ,Contract Hire and Op Leasing  ,CC53,Plant Hire for MRCS                     ,693,31/10/2016,R,REDACTED
491,CS -Oth Operating Inc & Expend,T/A Vehicle Maintenance etc,Transport-Contract Hire,J01374,Transport Related Expenditure ,Contract Hire and Op Leasing  ,CC53,Plant Hire for MRCS                     ,693,31/10/2016,R,REDACTED
492,CS -Oth Operating Inc & Expend,T/A Vehicle Maintenance etc,Transport-Contract Hire,J01374,Transport Related Expenditure ,Contract Hire and Op Leasing  ,CC53,Plant Hire for MRCS                     ,3024,31/10/2016,R,RIVERSIDE TRUCK RENTAL LTD    
493,CS -Oth Operating Inc & Expend,T/A Vehicle Maintenance etc,Transport-Contract Hire,J01374,Transport Related Expenditure ,Contract Hire and Op Leasing  ,CC53,Plant Hire for MRCS                     ,3192,31/10/2016,R,RIVERSIDE TRUCK RENTAL LTD    
494,CS -Oth Operating Inc & Expend,T/A Vehicle Maintenance etc,Transport-Contract Hire,J01374,Transport Related Expenditure ,Contract Hire and Op Leasing  ,CC58,Plant Hire - Ad Hoc                     ,1432.7,09/11/2016,R,REDACTED
495,CS -Oth Operating Inc & Expend,T/A Vehicle Maintenance etc,Transport-Contract Hire,J01374,Transport Related Expenditure ,Contract Hire and Op Leasing  ,CC59,HIRING TRANSPORT OPERATIONS             ,559.58,31/10/2016,R,REDACTED
496,CS -Oth Operating Inc & Expend,T/A Vehicle Maintenance etc,Transport-Contract Hire,J01374,Transport Related Expenditure ,Contract Hire and Op Leasing  ,CC59,HIRING TRANSPORT OPERATIONS             ,559.58,31/10/2016,R,REDACTED
497,CS -Oth Operating Inc & Expend,T/A Vehicle Maintenance etc,Transport-Contract Hire,J01374,Transport Related Expenditure ,Contract Hire and Op Leasing  ,CC59,HIRING TRANSPORT OPERATIONS             ,559.58,31/10/2016,R,REDACTED
498,CS -Oth Operating Inc & Expend,T/A Vehicle Maintenance etc,Transport-Contract Hire,J01374,Transport Related Expenditure ,Contract Hire and Op Leasing  ,CC59,HIRING TRANSPORT OPERATIONS             ,559.58,31/10/2016,R,REDACTED
499,CS -Oth Operating Inc & Expend,T/A Vehicle Maintenance etc,Transport-Contract Hire,J01374,Transport Related Expenditure ,Contract Hire and Op Leasing  ,CC59,HIRING TRANSPORT OPERATIONS             ,1386,31/10/2016,R,ENTERPRISE RENT-A-CAR UK LTD  
500,CS -Oth Operating Inc & Expend,T/A Vehicle Maintenance etc,Transport-Contract Hire,J01374,Transport Related Expenditure ,Contract Hire and Op Leasing  ,CC59,HIRING TRANSPORT OPERATIONS             ,1386,31/10/2016,R,ENTERPRISE RENT-A-CAR UK LTD  
501,CS -Oth Operating Inc & Expend,T/A Vehicle Maintenance etc,Transport-Contract Hire,J01374,Transport Related Expenditure ,Contract Hire and Op Leasing  ,CC59,HIRING TRANSPORT OPERATIONS             ,1386,31/10/2016,R,ENTERPRISE RENT-A-CAR UK LTD  
502,CS -Oth Operating Inc & Expend,T/A Vehicle Maintenance etc,Transport-Contract Hire,J01374,Transport Related Expenditure ,Contract Hire and Op Leasing  ,CC64,CSF - SEN CABS (RK02)                   ,570,31/10/2016,R,OAKMARKET GROUP LTD           
503,CS -Oth Operating Inc & Expend,T/A Vehicle Maintenance etc,Transport-Contract Hire,J01374,Transport Related Expenditure ,Contract Hire and Op Leasing  ,CC64,CSF - SEN CABS (RK02)                   ,640,31/10/2016,R,CHEAM STATION CARS            
504,CS -Oth Operating Inc & Expend,T/A Vehicle Maintenance etc,Transport-Contract Hire,J01374,Transport Related Expenditure ,Contract Hire and Op Leasing  ,CC64,CSF - SEN CABS (RK02)                   ,675,31/10/2016,R,SILVERBURN FINANCE (UK) LTD   
505,CS -Oth Operating Inc & Expend,T/A Vehicle Maintenance etc,Transport-Contract Hire,J01374,Transport Related Expenditure ,Contract Hire and Op Leasing  ,CC64,CSF - SEN CABS (RK02)                   ,720,31/10/2016,R,SILVERBURN FINANCE (UK) LTD   
506,CS -Oth Operating Inc & Expend,T/A Vehicle Maintenance etc,Transport-Contract Hire,J01374,Transport Related Expenditure ,Contract Hire and Op Leasing  ,CC64,CSF - SEN CABS (RK02)                   ,732.64,31/10/2016,R,KAT TRANSPORT LTD             
507,CS -Oth Operating Inc & Expend,T/A Vehicle Maintenance etc,Transport-Contract Hire,J01374,Transport Related Expenditure ,Contract Hire and Op Leasing  ,CC64,CSF - SEN CABS (RK02)                   ,770,31/10/2016,R,CHEAM STATION CARS            
508,CS -Oth Operating Inc & Expend,T/A Vehicle Maintenance etc,Transport-Contract Hire,J01374,Transport Related Expenditure ,Contract Hire and Op Leasing  ,CC64,CSF - SEN CABS (RK02)                   ,792,31/10/2016,R,BRUNSWICK CARS LTD            
509,CS -Oth Operating Inc & Expend,T/A Vehicle Maintenance etc,Transport-Contract Hire,J01374,Transport Related Expenditure ,Contract Hire and Op Leasing  ,CC64,CSF - SEN CABS (RK02)                   ,837.2,31/10/2016,R,PREMIER MINICAB SER.(SURBITON)
510,CS -Oth Operating Inc & Expend,T/A Vehicle Maintenance etc,Transport-Contract Hire,J01374,Transport Related Expenditure ,Contract Hire and Op Leasing  ,CC64,CSF - SEN CABS (RK02)                   ,840,31/10/2016,R,CHEAM STATION CARS            
511,CS -Oth Operating Inc & Expend,T/A Vehicle Maintenance etc,Transport-Contract Hire,J01374,Transport Related Expenditure ,Contract Hire and Op Leasing  ,CC64,CSF - SEN CABS (RK02)                   ,870,31/10/2016,R,CHEAM STATION CARS            
512,CS -Oth Operating Inc & Expend,T/A Vehicle Maintenance etc,Transport-Contract Hire,J01374,Transport Related Expenditure ,Contract Hire and Op Leasing  ,CC64,CSF - SEN CABS (RK02)                   ,917.5,31/10/2016,R,PREMIER MINICAB SER.(SURBITON)
513,CS -Oth Operating Inc & Expend,T/A Vehicle Maintenance etc,Transport-Contract Hire,J01374,Transport Related Expenditure ,Contract Hire and Op Leasing  ,CC64,CSF - SEN CABS (RK02)                   ,960,31/10/2016,R,CHEAM STATION CARS            
514,CS -Oth Operating Inc & Expend,T/A Vehicle Maintenance etc,Transport-Contract Hire,J01374,Transport Related Expenditure ,Contract Hire and Op Leasing  ,CC64,CSF - SEN CABS (RK02)                   ,960,31/10/2016,R,BRUNSWICK CARS LTD            
515,CS -Oth Operating Inc & Expend,T/A Vehicle Maintenance etc,Transport-Contract Hire,J01374,Transport Related Expenditure ,Contract Hire and Op Leasing  ,CC64,CSF - SEN CABS (RK02)                   ,972.5,31/10/2016,R,PREMIER MINICAB SER.(SURBITON)
516,CS -Oth Operating Inc & Expend,T/A Vehicle Maintenance etc,Transport-Contract Hire,J01374,Transport Related Expenditure ,Contract Hire and Op Leasing  ,CC64,CSF - SEN CABS (RK02)                   ,1004.1,31/10/2016,R,PREMIER MINICAB SER.(SURBITON)
517,CS -Oth Operating Inc & Expend,T/A Vehicle Maintenance etc,Transport-Contract Hire,J01374,Transport Related Expenditure ,Contract Hire and Op Leasing  ,CC64,CSF - SEN CABS (RK02)                   ,1036.8,31/10/2016,R,KAT TRANSPORT LTD             
518,CS -Oth Operating Inc & Expend,T/A Vehicle Maintenance etc,Transport-Contract Hire,J01374,Transport Related Expenditure ,Contract Hire and Op Leasing  ,CC64,CSF - SEN CABS (RK02)                   ,1040,31/10/2016,R,SILVERBURN FINANCE (UK) LTD   
519,CS -Oth Operating Inc & Expend,T/A Vehicle Maintenance etc,Transport-Contract Hire,J01374,Transport Related Expenditure ,Contract Hire and Op Leasing  ,CC64,CSF - SEN CABS (RK02)                   ,1050,31/10/2016,R,CHEAM STATION CARS            
520,CS -Oth Operating Inc & Expend,T/A Vehicle Maintenance etc,Transport-Contract Hire,J01374,Transport Related Expenditure ,Contract Hire and Op Leasing  ,CC64,CSF - SEN CABS (RK02)                   ,1088,31/10/2016,R,CAPITAL CARS                  
521,CS -Oth Operating Inc & Expend,T/A Vehicle Maintenance etc,Transport-Contract Hire,J01374,Transport Related Expenditure ,Contract Hire and Op Leasing  ,CC64,CSF - SEN CABS (RK02)                   ,1092,31/10/2016,R,CHEAM STATION CARS            
522,CS -Oth Operating Inc & Expend,T/A Vehicle Maintenance etc,Transport-Contract Hire,J01374,Transport Related Expenditure ,Contract Hire and Op Leasing  ,CC64,CSF - SEN CABS (RK02)                   ,1100,31/10/2016,R,BRUNSWICK CARS LTD            
523,CS -Oth Operating Inc & Expend,T/A Vehicle Maintenance etc,Transport-Contract Hire,J01374,Transport Related Expenditure ,Contract Hire and Op Leasing  ,CC64,CSF - SEN CABS (RK02)                   ,1110,31/10/2016,R,BRUNSWICK CARS LTD            
524,CS -Oth Operating Inc & Expend,T/A Vehicle Maintenance etc,Transport-Contract Hire,J01374,Transport Related Expenditure ,Contract Hire and Op Leasing  ,CC64,CSF - SEN CABS (RK02)                   ,1138.5,30/09/2016,R,SILVERBURN FINANCE (UK) LTD   
525,CS -Oth Operating Inc & Expend,T/A Vehicle Maintenance etc,Transport-Contract Hire,J01374,Transport Related Expenditure ,Contract Hire and Op Leasing  ,CC64,CSF - SEN CABS (RK02)                   ,1140,31/10/2016,R,PREMIER MINICAB SER.(SURBITON)
526,CS -Oth Operating Inc & Expend,T/A Vehicle Maintenance etc,Transport-Contract Hire,J01374,Transport Related Expenditure ,Contract Hire and Op Leasing  ,CC64,CSF - SEN CABS (RK02)                   ,1208.1,31/10/2016,R,PREMIER MINICAB SER.(SURBITON)
527,CS -Oth Operating Inc & Expend,T/A Vehicle Maintenance etc,Transport-Contract Hire,J01374,Transport Related Expenditure ,Contract Hire and Op Leasing  ,CC64,CSF - SEN CABS (RK02)                   ,1216,31/10/2016,R,CAPITAL CARS                  
528,CS -Oth Operating Inc & Expend,T/A Vehicle Maintenance etc,Transport-Contract Hire,J01374,Transport Related Expenditure ,Contract Hire and Op Leasing  ,CC64,CSF - SEN CABS (RK02)                   ,1248,31/10/2016,R,BRUNSWICK CARS LTD            
529,CS -Oth Operating Inc & Expend,T/A Vehicle Maintenance etc,Transport-Contract Hire,J01374,Transport Related Expenditure ,Contract Hire and Op Leasing  ,CC64,CSF - SEN CABS (RK02)                   ,1260,31/10/2016,R,SILVERBURN FINANCE (UK) LTD   
530,CS -Oth Operating Inc & Expend,T/A Vehicle Maintenance etc,Transport-Contract Hire,J01374,Transport Related Expenditure ,Contract Hire and Op Leasing  ,CC64,CSF - SEN CABS (RK02)                   ,1260,31/10/2016,R,BRUNSWICK CARS LTD            
531,CS -Oth Operating Inc & Expend,T/A Vehicle Maintenance etc,Transport-Contract Hire,J01374,Transport Related Expenditure ,Contract Hire and Op Leasing  ,CC64,CSF - SEN CABS (RK02)                   ,1260,31/10/2016,R,SILVERBURN FINANCE (UK) LTD   
532,CS -Oth Operating Inc & Expend,T/A Vehicle Maintenance etc,Transport-Contract Hire,J01374,Transport Related Expenditure ,Contract Hire and Op Leasing  ,CC64,CSF - SEN CABS (RK02)                   ,1296,31/10/2016,R,BRUNSWICK CARS LTD            
533,CS -Oth Operating Inc & Expend,T/A Vehicle Maintenance etc,Transport-Contract Hire,J01374,Transport Related Expenditure ,Contract Hire and Op Leasing  ,CC64,CSF - SEN CABS (RK02)                   ,1299.48,31/10/2016,R,KAT TRANSPORT LTD             
534,CS -Oth Operating Inc & Expend,T/A Vehicle Maintenance etc,Transport-Contract Hire,J01374,Transport Related Expenditure ,Contract Hire and Op Leasing  ,CC64,CSF - SEN CABS (RK02)                   ,1344,31/10/2016,R,CAPITAL CARS                  
535,CS -Oth Operating Inc & Expend,T/A Vehicle Maintenance etc,Transport-Contract Hire,J01374,Transport Related Expenditure ,Contract Hire and Op Leasing  ,CC64,CSF - SEN CABS (RK02)                   ,1350,31/10/2016,R,BRUNSWICK CARS LTD            
536,CS -Oth Operating Inc & Expend,T/A Vehicle Maintenance etc,Transport-Contract Hire,J01374,Transport Related Expenditure ,Contract Hire and Op Leasing  ,CC64,CSF - SEN CABS (RK02)                   ,1350,31/10/2016,R,BRUNSWICK CARS LTD            
537,CS -Oth Operating Inc & Expend,T/A Vehicle Maintenance etc,Transport-Contract Hire,J01374,Transport Related Expenditure ,Contract Hire and Op Leasing  ,CC64,CSF - SEN CABS (RK02)                   ,1350,31/10/2016,R,BRUNSWICK CARS LTD            
538,CS -Oth Operating Inc & Expend,T/A Vehicle Maintenance etc,Transport-Contract Hire,J01374,Transport Related Expenditure ,Contract Hire and Op Leasing  ,CC64,CSF - SEN CABS (RK02)                   ,1380,31/10/2016,R,BRUNSWICK CARS LTD            
539,CS -Oth Operating Inc & Expend,T/A Vehicle Maintenance etc,Transport-Contract Hire,J01374,Transport Related Expenditure ,Contract Hire and Op Leasing  ,CC64,CSF - SEN CABS (RK02)                   ,1392,31/10/2016,R,SILVERBURN FINANCE (UK) LTD   
540,CS -Oth Operating Inc & Expend,T/A Vehicle Maintenance etc,Transport-Contract Hire,J01374,Transport Related Expenditure ,Contract Hire and Op Leasing  ,CC64,CSF - SEN CABS (RK02)                   ,1395,31/10/2016,R,BRUNSWICK CARS LTD            
541,CS -Oth Operating Inc & Expend,T/A Vehicle Maintenance etc,Transport-Contract Hire,J01374,Transport Related Expenditure ,Contract Hire and Op Leasing  ,CC64,CSF - SEN CABS (RK02)                   ,1425,31/10/2016,R,BRUNSWICK CARS LTD            
542,CS -Oth Operating Inc & Expend,T/A Vehicle Maintenance etc,Transport-Contract Hire,J01374,Transport Related Expenditure ,Contract Hire and Op Leasing  ,CC64,CSF - SEN CABS (RK02)                   ,1440,31/10/2016,R,KENDALL CARS                  
543,CS -Oth Operating Inc & Expend,T/A Vehicle Maintenance etc,Transport-Contract Hire,J01374,Transport Related Expenditure ,Contract Hire and Op Leasing  ,CC64,CSF - SEN CABS (RK02)                   ,1440,31/10/2016,R,BRUNSWICK CARS LTD            
544,CS -Oth Operating Inc & Expend,T/A Vehicle Maintenance etc,Transport-Contract Hire,J01374,Transport Related Expenditure ,Contract Hire and Op Leasing  ,CC64,CSF - SEN CABS (RK02)                   ,1440,31/10/2016,R,BARCLAYS ASSET & SALES FINANCE
545,CS -Oth Operating Inc & Expend,T/A Vehicle Maintenance etc,Transport-Contract Hire,J01374,Transport Related Expenditure ,Contract Hire and Op Leasing  ,CC64,CSF - SEN CABS (RK02)                   ,1447.38,31/10/2016,R,KAT TRANSPORT LTD             
546,CS -Oth Operating Inc & Expend,T/A Vehicle Maintenance etc,Transport-Contract Hire,J01374,Transport Related Expenditure ,Contract Hire and Op Leasing  ,CC64,CSF - SEN CABS (RK02)                   ,1456,31/10/2016,R,BRUNSWICK CARS LTD            
547,CS -Oth Operating Inc & Expend,T/A Vehicle Maintenance etc,Transport-Contract Hire,J01374,Transport Related Expenditure ,Contract Hire and Op Leasing  ,CC64,CSF - SEN CABS (RK02)                   ,1499.4,31/10/2016,R,KAT TRANSPORT LTD             
548,CS -Oth Operating Inc & Expend,T/A Vehicle Maintenance etc,Transport-Contract Hire,J01374,Transport Related Expenditure ,Contract Hire and Op Leasing  ,CC64,CSF - SEN CABS (RK02)                   ,1536,31/10/2016,R,CHEAM STATION CARS            
549,CS -Oth Operating Inc & Expend,T/A Vehicle Maintenance etc,Transport-Contract Hire,J01374,Transport Related Expenditure ,Contract Hire and Op Leasing  ,CC64,CSF - SEN CABS (RK02)                   ,1536,31/10/2016,R,BRUNSWICK CARS LTD            
550,CS -Oth Operating Inc & Expend,T/A Vehicle Maintenance etc,Transport-Contract Hire,J01374,Transport Related Expenditure ,Contract Hire and Op Leasing  ,CC64,CSF - SEN CABS (RK02)                   ,1536,31/10/2016,R,SILVERBURN FINANCE (UK) LTD   
551,CS -Oth Operating Inc & Expend,T/A Vehicle Maintenance etc,Transport-Contract Hire,J01374,Transport Related Expenditure ,Contract Hire and Op Leasing  ,CC64,CSF - SEN CABS (RK02)                   ,1539.44,31/10/2016,R,KAT TRANSPORT LTD             
552,CS -Oth Operating Inc & Expend,T/A Vehicle Maintenance etc,Transport-Contract Hire,J01374,Transport Related Expenditure ,Contract Hire and Op Leasing  ,CC64,CSF - SEN CABS (RK02)                   ,1539.44,31/10/2016,R,KAT TRANSPORT LTD             
553,CS -Oth Operating Inc & Expend,T/A Vehicle Maintenance etc,Transport-Contract Hire,J01374,Transport Related Expenditure ,Contract Hire and Op Leasing  ,CC64,CSF - SEN CABS (RK02)                   ,1575,31/10/2016,R,BRUNSWICK CARS LTD            
554,CS -Oth Operating Inc & Expend,T/A Vehicle Maintenance etc,Transport-Contract Hire,J01374,Transport Related Expenditure ,Contract Hire and Op Leasing  ,CC64,CSF - SEN CABS (RK02)                   ,1577.7,31/10/2016,R,KAT TRANSPORT LTD             
555,CS -Oth Operating Inc & Expend,T/A Vehicle Maintenance etc,Transport-Contract Hire,J01374,Transport Related Expenditure ,Contract Hire and Op Leasing  ,CC64,CSF - SEN CABS (RK02)                   ,1598.4,31/10/2016,R,KAT TRANSPORT LTD             
556,CS -Oth Operating Inc & Expend,T/A Vehicle Maintenance etc,Transport-Contract Hire,J01374,Transport Related Expenditure ,Contract Hire and Op Leasing  ,CC64,CSF - SEN CABS (RK02)                   ,1600,31/10/2016,R,KAT TRANSPORT LTD             
557,CS -Oth Operating Inc & Expend,T/A Vehicle Maintenance etc,Transport-Contract Hire,J01374,Transport Related Expenditure ,Contract Hire and Op Leasing  ,CC64,CSF - SEN CABS (RK02)                   ,1600,30/09/2016,R,BRUNSWICK CARS LTD            
558,CS -Oth Operating Inc & Expend,T/A Vehicle Maintenance etc,Transport-Contract Hire,J01374,Transport Related Expenditure ,Contract Hire and Op Leasing  ,CC64,CSF - SEN CABS (RK02)                   ,1612,31/10/2016,R,PREMIER MINICAB SER.(SURBITON)
559,CS -Oth Operating Inc & Expend,T/A Vehicle Maintenance etc,Transport-Contract Hire,J01374,Transport Related Expenditure ,Contract Hire and Op Leasing  ,CC64,CSF - SEN CABS (RK02)                   ,1664,31/10/2016,R,A STAR TRANSPORT LIMITED      
560,CS -Oth Operating Inc & Expend,T/A Vehicle Maintenance etc,Transport-Contract Hire,J01374,Transport Related Expenditure ,Contract Hire and Op Leasing  ,CC64,CSF - SEN CABS (RK02)                   ,1692.48,31/10/2016,R,KAT TRANSPORT LTD             
561,CS -Oth Operating Inc & Expend,T/A Vehicle Maintenance etc,Transport-Contract Hire,J01374,Transport Related Expenditure ,Contract Hire and Op Leasing  ,CC64,CSF - SEN CABS (RK02)                   ,1695,31/10/2016,R,SILVERBURN FINANCE (UK) LTD   
562,CS -Oth Operating Inc & Expend,T/A Vehicle Maintenance etc,Transport-Contract Hire,J01374,Transport Related Expenditure ,Contract Hire and Op Leasing  ,CC64,CSF - SEN CABS (RK02)                   ,1728,31/10/2016,R,BRUNSWICK CARS LTD            
563,CS -Oth Operating Inc & Expend,T/A Vehicle Maintenance etc,Transport-Contract Hire,J01374,Transport Related Expenditure ,Contract Hire and Op Leasing  ,CC64,CSF - SEN CABS (RK02)                   ,1740,31/10/2016,R,BRUNSWICK CARS LTD            
564,CS -Oth Operating Inc & Expend,T/A Vehicle Maintenance etc,Transport-Contract Hire,J01374,Transport Related Expenditure ,Contract Hire and Op Leasing  ,CC64,CSF - SEN CABS (RK02)                   ,1753.28,31/10/2016,R,KAT TRANSPORT LTD             
565,CS -Oth Operating Inc & Expend,T/A Vehicle Maintenance etc,Transport-Contract Hire,J01374,Transport Related Expenditure ,Contract Hire and Op Leasing  ,CC64,CSF - SEN CABS (RK02)                   ,1763.7,31/10/2016,R,KAT TRANSPORT LTD             
566,CS -Oth Operating Inc & Expend,T/A Vehicle Maintenance etc,Transport-Contract Hire,J01374,Transport Related Expenditure ,Contract Hire and Op Leasing  ,CC64,CSF - SEN CABS (RK02)                   ,1769,31/10/2016,R,SILVERBURN FINANCE (UK) LTD   
567,CS -Oth Operating Inc & Expend,T/A Vehicle Maintenance etc,Transport-Contract Hire,J01374,Transport Related Expenditure ,Contract Hire and Op Leasing  ,CC64,CSF - SEN CABS (RK02)                   ,1796.7,31/10/2016,R,KAT TRANSPORT LTD             
568,CS -Oth Operating Inc & Expend,T/A Vehicle Maintenance etc,Transport-Contract Hire,J01374,Transport Related Expenditure ,Contract Hire and Op Leasing  ,CC64,CSF - SEN CABS (RK02)                   ,1875,31/10/2016,R,SILVERBURN FINANCE (UK) LTD   
569,CS -Oth Operating Inc & Expend,T/A Vehicle Maintenance etc,Transport-Contract Hire,J01374,Transport Related Expenditure ,Contract Hire and Op Leasing  ,CC64,CSF - SEN CABS (RK02)                   ,1888,31/10/2016,R,BRUNSWICK CARS LTD            
570,CS -Oth Operating Inc & Expend,T/A Vehicle Maintenance etc,Transport-Contract Hire,J01374,Transport Related Expenditure ,Contract Hire and Op Leasing  ,CC64,CSF - SEN CABS (RK02)                   ,1946,31/10/2016,R,BRUNSWICK CARS LTD            
571,CS -Oth Operating Inc & Expend,T/A Vehicle Maintenance etc,Transport-Contract Hire,J01374,Transport Related Expenditure ,Contract Hire and Op Leasing  ,CC64,CSF - SEN CABS (RK02)                   ,1950.4,31/10/2016,R,KAT TRANSPORT LTD             
572,CS -Oth Operating Inc & Expend,T/A Vehicle Maintenance etc,Transport-Contract Hire,J01374,Transport Related Expenditure ,Contract Hire and Op Leasing  ,CC64,CSF - SEN CABS (RK02)                   ,1976,30/09/2016,R,A STAR TRANSPORT LIMITED      
573,CS -Oth Operating Inc & Expend,T/A Vehicle Maintenance etc,Transport-Contract Hire,J01374,Transport Related Expenditure ,Contract Hire and Op Leasing  ,CC64,CSF - SEN CABS (RK02)                   ,1984,31/10/2016,R,A STAR TRANSPORT LIMITED      
574,CS -Oth Operating Inc & Expend,T/A Vehicle Maintenance etc,Transport-Contract Hire,J01374,Transport Related Expenditure ,Contract Hire and Op Leasing  ,CC64,CSF - SEN CABS (RK02)                   ,2016,31/10/2016,R,SILVERBURN FINANCE (UK) LTD   
575,CS -Oth Operating Inc & Expend,T/A Vehicle Maintenance etc,Transport-Contract Hire,J01374,Transport Related Expenditure ,Contract Hire and Op Leasing  ,CC64,CSF - SEN CABS (RK02)                   ,2048,31/10/2016,R,KAT TRANSPORT LTD             
576,CS -Oth Operating Inc & Expend,T/A Vehicle Maintenance etc,Transport-Contract Hire,J01374,Transport Related Expenditure ,Contract Hire and Op Leasing  ,CC64,CSF - SEN CABS (RK02)                   ,2050,30/09/2016,R,A STAR TRANSPORT LIMITED      
577,CS -Oth Operating Inc & Expend,T/A Vehicle Maintenance etc,Transport-Contract Hire,J01374,Transport Related Expenditure ,Contract Hire and Op Leasing  ,CC64,CSF - SEN CABS (RK02)                   ,2085,31/10/2016,R,BRUNSWICK CARS LTD            
578,CS -Oth Operating Inc & Expend,T/A Vehicle Maintenance etc,Transport-Contract Hire,J01374,Transport Related Expenditure ,Contract Hire and Op Leasing  ,CC64,CSF - SEN CABS (RK02)                   ,2099.4,31/10/2016,R,KAT TRANSPORT LTD             
579,CS -Oth Operating Inc & Expend,T/A Vehicle Maintenance etc,Transport-Contract Hire,J01374,Transport Related Expenditure ,Contract Hire and Op Leasing  ,CC64,CSF - SEN CABS (RK02)                   ,2119,31/10/2016,R,BRUNSWICK CARS LTD            
580,CS -Oth Operating Inc & Expend,T/A Vehicle Maintenance etc,Transport-Contract Hire,J01374,Transport Related Expenditure ,Contract Hire and Op Leasing  ,CC64,CSF - SEN CABS (RK02)                   ,2145,31/10/2016,R,BRUNSWICK CARS LTD            
581,CS -Oth Operating Inc & Expend,T/A Vehicle Maintenance etc,Transport-Contract Hire,J01374,Transport Related Expenditure ,Contract Hire and Op Leasing  ,CC64,CSF - SEN CABS (RK02)                   ,2172.48,31/10/2016,R,KAT TRANSPORT LTD             
582,CS -Oth Operating Inc & Expend,T/A Vehicle Maintenance etc,Transport-Contract Hire,J01374,Transport Related Expenditure ,Contract Hire and Op Leasing  ,CC64,CSF - SEN CABS (RK02)                   ,2176,31/10/2016,R,BARCLAYS ASSET & SALES FINANCE
583,CS -Oth Operating Inc & Expend,T/A Vehicle Maintenance etc,Transport-Contract Hire,J01374,Transport Related Expenditure ,Contract Hire and Op Leasing  ,CC64,CSF - SEN CABS (RK02)                   ,2208,31/10/2016,R,SILVERBURN FINANCE (UK) LTD   
584,CS -Oth Operating Inc & Expend,T/A Vehicle Maintenance etc,Transport-Contract Hire,J01374,Transport Related Expenditure ,Contract Hire and Op Leasing  ,CC64,CSF - SEN CABS (RK02)                   ,2235,31/10/2016,R,BRUNSWICK CARS LTD            
585,CS -Oth Operating Inc & Expend,T/A Vehicle Maintenance etc,Transport-Contract Hire,J01374,Transport Related Expenditure ,Contract Hire and Op Leasing  ,CC64,CSF - SEN CABS (RK02)                   ,2239.36,31/10/2016,R,KAT TRANSPORT LTD             
586,CS -Oth Operating Inc & Expend,T/A Vehicle Maintenance etc,Transport-Contract Hire,J01374,Transport Related Expenditure ,Contract Hire and Op Leasing  ,CC64,CSF - SEN CABS (RK02)                   ,2400,31/10/2016,R,BARCLAYS ASSET & SALES FINANCE
587,CS -Oth Operating Inc & Expend,T/A Vehicle Maintenance etc,Transport-Contract Hire,J01374,Transport Related Expenditure ,Contract Hire and Op Leasing  ,CC64,CSF - SEN CABS (RK02)                   ,2432,31/10/2016,R,BARCLAYS ASSET & SALES FINANCE
588,CS -Oth Operating Inc & Expend,T/A Vehicle Maintenance etc,Transport-Contract Hire,J01374,Transport Related Expenditure ,Contract Hire and Op Leasing  ,CC64,CSF - SEN CABS (RK02)                   ,2462.4,31/10/2016,R,KAT TRANSPORT LTD             
589,CS -Oth Operating Inc & Expend,T/A Vehicle Maintenance etc,Transport-Contract Hire,J01374,Transport Related Expenditure ,Contract Hire and Op Leasing  ,CC64,CSF - SEN CABS (RK02)                   ,2510.4,31/10/2016,R,KAT TRANSPORT LTD             
590,CS -Oth Operating Inc & Expend,T/A Vehicle Maintenance etc,Transport-Contract Hire,J01374,Transport Related Expenditure ,Contract Hire and Op Leasing  ,CC64,CSF - SEN CABS (RK02)                   ,2512,31/10/2016,R,SILVERBURN FINANCE (UK) LTD   
591,CS -Oth Operating Inc & Expend,T/A Vehicle Maintenance etc,Transport-Contract Hire,J01374,Transport Related Expenditure ,Contract Hire and Op Leasing  ,CC64,CSF - SEN CABS (RK02)                   ,2520,31/10/2016,R,BRUNSWICK CARS LTD            
592,CS -Oth Operating Inc & Expend,T/A Vehicle Maintenance etc,Transport-Contract Hire,J01374,Transport Related Expenditure ,Contract Hire and Op Leasing  ,CC64,CSF - SEN CABS (RK02)                   ,2585.28,31/10/2016,R,KAT TRANSPORT LTD             
593,CS -Oth Operating Inc & Expend,T/A Vehicle Maintenance etc,Transport-Contract Hire,J01374,Transport Related Expenditure ,Contract Hire and Op Leasing  ,CC64,CSF - SEN CABS (RK02)                   ,2719.68,31/10/2016,R,KAT TRANSPORT LTD             
594,CS -Oth Operating Inc & Expend,T/A Vehicle Maintenance etc,Transport-Contract Hire,J01374,Transport Related Expenditure ,Contract Hire and Op Leasing  ,CC64,CSF - SEN CABS (RK02)                   ,2752,31/10/2016,R,SILVERBURN FINANCE (UK) LTD   
595,CS -Oth Operating Inc & Expend,T/A Vehicle Maintenance etc,Transport-Contract Hire,J01374,Transport Related Expenditure ,Contract Hire and Op Leasing  ,CC64,CSF - SEN CABS (RK02)                   ,2848,31/10/2016,R,BARCLAYS ASSET & SALES FINANCE
596,CS -Oth Operating Inc & Expend,T/A Vehicle Maintenance etc,Transport-Contract Hire,J01374,Transport Related Expenditure ,Contract Hire and Op Leasing  ,CC64,CSF - SEN CABS (RK02)                   ,2850,31/10/2016,R,BRUNSWICK CARS LTD            
597,CS -Oth Operating Inc & Expend,T/A Vehicle Maintenance etc,Transport-Contract Hire,J01374,Transport Related Expenditure ,Contract Hire and Op Leasing  ,CC64,CSF - SEN CABS (RK02)                   ,3008,31/10/2016,R,BRUNSWICK CARS LTD            
598,CS -Oth Operating Inc & Expend,T/A Vehicle Maintenance etc,Transport-Contract Hire,J01374,Transport Related Expenditure ,Contract Hire and Op Leasing  ,CC64,CSF - SEN CABS (RK02)                   ,3009,30/09/2016,R,SILVERBURN FINANCE (UK) LTD   
599,CS -Oth Operating Inc & Expend,T/A Vehicle Maintenance etc,Transport-Contract Hire,J01374,Transport Related Expenditure ,Contract Hire and Op Leasing  ,CC64,CSF - SEN CABS (RK02)                   ,3202.5,31/10/2016,R,PREMIER MINICAB SER.(SURBITON)
600,CS -Oth Operating Inc & Expend,T/A Vehicle Maintenance etc,Transport-Contract Hire,J01374,Transport Related Expenditure ,Contract Hire and Op Leasing  ,CC66,CSF - CHILDREN CABS (RK09)              ,500,31/10/2016,R,BRUNSWICK CARS LTD            
601,CS -Oth Operating Inc & Expend,T/A Vehicle Maintenance etc,Transport-Contract Hire,J01374,Transport Related Expenditure ,Contract Hire and Op Leasing  ,CC66,CSF - CHILDREN CABS (RK09)              ,732,31/10/2016,R,SILVERBURN FINANCE (UK) LTD   
602,CS -Oth Operating Inc & Expend,T/A Vehicle Maintenance etc,Transport-Contract Hire,J01374,Transport Related Expenditure ,Contract Hire and Op Leasing  ,CC66,CSF - CHILDREN CABS (RK09)              ,1225,31/10/2016,R,OAKMARKET GROUP LTD           
603,CS -Oth Operating Inc & Expend,T/A Vehicle Maintenance etc,Transport-Contract Hire,J01374,Transport Related Expenditure ,Contract Hire and Op Leasing  ,CC67,C&H - ADULTS CABS (RK08)                ,594,31/10/2016,R,PREMIER MINICAB SER.(SURBITON)
604,CS -Oth Operating Inc & Expend,T/A Vehicle Maintenance etc,Transport-Contract Hire,J01374,Transport Related Expenditure ,Contract Hire and Op Leasing  ,CC67,C&H - ADULTS CABS (RK08)                ,852,30/09/2016,R,A STAR TRANSPORT LIMITED      
605,CS -Oth Operating Inc & Expend,T/A Vehicle Maintenance etc,Transport-Contract Hire,J01374,Transport Related Expenditure ,Contract Hire and Op Leasing  ,CC67,C&H - ADULTS CABS (RK08)                ,923,31/10/2016,R,A STAR TRANSPORT LIMITED      
606,CS -Oth Operating Inc & Expend,T/A Vehicle Maintenance etc,Transport-Contract Hire,J01374,Transport Related Expenditure ,Contract Hire and Op Leasing  ,CC67,C&H - ADULTS CABS (RK08)                ,1024,31/10/2016,R,CHEAM STATION CARS            
607,CS -Oth Operating Inc & Expend,T/A Vehicle Maintenance etc,Transport-Contract Hire,J01374,Transport Related Expenditure ,Contract Hire and Op Leasing  ,CC67,C&H - ADULTS CABS (RK08)                ,1024,31/10/2016,R,A STAR TRANSPORT LIMITED      
608,CS -Oth Operating Inc & Expend,T/A Vehicle Maintenance etc,Transport-Contract Hire,J01374,Transport Related Expenditure ,Contract Hire and Op Leasing  ,CC67,C&H - ADULTS CABS (RK08)                ,1152,30/09/2016,R,A STAR TRANSPORT LIMITED      
609,CS -Oth Operating Inc & Expend,T/A Vehicle Maintenance etc,Transport-Contract Hire,J01374,Transport Related Expenditure ,Contract Hire and Op Leasing  ,CC67,C&H - ADULTS CABS (RK08)                ,1344,31/10/2016,R,CHEAM STATION CARS            
610,CS -Oth Operating Inc & Expend,T/A Vehicle Maintenance etc,Transport-Contract Hire,J01374,Transport Related Expenditure ,Contract Hire and Op Leasing  ,CC67,C&H - ADULTS CABS (RK08)                ,1440,31/10/2016,R,PREMIER MINICAB SER.(SURBITON)
611,CS -Oth Operating Inc & Expend,T/A Vehicle Maintenance etc,Transport-Contract Hire,J01374,Transport Related Expenditure ,Contract Hire and Op Leasing  ,CC67,C&H - ADULTS CABS (RK08)                ,1480.7,31/10/2016,R,KAT TRANSPORT LTD             
612,CS -Oth Operating Inc & Expend,T/A Vehicle Maintenance etc,Transport-Contract Hire,J01374,Transport Related Expenditure ,Contract Hire and Op Leasing  ,CC67,C&H - ADULTS CABS (RK08)                ,1485,31/10/2016,R,SILVERBURN FINANCE (UK) LTD   
613,CS -Oth Operating Inc & Expend,T/A Vehicle Maintenance etc,Transport-Contract Hire,J01374,Transport Related Expenditure ,Contract Hire and Op Leasing  ,CC68,CSF - COLLEGES CABS (RK03)              ,664,31/10/2016,R,CHEAM STATION CARS            
614,CS -Oth Operating Inc & Expend,T/A Vehicle Maintenance etc,Transport-Contract Hire,J01374,Transport Related Expenditure ,Contract Hire and Op Leasing  ,CC68,CSF - COLLEGES CABS (RK03)              ,1133.7,31/10/2016,R,PREMIER MINICAB SER.(SURBITON)
615,CS -Oth Operating Inc & Expend,T/A Vehicle Maintenance etc,Transport-Contract Hire,J01374,Transport Related Expenditure ,Contract Hire and Op Leasing  ,CC68,CSF - COLLEGES CABS (RK03)              ,1160,31/10/2016,R,CHEAM STATION CARS            
616,CS -Oth Operating Inc & Expend,T/A Vehicle Maintenance etc,Transport-Contract Hire,J01374,Transport Related Expenditure ,Contract Hire and Op Leasing  ,CC68,CSF - COLLEGES CABS (RK03)              ,1340,31/10/2016,R,CHEAM STATION CARS            
617,CS -Oth Operating Inc & Expend,T/A Vehicle Maintenance etc,Transport-Contract Hire,J01374,Transport Related Expenditure ,Contract Hire and Op Leasing  ,CC69,Vehicles - Spot Hire,533.39,14/09/2016,R,GULLIVER'S TRUCK HIRE LTD.    
618,CS -Oth Operating Inc & Expend,T/A Vehicle Maintenance etc,Transport-Contract Hire,J01374,Transport Related Expenditure ,Contract Hire and Op Leasing  ,CC69,Vehicles - Spot Hire,585,31/10/2016,R,REDACTED
619,CS -Oth Operating Inc & Expend,T/A Vehicle Maintenance etc,Transport-Contract Hire,J01374,Transport Related Expenditure ,Contract Hire and Op Leasing  ,CC69,Vehicles - Spot Hire,585,31/10/2016,R,REDACTED
620,CS -Oth Operating Inc & Expend,T/A Vehicle Maintenance etc,Transport-Contract Hire,J01374,Transport Related Expenditure ,Contract Hire and Op Leasing  ,CC69,Vehicles - Spot Hire,585,31/10/2016,R,REDACTED
621,CS -Oth Operating Inc & Expend,T/A Vehicle Maintenance etc,Transport-Contract Hire,J01374,Transport Related Expenditure ,Contract Hire and Op Leasing  ,CC69,Vehicles - Spot Hire,585,31/10/2016,R,REDACTED
622,CS -Oth Operating Inc & Expend,T/A Vehicle Maintenance etc,Transport-Contract Hire,J01374,Transport Related Expenditure ,Contract Hire and Op Leasing  ,CC69,Vehicles - Spot Hire,610,20/09/2016,R,SHIRE RECOVERIES LIMITED      
623,CS -Oth Operating Inc & Expend,T/A Vehicle Maintenance etc,Transport-Contract Hire,J01374,Transport Related Expenditure ,Contract Hire and Op Leasing  ,CC69,Vehicles - Spot Hire,610,20/09/2016,R,SHIRE RECOVERIES LIMITED      
624,CS -Oth Operating Inc & Expend,T/A Vehicle Maintenance etc,Transport-Contract Hire,J01374,Transport Related Expenditure ,Contract Hire and Op Leasing  ,CC69,Vehicles - Spot Hire,745,31/10/2016,R,GULLIVER'S TRUCK HIRE LTD.    
625,CS -Oth Operating Inc & Expend,T/A Vehicle Maintenance etc,Transport-Contract Hire,J01374,Transport Related Expenditure ,Contract Hire and Op Leasing  ,CC69,Vehicles - Spot Hire,745,08/11/2016,R,GULLIVER'S TRUCK HIRE LTD.    
626,CS -Oth Operating Inc & Expend,T/A Vehicle Maintenance etc,Transport-Contract Hire,J01374,Transport Related Expenditure ,Contract Hire and Op Leasing  ,CC69,Vehicles - Spot Hire,745,14/11/2016,R,GULLIVER'S TRUCK HIRE LTD.    
627,CS -Oth Operating Inc & Expend,T/A Vehicle Maintenance etc,Transport-Contract Hire,J01374,Transport Related Expenditure ,Contract Hire and Op Leasing  ,CC69,Vehicles - Spot Hire,745,24/10/2016,R,GULLIVER'S TRUCK HIRE LTD.    
628,CS -Oth Operating Inc & Expend,T/A Vehicle Maintenance etc,Transport-Contract Hire,J01374,Transport Related Expenditure ,Contract Hire and Op Leasing  ,CC69,Vehicles - Spot Hire,1130.5,17/10/2016,R,M6 VEHICLE HIRE               
629,CS -Oth Operating Inc & Expend,T/A Vehicle Maintenance etc,Transport-Contract Hire,J01374,Transport Related Expenditure ,Contract Hire and Op Leasing  ,CC69,Vehicles - Spot Hire,1190,31/10/2016,R,M6 VEHICLE HIRE               
630,CS -Oth Operating Inc & Expend,T/A Vehicle Maintenance etc,Transport-Contract Hire,J01374,Transport Related Expenditure ,Contract Hire and Op Leasing  ,CC69,Vehicles - Spot Hire,1204,25/10/2016,R,REDACTED
631,CS -Oth Operating Inc & Expend,T/A Vehicle Maintenance etc,Transport-Contract Hire,J01374,Transport Related Expenditure ,Contract Hire and Op Leasing  ,CC69,Vehicles - Spot Hire,4270,31/10/2016,R,C P DAVIDSON & SONS LTD       
632,CS -Oth Operating Inc & Expend,T/A Vehicle Maintenance etc,Transport-Contract Hire,J01374,Transport Related Expenditure ,Contract Hire and Op Leasing  ,CC69,Vehicles - Spot Hire,5214,10/11/2016,R,STENNETTS LTD                 
633,CS -Oth Operating Inc & Expend,T/A Vehicle Maintenance etc,Transport-Workshop,J01376,Premises Related Expenditure  ,RepairsAlterations&MtceOfBldgs,BA03,DDM - Mechanical                        ,549.64,10/11/2016,R,BILFINGER EUROPA FACILITY     
634,CS -Oth Operating Inc & Expend,T/A Vehicle Maintenance etc,Transport-Workshop,J01376,Transport Related Expenditure ,Contract Hire and Op Leasing  ,CC65,Vehicle Hire for Education              ,510,31/10/2016,R,BARCLAYS ASSET & SALES FINANCE
635,CS -Oth Operating Inc & Expend,T/A Vehicle Maintenance etc,Transport-Workshop,J01376,Transport Related Expenditure ,Contract Hire and Op Leasing  ,CC65,Vehicle Hire for Education              ,865,01/11/2016,R,GOLDEN SOVEREIGN COACHES      
636,CS -Oth Operating Inc & Expend,T/A Vehicle Maintenance etc,Transport-Workshop,J01376,Transport Related Expenditure ,Contract Hire and Op Leasing  ,CC65,Vehicle Hire for Education              ,1936,31/10/2016,R,BARCLAYS ASSET & SALES FINANCE
637,CS -Oth Operating Inc & Expend,T/A Vehicle Maintenance etc,Transport-Workshop,J01376,Transport Related Expenditure ,Contract Hire and Op Leasing  ,CC65,Vehicle Hire for Education              ,3136,31/10/2016,R,BARCLAYS ASSET & SALES FINANCE
638,CS -Oth Operating Inc & Expend,T/A Vehicle Maintenance etc,Vehicle Workshops,J01378,Employees                     ,Direct Employee Expenses      ,AA17,Agency Staff & Casual Paymts            ,855,31/08/2016,R,REDACTED
639,CS -Oth Operating Inc & Expend,T/A Vehicle Maintenance etc,Vehicle Workshops,J01378,Transport Related Expenditure ,Direct Transport Costs        ,CA02,Tyres                                   ,5483.77,31/10/2016,R,DIRECT TYRE MANAGEMENT LTD    
640,CS -Oth Operating Inc & Expend,T/A Vehicle Maintenance etc,Vehicle Workshops,J01378,Transport Related Expenditure ,Direct Transport Costs        ,CA55,Specialist Maint. (Off Site)            ,710.11,31/10/2016,R,ADVANTAGE RENTALS & RPRS LTD  
641,CS -Oth Operating Inc & Expend,T/A Vehicle Maintenance etc,Vehicle Workshops,J01378,Transport Related Expenditure ,Direct Transport Costs        ,CA55,Specialist Maint. (Off Site)            ,853.03,14/11/2016,R,DEES OF CROYDON LTD.          
642,CS -Oth Operating Inc & Expend,T/A Vehicle Maintenance etc,Vehicle Workshops,J01378,Transport Related Expenditure ,Direct Transport Costs        ,CA55,Specialist Maint. (Off Site)            ,1944.66,17/11/2016,R,DENNIS EAGLE LIMITED          
643,CS -Oth Operating Inc & Expend,T/A Vehicle Maintenance etc,Vehicle Workshops,J01378,Transport Related Expenditure ,Direct Transport Costs        ,CA55,Specialist Maint. (Off Site)            ,2540.47,31/10/2016,R,REDACTED
644,CS -Oth Operating Inc & Expend,T/A Vehicle Maintenance etc,Vehicle Workshops,J01378,Transport Related Expenditure ,Direct Transport Costs        ,CA55,Specialist Maint. (Off Site)            ,12801.23,28/10/2016,R,DENNIS EAGLE LIMITED          
645,CS -Oth Operating Inc & Expend,T/A Vehicle Maintenance etc,Vehicle Workshops,J01378,Transport Related Expenditure ,Direct Transport Costs        ,CA56,Specialist Maint. (On Site)             ,510,21/10/2016,R,R.J.H.WELDING                 
646,CS -Oth Operating Inc & Expend,T/A Vehicle Maintenance etc,Vehicle Workshops,J01378,Transport Related Expenditure ,Direct Transport Costs        ,CA56,Specialist Maint. (On Site)             ,540.55,21/10/2016,R,R.J.H.WELDING                 
647,CS -Oth Operating Inc & Expend,T/A Vehicle Maintenance etc,Vehicle Workshops,J01378,Transport Related Expenditure ,Direct Transport Costs        ,CA56,Specialist Maint. (On Site)             ,660,26/10/2016,R,GALLOWAY VEHICLE SERVICES     
648,CS -Oth Operating Inc & Expend,T/A Vehicle Maintenance etc,Vehicle Workshops,J01378,Transport Related Expenditure ,Direct Transport Costs        ,CA56,Specialist Maint. (On Site)             ,715.19,05/11/2016,R,R.J.H.WELDING                 
649,CS -Oth Operating Inc & Expend,T/A Vehicle Maintenance etc,Vehicle Workshops,J01378,Transport Related Expenditure ,Direct Transport Costs        ,CA56,Specialist Maint. (On Site)             ,797.5,26/10/2016,R,GALLOWAY VEHICLE SERVICES     
650,CS -Oth Operating Inc & Expend,T/A Vehicle Maintenance etc,Vehicle Workshops,J01378,Transport Related Expenditure ,Direct Transport Costs        ,CA56,Specialist Maint. (On Site)             ,797.5,26/10/2016,R,GALLOWAY VEHICLE SERVICES     
651,CS -Oth Operating Inc & Expend,T/A Vehicle Maintenance etc,Vehicle Workshops,J01378,Transport Related Expenditure ,Direct Transport Costs        ,CA56,Specialist Maint. (On Site)             ,843.4,05/11/2016,R,R.J.H.WELDING                 
652,CS -Oth Operating Inc & Expend,T/A Vehicle Maintenance etc,Vehicle Workshops,J01378,Transport Related Expenditure ,Direct Transport Costs        ,CA56,Specialist Maint. (On Site)             ,849.1,21/10/2016,R,R.J.H.WELDING                 
653,CS -Oth Operating Inc & Expend,T/A Vehicle Maintenance etc,Vehicle Workshops,J01378,Transport Related Expenditure ,Direct Transport Costs        ,CA56,Specialist Maint. (On Site)             ,915.5,21/10/2016,R,R.J.H.WELDING                 
654,CS -Oth Operating Inc & Expend,T/A Vehicle Maintenance etc,Vehicle Workshops,J01378,Transport Related Expenditure ,Direct Transport Costs        ,CA56,Specialist Maint. (On Site)             ,1210,26/10/2016,R,GALLOWAY VEHICLE SERVICES     
655,CS -Oth Operating Inc & Expend,T/A Vehicle Maintenance etc,Vehicle Workshops,J01378,Transport Related Expenditure ,Direct Transport Costs        ,CA56,Specialist Maint. (On Site)             ,1211.95,10/11/2016,R,REDACTED
656,CS -Oth Operating Inc & Expend,T/A Vehicle Maintenance etc,Vehicle Workshops,J01378,Transport Related Expenditure ,Direct Transport Costs        ,CA56,Specialist Maint. (On Site)             ,1231.46,20/10/2016,R,ECON ENGINEERING LTD          
657,CS -Oth Operating Inc & Expend,T/A Vehicle Maintenance etc,Vehicle Workshops,J01378,Transport Related Expenditure ,Direct Transport Costs        ,CA56,Specialist Maint. (On Site)             ,1235.14,05/11/2016,R,R.J.H.WELDING                 
658,CS -Oth Operating Inc & Expend,T/A Vehicle Maintenance etc,Vehicle Workshops,J01378,Transport Related Expenditure ,Direct Transport Costs        ,CA56,Specialist Maint. (On Site)             ,1242,17/11/2016,R,REDACTED
659,CS -Oth Operating Inc & Expend,T/A Vehicle Maintenance etc,Vehicle Workshops,J01378,Transport Related Expenditure ,Direct Transport Costs        ,CA56,Specialist Maint. (On Site)             ,1311.95,28/10/2016,R,REDACTED
660,CS -Oth Operating Inc & Expend,T/A Vehicle Maintenance etc,Vehicle Workshops,J01378,Transport Related Expenditure ,Direct Transport Costs        ,CA56,Specialist Maint. (On Site)             ,1553.36,09/11/2016,R,GEESINK NORBA                 
661,CS -Oth Operating Inc & Expend,T/A Vehicle Maintenance etc,Vehicle Workshops,J01378,Transport Related Expenditure ,Direct Transport Costs        ,CA56,Specialist Maint. (On Site)             ,1648.15,17/11/2016,R,REDACTED
662,CS -Oth Operating Inc & Expend,T/A Vehicle Maintenance etc,Vehicle Workshops,J01378,Transport Related Expenditure ,Direct Transport Costs        ,CA56,Specialist Maint. (On Site)             ,1791.44,20/09/2016,R,GEESINK NORBA                 
663,CS -Oth Operating Inc & Expend,T/A Vehicle Maintenance etc,Vehicle Workshops,J01378,Transport Related Expenditure ,Direct Transport Costs        ,CA56,Specialist Maint. (On Site)             ,2029.74,09/11/2016,R,GEESINK NORBA                 
664,CS -Oth Operating Inc & Expend,T/A Vehicle Maintenance etc,Vehicle Workshops,J01378,Transport Related Expenditure ,Direct Transport Costs        ,CA72,Vehicle Parts                           ,513.42,09/11/2016,R,DENNIS EAGLE LIMITED          
665,CS -Oth Operating Inc & Expend,T/A Vehicle Maintenance etc,Vehicle Workshops,J01378,Transport Related Expenditure ,Direct Transport Costs        ,CA72,Vehicle Parts                           ,579.8,02/11/2016,R,DENNIS EAGLE LIMITED          
666,CS -Oth Operating Inc & Expend,T/A Vehicle Maintenance etc,Vehicle Workshops,J01378,Transport Related Expenditure ,Direct Transport Costs        ,CA72,Vehicle Parts                           ,595,11/11/2016,R,AARON RADIATOR CO LTD         
667,CS -Oth Operating Inc & Expend,T/A Vehicle Maintenance etc,Vehicle Workshops,J01378,Transport Related Expenditure ,Direct Transport Costs        ,CA72,Vehicle Parts                           ,760.1,01/11/2016,R,GEESINK NORBA                 
668,CS -Oth Operating Inc & Expend,T/A Vehicle Maintenance etc,Vehicle Workshops,J01378,Transport Related Expenditure ,Direct Transport Costs        ,CA72,Vehicle Parts                           ,800,20/10/2016,R,EUROCAR PARTS                 
669,CS -Oth Operating Inc & Expend,T/A Vehicle Maintenance etc,Vehicle Workshops,J01378,Transport Related Expenditure ,Direct Transport Costs        ,CA72,Vehicle Parts                           ,1114.14,14/11/2016,R,COMMERCIAL & PLANT LTD        
670,CS -Oth Operating Inc & Expend,T/A Vehicle Maintenance etc,Vehicle Workshops,J01378,Transport Related Expenditure ,Direct Transport Costs        ,CA72,Vehicle Parts                           ,1200.74,07/11/2016,R,DENNIS EAGLE LIMITED          
671,CS -Oth Operating Inc & Expend,T/A Vehicle Maintenance etc,Vehicle Workshops,J01378,Transport Related Expenditure ,Direct Transport Costs        ,CA72,Vehicle Parts                           ,1210.49,22/09/2016,R,GEESINK NORBA                 
672,CS -Oth Operating Inc & Expend,T/A Vehicle Maintenance etc,Vehicle Workshops,J01378,Transport Related Expenditure ,Direct Transport Costs        ,CA72,Vehicle Parts                           ,1606.6,11/11/2016,R,DENNIS EAGLE LIMITED          
673,CS -Oth Operating Inc & Expend,T/A Vehicle Maintenance etc,Vehicle Workshops,J01378,Supplies & Services           ,Grants and Subscriptions      ,DJ04,Subscriptions                           ,963,01/09/2016,R,FREIGHT TRANSPORT ASSOCIATION 
674,Cultural Env Reg&Plan Services,Mgt & Support (Env),Estates Mgt,J01420,Supplies & Services           ,Services                      ,DF50,Estate Management                       ,1250,27/07/2016,R,AMSY LIMITED                  
675,Cultural Env Reg&Plan Services,Mgt & Support (Env),Estates Mgt,J01420,Supplies & Services           ,Grants and Subscriptions      ,DJ04,Subscriptions                           ,512,01/10/2016,R,RICS BUSINESS SERVICE LTD     
676,Cultural Env Reg&Plan Services,Mgt & Support (Env),Estates Mgt,J01420,Supplies & Services           ,Grants and Subscriptions      ,DJ04,Subscriptions                           ,512,01/10/2016,R,RICS BUSINESS SERVICE LTD     
677,Cultural Env Reg&Plan Services,Mgt & Support (Env),Estates Mgt,J01420,Supplies & Services           ,Grants and Subscriptions      ,DJ04,Subscriptions                           ,512,01/10/2016,R,RICS BUSINESS SERVICE LTD     
678,Cultural Env Reg&Plan Services,Mgt & Support (Env),Estates Mgt,J01420,Supplies & Services           ,Grants and Subscriptions      ,DJ04,Subscriptions                           ,2060,25/10/2016,R,CIPFA                         
679,CS -Oth Operating Inc & Expend,Extraordinary Items & PY Adj.,Other Misc Props Budget,J01526,Premises Related Expenditure  ,RepairsAlterations&MtceOfBldgs,BA01,DDM - General Building                  ,11484.12,21/09/2016,R,KIARA DECORATING CONTRACTORS  
680,CS -Oth Operating Inc & Expend,Extraordinary Items & PY Adj.,Housing Shops,J01533,Premises Related Expenditure  ,RepairsAlterations&MtceOfBldgs,BA05,DDM - ELECTRICAL                        ,1093.58,20/10/2016,R,BILFINGER EUROPA FACILITY     
681,CS -Oth Operating Inc & Expend,Extraordinary Items & PY Adj.,Civic Centre Shops and Roof,J03003,Premises Related Expenditure  ,Rents                         ,BD01,NNDR LBM                      ,2991.53,04/10/2016,R,REDACTED
682,CS -Oth Operating Inc & Expend,Extraordinary Items & PY Adj.,Pollards Hill Comm Cntre,J08074,Premises Related Expenditure  ,RepairsAlterations&MtceOfBldgs,BA03,DDM - Mechanical                        ,617.24,10/11/2016,R,BILFINGER EUROPA FACILITY     
683,Childrens & Education Services,Statutory & Regulatory Duties,Senior Mngt & Support Services,K01005,Supplies & Services           ,Services                      ,DF95,Services from Provider                  ,862.31,02/11/2016,R,SEARCHFLOW LTD                
684,Childrens & Education Services,Statutory & Regulatory Duties,Schools IT Support,K02008,Supplies & Services           ,Comms and Computing           ,DG50,Other IT Expenditure                    ,950,02/11/2016,R,ATOMWIDE LTD                  
685,Childrens & Education Services,Statutory & Regulatory Duties,Schools IT Support,K02008,Supplies & Services           ,Comms and Computing           ,DG50,Other IT Expenditure                    ,1249,02/11/2016,R,ATOMWIDE LTD                  
686,Childrens & Education Services,Asset Management,PFI Unitary Charges,K03023,Third Party Payments          ,Private Contractors           ,EH02,Miscellaneous Hired Services            ,641,07/11/2016,R,NEWSCHOOLS (MERTON) LIMITED   
687,Childrens & Education Services,Asset Management,PFI Unitary Charges,K03023,Third Party Payments          ,Private Contractors           ,EH02,Miscellaneous Hired Services            ,2517.4,10/10/2016,R,NEWSCHOOLS (MERTON) LIMITED   
688,Childrens & Education Services,Asset Management,PFI Unitary Charges,K03023,Third Party Payments          ,Private Contractors           ,EH02,Miscellaneous Hired Services            ,4345.69,07/11/2016,R,NEWSCHOOLS (MERTON) LIMITED   
689,Childrens & Education Services,Education Psychology Service,Education Psychology.,K04018,Employees                     ,Direct Employee Expenses      ,AA17,Agency Staff & Casual Paymts            ,937.5,21/10/2016,R,REDACTED
690,Childrens & Education Services,Education Psychology Service,Education Psychology.,K04018,Employees                     ,Direct Employee Expenses      ,AA17,Agency Staff & Casual Paymts            ,2000,03/11/2016,R,REDACTED
691,Childrens & Education Services,Education Psychology Service,Education Psychology.,K04018,Employees                     ,Direct Employee Expenses      ,AA17,Agency Staff & Casual Paymts            ,2000,18/11/2016,R,REDACTED
692,Childrens & Education Services,Education Psychology Service,Education Psychology.,K04018,Employees                     ,Direct Employee Expenses      ,AA17,Agency Staff & Casual Paymts            ,2000,31/10/2016,R,REDACTED
693,Childrens & Education Services,Education Psychology Service,Education Psychology.,K04018,Employees                     ,Direct Employee Expenses      ,AA17,Agency Staff & Casual Paymts            ,2800,11/11/2016,R,REDACTED
694,Childrens & Education Services,Education Psychology Service,Education Psychology.,K04018,Employees                     ,Direct Employee Expenses      ,AA17,Agency Staff & Casual Paymts            ,6000,21/11/2016,R,REDACTED
695,Childrens & Education Services,Support for SEN Pupils,Statementing-Transport,K04023,Transport Related Expenditure ,Recharge frm Transport Holding,CB02,Transport SLA/Rech - Dir Std            ,1175,02/11/2016,R,MRS B'S COMMUNITY SERVICES LTD
696,Childrens & Education Services,Support for SEN Pupils,Statementing-Transport,K04023,Transport Related Expenditure ,Public Transport              ,CD50,Home Sch/Coll Trans(Trav Exps),504,13/10/2016,R,CROYDON COUNCIL               
697,Childrens & Education Services,Support for SEN Pupils,Statementing-Transport,K04023,Transport Related Expenditure ,Public Transport              ,CD50,Home Sch/Coll Trans(Trav Exps),575.7,13/10/2016,R,CROYDON COUNCIL               
698,Childrens & Education Services,Support for SEN Pupils,Statementing-Transport,K04023,Transport Related Expenditure ,Public Transport              ,CD50,Home Sch/Coll Trans(Trav Exps),675,31/10/2016,R,REDACTED
699,Childrens & Education Services,Support for SEN Pupils,Statementing-Transport,K04023,Transport Related Expenditure ,Public Transport              ,CD50,Home Sch/Coll Trans(Trav Exps),855,30/09/2016,R,REDACTED
700,Childrens & Education Services,Support for SEN Pupils,Statementing-Transport,K04023,Transport Related Expenditure ,Public Transport              ,CD50,Home Sch/Coll Trans(Trav Exps),910,24/10/2016,R,ENFIELD COUNCIL               
701,Childrens & Education Services,Support for SEN Pupils,Statementing-Transport,K04023,Transport Related Expenditure ,Public Transport              ,CD50,Home Sch/Coll Trans(Trav Exps),1366,04/11/2016,R,ST MARY'S WRESTWOOD CHILDRENS 
702,Childrens & Education Services,Support for SEN Pupils,Statementing-Transport,K04023,Transport Related Expenditure ,Public Transport              ,CD50,Home Sch/Coll Trans(Trav Exps),18070,24/10/2016,R,ENFIELD COUNCIL               
703,Childrens & Education Services,Support for SEN Pupils,Statementing-Transport,K04023,Supplies & Services           ,Comms and Computing           ,DG02,Software Licences                       ,2000,24/10/2016,R,ADAM HTT LIMITED T/A ADAM     
704,Childrens & Education Services,Support for SEN Pupils,Statementing-Transport,K04023,Supplies & Services           ,Comms and Computing           ,DG02,Software Licences                       ,6250,24/10/2016,R,ADAM HTT LIMITED T/A ADAM     
705,Childrens & Education Services,Support for SEN Pupils,Statementing-Transport,K04023,Supplies & Services           ,Comms and Computing           ,DG02,Software Licences                       ,6250,24/10/2016,R,ADAM HTT LIMITED T/A ADAM     
706,Childrens & Education Services,Ensuring Attendance At School,Education Welfare Service,K05033,Supplies & Services           ,Comms and Computing           ,DG50,Other IT Expenditure                    ,20000,13/09/2016,R,SERVELEC SYNERGY LTD          
707,Childrens & Education Services,Pupil Referral Units,Expanded Pupil Referral Unit,K05099,Third Party Payments          ,Private Contractors           ,EH01,Miscellaneous Agency Services           ,2022,27/06/2016,R,SW LONDON ST GEORGES NHS TRUST
708,Childrens & Education Services,Oth U5s Provn Not Prim or Spec,GSSG Workforce Development,K05111,Employees                     ,Indirect Employee Expenses    ,AB56,Internal Training Costs       ,830,09/11/2016,R,EARLY EDUCATION               
709,Childrens & Education Services,Oth U5s Provn Not Prim or Spec,GSSG Workforce Development,K05111,Employees                     ,Indirect Employee Expenses    ,AB56,Internal Training Costs       ,833,28/09/2016,R,EARLY EDUCATION               
710,Childrens & Education Services,GENERATED ACCOUNT,Children's centres,K05137,Premises Related Expenditure  ,RepairsAlterations&MtceOfBldgs,BA01,DDM - General Building                  ,10341,17/10/2016,R,MOY CONSTRUCTION CO LTD       
711,Childrens & Education Services,GENERATED ACCOUNT,Children's centres,K05137,Premises Related Expenditure  ,RepairsAlterations&MtceOfBldgs,BA01,DDM - General Building                  ,16238,17/10/2016,R,MOY CONSTRUCTION CO LTD       
712,Childrens & Education Services,GENERATED ACCOUNT,Children's centres,K05137,Premises Related Expenditure  ,RepairsAlterations&MtceOfBldgs,BA79,Security of Premises                    ,2406.2,01/11/2016,R,SIGHT & SOUND                 
713,Childrens & Education Services,GENERATED ACCOUNT,Children's centres,K05137,Supplies & Services           ,Services                      ,DF30,Activities Programme                    ,5600,07/11/2016,R,SUSSEX BABY MASSAGE           
714,Childrens & Education Services,GENERATED ACCOUNT,Lavender Children's Centre,K05410,Supplies & Services           ,Equip Furniture/Materials     ,DA04,Materials                               ,1999.5,14/09/2016,R,DMA SIGNS LTD                 
715,Childrens & Education Services,GENERATED ACCOUNT,Mitcham MAT (Premises),K05412,Premises Related Expenditure  ,Cleaning and Domestic Supplies,BH03,Cleaning Services                       ,1564.45,01/11/2016,R,BIRKIN CLEANING SERVICES LTD  
716,Childrens & Education Services,GENERATED ACCOUNT,Morden MAT,K05413,Premises Related Expenditure  ,RepairsAlterations&MtceOfBldgs,BA79,Security of Premises                    ,627.4,12/10/2016,R,CHUBB FIRE & SECURITY LTD     
717,Childrens & Education Services,GENERATED ACCOUNT,Morden MAT,K05413,Premises Related Expenditure  ,Cleaning and Domestic Supplies,BH03,Cleaning Services                       ,1312.19,01/11/2016,R,BIRKIN CLEANING SERVICES LTD  
718,Childrens & Education Services,Nursery schools,E.Years-Intergenerational Cntr,K05416,Premises Related Expenditure  ,Cleaning and Domestic Supplies,BH03,Cleaning Services                       ,911.55,01/11/2016,R,BIRKIN CLEANING SERVICES LTD  
719,Childrens & Education Services,Nursery schools,EY-Support Separating Parents,K05417,Supplies & Services           ,Equip Furniture/Materials     ,DA09,Equip-Purchases                         ,732,07/11/2016,R,OFFICE FURNITURE ONLINE       
720,Childrens & Education Services,Vocational - Adult Education,AE-Adult Education Main,K06049,Premises Related Expenditure  ,Cleaning and Domestic Supplies,BH03,Cleaning Services                       ,658.27,01/11/2016,R,BIRKIN CLEANING SERVICES LTD  
721,Childrens & Education Services,Youth Centres (Residential),Leyton Rd Premises Costs.,K06054,Premises Related Expenditure  ,Cleaning and Domestic Supplies,BH03,Cleaning Services                       ,573.87,01/11/2016,R,BIRKIN CLEANING SERVICES LTD  
722,Childrens & Education Services,Vocational - Adult Education,Phipps Bridge Yth Ctre,K06059,Supplies & Services           ,Expenses                      ,DH12,Young Peoples Expenses        ,5104,20/10/2016,R,BRIDGE TIMBER PRODUCTS        
723,Childrens & Education Services,Facilitating School Improvemnt,Virtual Schools (Balance),K07109,Supplies & Services           ,Grants and Subscriptions      ,DJ01,Grants                                  ,557.5,31/10/2016,R,HA TUTORS LTD                 
724,Childrens & Education Services,Facilitating School Improvemnt,Virtual Schools (Balance),K07109,Supplies & Services           ,Grants and Subscriptions      ,DJ01,Grants                                  ,600,18/11/2016,R,MAYFLOWER HIGH SCHOOL         
725,Childrens & Education Services,Facilitating School Improvemnt,Virtual Schools (Balance),K07109,Supplies & Services           ,Grants and Subscriptions      ,DJ01,Grants                                  ,600,08/11/2016,R,CUDDINGTON COMMUNITY P. SCHOOL
726,Childrens & Education Services,Facilitating School Improvemnt,Virtual Schools (Balance),K07109,Supplies & Services           ,Grants and Subscriptions      ,DJ01,Grants                                  ,600,18/11/2016,R,GONVILLE ACADEMY              
727,Childrens & Education Services,Facilitating School Improvemnt,Virtual Schools (Balance),K07109,Supplies & Services           ,Grants and Subscriptions      ,DJ01,Grants                                  ,600,08/11/2016,R,LANGLEY PARK SCHOOL FOR GIRLS 
728,Childrens & Education Services,Facilitating School Improvemnt,Virtual Schools (Balance),K07109,Supplies & Services           ,Grants and Subscriptions      ,DJ01,Grants                                  ,600,08/11/2016,R,CHURCHFIELDS INFANTS SCHOOL   
729,Childrens & Education Services,Facilitating School Improvemnt,Virtual Schools (Balance),K07109,Supplies & Services           ,Grants and Subscriptions      ,DJ01,Grants                                  ,600,08/11/2016,R,IVY DALE PRIMARY              
730,Childrens & Education Services,Facilitating School Improvemnt,Virtual Schools (Balance),K07109,Supplies & Services           ,Grants and Subscriptions      ,DJ01,Grants                                  ,600,08/11/2016,R,WETHERSFIELD C OF E PRIM'Y SCH
731,Childrens & Education Services,Facilitating School Improvemnt,Virtual Schools (Balance),K07109,Supplies & Services           ,Grants and Subscriptions      ,DJ01,Grants                                  ,600,18/11/2016,R,MUNTHAM HOUSE SCHOOL          
732,Childrens & Education Services,Facilitating School Improvemnt,Virtual Schools (Balance),K07109,Supplies & Services           ,Grants and Subscriptions      ,DJ01,Grants                                  ,600,08/11/2016,R,RIDDLESDOWN COLLEGIATE        
733,Childrens & Education Services,Facilitating School Improvemnt,Virtual Schools (Balance),K07109,Supplies & Services           ,Grants and Subscriptions      ,DJ01,Grants                                  ,600,18/11/2016,R,CHESTNUT GROVE ACADEMY        
734,Childrens & Education Services,Facilitating School Improvemnt,Virtual Schools (Balance),K07109,Supplies & Services           ,Grants and Subscriptions      ,DJ01,Grants                                  ,600,08/11/2016,R,BAY HOUSE SCHOOL              
735,Childrens & Education Services,Facilitating School Improvemnt,Virtual Schools (Balance),K07109,Supplies & Services           ,Grants and Subscriptions      ,DJ01,Grants                                  ,600,08/11/2016,R,LINDEN LODGE SCHOOL           
736,Childrens & Education Services,Facilitating School Improvemnt,Virtual Schools (Balance),K07109,Supplies & Services           ,Grants and Subscriptions      ,DJ01,Grants                                  ,600,18/11/2016,R,CARSHALTON BOYS SPORTS COLLEGE
737,Childrens & Education Services,Facilitating School Improvemnt,Virtual Schools (Balance),K07109,Supplies & Services           ,Grants and Subscriptions      ,DJ01,Grants                                  ,600,08/11/2016,R,DYMCHURCH PRIMARY SCHOOL      
738,Childrens & Education Services,Facilitating School Improvemnt,Virtual Schools (Balance),K07109,Supplies & Services           ,Grants and Subscriptions      ,DJ01,Grants                                  ,600,08/11/2016,R,IVY DALE PRIMARY              
739,Childrens & Education Services,Facilitating School Improvemnt,Virtual Schools (Balance),K07109,Supplies & Services           ,Grants and Subscriptions      ,DJ01,Grants                                  ,600,08/11/2016,R,CAREW ACADEMY                 
740,Childrens & Education Services,Facilitating School Improvemnt,Virtual Schools (Balance),K07109,Supplies & Services           ,Grants and Subscriptions      ,DJ01,Grants                                  ,600,08/11/2016,R,CARSHALTON HIGH SCH FOR GIRLS 
741,Childrens & Education Services,Facilitating School Improvemnt,Virtual Schools (Balance),K07109,Supplies & Services           ,Grants and Subscriptions      ,DJ01,Grants                                  ,600,08/11/2016,R,CARSHALTON HIGH SCH FOR GIRLS 
742,Childrens & Education Services,Facilitating School Improvemnt,Virtual Schools (Balance),K07109,Supplies & Services           ,Grants and Subscriptions      ,DJ01,Grants                                  ,600,08/11/2016,R,HAWES DOWN JUNIOR SCHOOL      
743,Childrens & Education Services,Facilitating School Improvemnt,Virtual Schools (Balance),K07109,Supplies & Services           ,Grants and Subscriptions      ,DJ01,Grants                                  ,600,08/11/2016,R,BAY HOUSE SCHOOL              
744,Childrens & Education Services,Facilitating School Improvemnt,Virtual Schools (Balance),K07109,Supplies & Services           ,Grants and Subscriptions      ,DJ01,Grants                                  ,600,08/11/2016,R,LINDEN LODGE SCHOOL           
745,Childrens & Education Services,Facilitating School Improvemnt,Virtual Schools (Balance),K07109,Supplies & Services           ,Grants and Subscriptions      ,DJ01,Grants                                  ,600,08/11/2016,R,GRAVENEY SCHOOL               
746,Childrens & Education Services,Facilitating School Improvemnt,Virtual Schools (Balance),K07109,Supplies & Services           ,Grants and Subscriptions      ,DJ01,Grants                                  ,600,08/11/2016,R,OXTED SCHOOL                  
747,Childrens & Education Services,Facilitating School Improvemnt,Virtual Schools (Balance),K07109,Supplies & Services           ,Grants and Subscriptions      ,DJ01,Grants                                  ,600,08/11/2016,R,RIDDLESDOWN COLLEGIATE        
748,Childrens & Education Services,Facilitating School Improvemnt,Virtual Schools (Balance),K07109,Supplies & Services           ,Grants and Subscriptions      ,DJ01,Grants                                  ,600,08/11/2016,R,GLENTHORNE HIGH SCHOOL        
749,Childrens & Education Services,Facilitating School Improvemnt,Virtual Schools (Balance),K07109,Supplies & Services           ,Grants and Subscriptions      ,DJ01,Grants                                  ,600,08/11/2016,R,GLENTHORNE HIGH SCHOOL        
750,Childrens & Education Services,Facilitating School Improvemnt,Virtual Schools (Balance),K07109,Supplies & Services           ,Grants and Subscriptions      ,DJ01,Grants                                  ,600,18/11/2016,R,RAMSGATE FREE SCHOOL          
751,Childrens & Education Services,Facilitating School Improvemnt,Virtual Schools (Balance),K07109,Supplies & Services           ,Grants and Subscriptions      ,DJ01,Grants                                  ,600,08/11/2016,R,CHEAM HIGH SCHOOL             
752,Childrens & Education Services,Facilitating School Improvemnt,Virtual Schools (Balance),K07109,Supplies & Services           ,Grants and Subscriptions      ,DJ01,Grants                                  ,620,31/10/2016,R,PEARSON PUBLISHING            
753,Childrens & Education Services,Facilitating School Improvemnt,Virtual Schools (Balance),K07109,Supplies & Services           ,Grants and Subscriptions      ,DJ01,Grants                                  ,1200,18/11/2016,R,GREY COAT HOSPITAL SCHOOL     
754,Childrens & Education Services,Facilitating School Improvemnt,Virtual Schools (Balance),K07109,Supplies & Services           ,Grants and Subscriptions      ,DJ01,Grants                                  ,1200,08/11/2016,R,ST MARY'S C OF E JUNIOR SCHOOL
755,Childrens & Education Services,Facilitating School Improvemnt,Virtual Schools (Balance),K07109,Supplies & Services           ,Grants and Subscriptions      ,DJ01,Grants                                  ,1280,31/10/2016,R,PEARSON PUBLISHING            
756,Childrens & Education Services,Asset Management,S106 Bid,K08077,Premises Related Expenditure  ,RepairsAlterations&MtceOfBldgs,BA06,REPAIRS & MAINTENANCE GENERAL           ,1195,16/11/2016,R,SYMES GARDEN SERVICES         
757,Childrens & Education Services,Asset Management,S106 Bid,K08077,Premises Related Expenditure  ,RepairsAlterations&MtceOfBldgs,BA06,REPAIRS & MAINTENANCE GENERAL           ,1795,16/11/2016,R,SYMES GARDEN SERVICES         
758,Childrens & Education Services,Asset Management,S106 Bid,K08077,Premises Related Expenditure  ,RepairsAlterations&MtceOfBldgs,BA06,REPAIRS & MAINTENANCE GENERAL           ,4395,16/11/2016,R,SYMES GARDEN SERVICES         
759,Childrens & Education Services,Asset Management,S106 Bid,K08077,Premises Related Expenditure  ,RepairsAlterations&MtceOfBldgs,BA06,REPAIRS & MAINTENANCE GENERAL           ,7529,21/10/2016,R,ASI ENVIRONMENTAL LTD         
760,Childrens & Education Services,Asset Management,S106 Bid,K08077,Premises Related Expenditure  ,RepairsAlterations&MtceOfBldgs,BA06,REPAIRS & MAINTENANCE GENERAL           ,21340,21/10/2016,R,ASI ENVIRONMENTAL LTD         
761,Childrens & Education Services,Asset Management,S106 Bid,K08077,Premises Related Expenditure  ,RepairsAlterations&MtceOfBldgs,BA79,Security of Premises                    ,1757.5,01/11/2016,R,SIGHT & SOUND                 
762,Childrens & Education Services,Asset Management,S106 Bid,K08077,Premises Related Expenditure  ,Rents                         ,BD01,NNDR LBM                                ,15613.4,09/11/2016,R,REDACTED
763,Childrens & Education Services,Asset Management,S106 Bid,K08077,Supplies & Services           ,Prntng Stnry Gen Off Exp      ,DE52,Office Removal Expenses       ,520,31/10/2016,R,EDE'S (U.K.) LTD              
764,Childrens & Education Services,Asset Management,S106 Bid,K08077,Supplies & Services           ,Services                      ,DF04,Miscellaneous Expenses                  ,1200,14/11/2016,R,ELIM FOURSQ. GOSPEL ALLIANCE  
765,Childrens & Education Services,Asset Management,Centre Commissioned Servs,K08078,Supplies & Services           ,Grants and Subscriptions      ,DJ01,Grants                                  ,11905,25/10/2016,R,JIGSAW4U                      
766,Childrens & Education Services,Asset Management,Centre Commissioned Servs,K08078,Supplies & Services           ,Grants and Subscriptions      ,DJ01,Grants                                  ,25500,25/10/2016,R,JIGSAW4U                      
767,Childrens & Education Services,Facilitating School Improvemnt,SSQ,K09077,Supplies & Services           ,Prntng Stnry Gen Off Exp      ,DE30,General Office Expense                  ,525,26/10/2016,R,UNIQUE OFFICE SOLUTIONS LTD   
768,Childrens & Education Services,Facilitating School Improvemnt,SSQ,K09077,Supplies & Services           ,Expenses                      ,DH02,Conferences                             ,800,21/11/2016,R,WANDSWORTH BOROUGH COUNCIL    
769,Childrens & Education Services,Facilitating School Improvemnt,SSQ,K09077,Supplies & Services           ,Expenses                      ,DH02,Conferences                             ,1350,01/11/2016,R,SQUARE 2 SQUARE LEARNING LTD  
770,Childrens & Education Services,Facilitating School Improvemnt,SSQ,K09077,Supplies & Services           ,Expenses                      ,DH02,Conferences                             ,4800,21/11/2016,R,WANDSWORTH BOROUGH COUNCIL    
771,Childrens & Education Services,Facilitating School Improvemnt,CPD Training SSQ,K09078,Supplies & Services           ,Expenses                      ,DH02,Conferences                             ,605,08/11/2016,R,REDACTED
772,Childrens & Education Services,Asset Management,Stouthall,K09082,Premises Related Expenditure  ,Ground Maintenance Costs      ,BL03,Maintenance of Grounds                  ,6000,21/10/2016,R,A Y LANDSCAPES LTD            
773,Childrens & Education Services,Asset Management,Stouthall,K09082,Supplies & Services           ,Services                      ,DF50,Estate Management                       ,975,31/10/2016,R,GVA GRIMLEY LTD               
774,Childrens & Education Services,Sch Meals & Milk-Not Delegated,Free School Meals,K90002,Premises Related Expenditure  ,RepairsAlterations&MtceOfBldgs,BA01,DDM - General Building                  ,2056.28,25/10/2016,R,DF20 LTD                      
775,Childrens & Education Services,Ensuring Attendance At School,Behaviour Support,K90004,Employees                     ,Indirect Employee Expenses    ,AB02,Recruitment Adverts                     ,2643,28/10/2016,R,TES GLOBAL LIMITED            
776,Childrens & Education Services,Support for SEN Pupils,Non-Delegated Statements,K90024,Employees                     ,Direct Employee Expenses      ,AA17,Agency Staff & Casual Paymts            ,635,30/09/2016,R,REDACTED
777,Childrens & Education Services,Support for SEN Pupils,Non-Delegated Statements,K90024,Employees                     ,Direct Employee Expenses      ,AA17,Agency Staff & Casual Paymts            ,675,31/10/2016,R,REDACTED
778,Childrens & Education Services,Support for SEN Pupils,Non-Delegated Statements,K90024,Employees                     ,Direct Employee Expenses      ,AA17,Agency Staff & Casual Paymts            ,2015,09/11/2016,R,REDACTED
779,Childrens & Education Services,Support for SEN Pupils,Non-Delegated Statements,K90024,Supplies & Services           ,Equip Furniture/Materials     ,DA53,Specialist Equipment                    ,1470,18/07/2016,R,PELHAM PRIMARY SCHOOL         
780,Childrens & Education Services,Support for SEN Pupils,Non-Delegated Statements,K90024,Supplies & Services           ,Services                      ,DF09,Miscellaneous Fees                      ,1360,22/11/2016,R,REDACTED
781,Childrens & Education Services,Support for SEN Pupils,Non-Delegated Statements,K90024,Supplies & Services           ,Services                      ,DF09,Miscellaneous Fees                      ,2473.5,04/11/2016,R,PERSEID SCHOOL                
782,Childrens & Education Services,Support for SEN Pupils,Non-Delegated Statements,K90024,Supplies & Services           ,Services                      ,DF09,Miscellaneous Fees                      ,8038.96,04/11/2016,R,PERSEID SCHOOL                
783,Childrens & Education Services,Support for SEN Pupils,Non-Delegated Statements,K90024,Supplies & Services           ,Services                      ,DF09,Miscellaneous Fees                      ,10030,04/11/2016,R,PERSEID SCHOOL                
784,Childrens & Education Services,Support for SEN Pupils,Non-Delegated Statements,K90024,Supplies & Services           ,Services                      ,DF09,Miscellaneous Fees                      ,10030,04/11/2016,R,PERSEID SCHOOL                
785,Childrens & Education Services,Support for SEN Pupils,Non-Delegated Statements,K90024,Third Party Payments          ,Other Local Authorities       ,EB48,OLA PAYMENTS-STATEMENTS                 ,1220,30/11/2016,R,CHEAM HIGH SCHOOL             
786,Childrens & Education Services,Support for SEN Pupils,Non-Delegated Statements,K90024,Third Party Payments          ,Other Local Authorities       ,EB48,OLA PAYMENTS-STATEMENTS                 ,1566.42,15/11/2016,R,SOUTHFIELDS  ACADEMY          
787,Childrens & Education Services,Support for SEN Pupils,Non-Delegated Statements,K90024,Third Party Payments          ,Other Local Authorities       ,EB48,OLA PAYMENTS-STATEMENTS                 ,1643.46,15/11/2016,R,SOUTHFIELDS  ACADEMY          
788,Childrens & Education Services,Support for SEN Pupils,Non-Delegated Statements,K90024,Third Party Payments          ,Other Local Authorities       ,EB48,OLA PAYMENTS-STATEMENTS                 ,2044,30/11/2016,R,STANLEY PARK HIGH             
789,Childrens & Education Services,Support for SEN Pupils,Non-Delegated Statements,K90024,Third Party Payments          ,Other Local Authorities       ,EB48,OLA PAYMENTS-STATEMENTS                 ,2178,30/11/2016,R,BRIT SCHOOL                 
790,Childrens & Education Services,Support for SEN Pupils,Non-Delegated Statements,K90024,Third Party Payments          ,Other Local Authorities       ,EB48,OLA PAYMENTS-STATEMENTS                 ,2316,18/11/2016,R,BRIT SCHOOL                 
791,Childrens & Education Services,Support for SEN Pupils,Non-Delegated Statements,K90024,Third Party Payments          ,Other Local Authorities       ,EB48,OLA PAYMENTS-STATEMENTS                 ,2490.25,18/11/2016,R,MANOR PARK PRIMARY SCHOOL     
792,Childrens & Education Services,Support for SEN Pupils,Non-Delegated Statements,K90024,Third Party Payments          ,Other Local Authorities       ,EB48,OLA PAYMENTS-STATEMENTS                 ,2515,18/11/2016,R,BRIT SCHOOL                 
793,Childrens & Education Services,Support for SEN Pupils,Non-Delegated Statements,K90024,Third Party Payments          ,Other Local Authorities       ,EB48,OLA PAYMENTS-STATEMENTS                 ,2554,18/11/2016,R,BRIT SCHOOL                 
794,Childrens & Education Services,Support for SEN Pupils,Non-Delegated Statements,K90024,Third Party Payments          ,Other Local Authorities       ,EB48,OLA PAYMENTS-STATEMENTS                 ,2801.53,17/11/2016,R,DUNRAVEN SCHOOL               
795,Childrens & Education Services,Support for SEN Pupils,Non-Delegated Statements,K90024,Third Party Payments          ,Other Local Authorities       ,EB48,OLA PAYMENTS-STATEMENTS                 ,2995,18/11/2016,R,BRIT SCHOOL                 
796,Childrens & Education Services,Support for SEN Pupils,Non-Delegated Statements,K90024,Third Party Payments          ,Other Local Authorities       ,EB48,OLA PAYMENTS-STATEMENTS                 ,2995,30/11/2016,R,BRIT SCHOOL                 
797,Childrens & Education Services,Support for SEN Pupils,Non-Delegated Statements,K90024,Third Party Payments          ,Other Local Authorities       ,EB48,OLA PAYMENTS-STATEMENTS                 ,3576,18/11/2016,R,BRIT SCHOOL                 
798,Childrens & Education Services,Support for SEN Pupils,Non-Delegated Statements,K90024,Third Party Payments          ,Other Local Authorities       ,EB48,OLA PAYMENTS-STATEMENTS                 ,3635.77,16/11/2016,R,CARSHALTON BOYS SPORTS COLLEGE
799,Childrens & Education Services,Support for SEN Pupils,Non-Delegated Statements,K90024,Third Party Payments          ,Other Local Authorities       ,EB48,OLA PAYMENTS-STATEMENTS                 ,3812,30/11/2016,R,BRIT SCHOOL                 
800,Childrens & Education Services,Support for SEN Pupils,Non-Delegated Statements,K90024,Third Party Payments          ,Other Local Authorities       ,EB48,OLA PAYMENTS-STATEMENTS                 ,3831,18/11/2016,R,BRIT SCHOOL                 
801,Childrens & Education Services,Support for SEN Pupils,Non-Delegated Statements,K90024,Third Party Payments          ,Other Local Authorities       ,EB48,OLA PAYMENTS-STATEMENTS                 ,5517.33,16/11/2016,R,CARSHALTON BOYS SPORTS COLLEGE
802,Childrens & Education Services,Support for SEN Pupils,Non-Delegated Statements,K90024,Third Party Payments          ,Other Local Authorities       ,EB48,OLA PAYMENTS-STATEMENTS                 ,5691,15/11/2016,R,HENRY CAVENDISH PRIMARY SCHOOL
803,Childrens & Education Services,Support for SEN Pupils,Non-Delegated Statements,K90024,Third Party Payments          ,Other Local Authorities       ,EB48,OLA PAYMENTS-STATEMENTS                 ,7022.51,17/11/2016,R,DUNRAVEN SCHOOL               
804,Childrens & Education Services,Support for SEN Pupils,Non-Delegated Statements,K90024,Third Party Payments          ,Other Local Authorities       ,EB48,OLA PAYMENTS-STATEMENTS                 ,7022.51,18/11/2016,R,REGINA COELI CATHOLIC PRIMARY 
805,Childrens & Education Services,Support for SEN Pupils,Non-Delegated Statements,K90024,Third Party Payments          ,Other Local Authorities       ,EB48,OLA PAYMENTS-STATEMENTS                 ,7022.51,15/11/2016,R,SELLINCOURT PRIMARY SCHOOL    
806,Childrens & Education Services,Support for SEN Pupils,Non-Delegated Statements,K90024,Third Party Payments          ,Other Local Authorities       ,EB48,OLA PAYMENTS-STATEMENTS                 ,9961,17/10/2016,R,PROSPECT EDUC (TECH)TRUST LTD 
807,Childrens & Education Services,Support for SEN Pupils,Non-Delegated Statements,K90024,Third Party Payments          ,Other Local Authorities       ,EB48,OLA PAYMENTS-STATEMENTS                 ,9961,18/11/2016,R,REGINA COELI CATHOLIC PRIMARY 
808,Childrens & Education Services,Support for SEN Pupils,Non-Delegated Statements,K90024,Third Party Payments          ,Other Local Authorities       ,EB48,OLA PAYMENTS-STATEMENTS                 ,11294.75,18/11/2016,R,BURNTWOOD SCHOOL              
809,Childrens & Education Services,Support for SEN Pupils,Non-Delegated Statements,K90024,Third Party Payments          ,Other Local Authorities       ,EB48,OLA PAYMENTS-STATEMENTS                 ,13517,18/11/2016,R,SAINT CECILIA'S C OF E SCHOOL 
810,Childrens & Education Services,Support for SEN Pupils,Non-Delegated Statements,K90024,Third Party Payments          ,Other Local Authorities       ,EB48,OLA PAYMENTS-STATEMENTS                 ,14282.45,18/11/2016,R,SAINT CECILIA'S C OF E SCHOOL 
811,Childrens & Education Services,Support for SEN Pupils,Non-Delegated Statements,K90024,Third Party Payments          ,Other Local Authorities       ,EB48,OLA PAYMENTS-STATEMENTS                 ,23478,18/11/2016,R,SAINT CECILIA'S C OF E SCHOOL 
812,Childrens & Education Services,Support for SEN Pupils,Non-Delegated Statements,K90024,Third Party Payments          ,Other Local Authorities       ,EB50,OLA-Payments - Day Schools              ,6604.15,30/09/2016,R,WANDLE VALLEY SCHOOL          
813,Childrens & Education Services,Support for SEN Pupils,Non-Delegated Statements,K90024,Third Party Payments          ,Other Local Authorities       ,EB50,OLA-Payments - Day Schools              ,6604.15,25/10/2016,R,WANDLE VALLEY SCHOOL          
814,Childrens & Education Services,Support for SEN Pupils,Non-Delegated Statements,K90024,Third Party Payments          ,Other Local Authorities       ,EB50,OLA-Payments - Day Schools              ,8500,30/09/2016,R,WANDLE VALLEY SCHOOL          
815,Childrens & Education Services,Support for SEN Pupils,Non-Delegated Statements,K90024,Third Party Payments          ,Other Local Authorities       ,EB51,OLA Payments - Special Units  ,1394.54,15/11/2016,R,RUSHY MEADOW PRIMARY SCHOOL   
816,Childrens & Education Services,Support for SEN Pupils,Non-Delegated Statements,K90024,Third Party Payments          ,Other Local Authorities       ,EB51,OLA Payments - Special Units  ,1592.24,15/11/2016,R,SOUTHFIELDS  ACADEMY          
817,Childrens & Education Services,Support for SEN Pupils,Non-Delegated Statements,K90024,Third Party Payments          ,Other Local Authorities       ,EB51,OLA Payments - Special Units  ,1643.46,15/11/2016,R,SOUTHFIELDS  ACADEMY          
818,Childrens & Education Services,Support for SEN Pupils,Non-Delegated Statements,K90024,Third Party Payments          ,Other Local Authorities       ,EB51,OLA Payments - Special Units  ,1643.46,15/11/2016,R,SOUTHFIELDS  ACADEMY          
819,Childrens & Education Services,Support for SEN Pupils,Non-Delegated Statements,K90024,Third Party Payments          ,Other Local Authorities       ,EB51,OLA Payments - Special Units  ,3087.46,30/11/2016,R,STANLEY PARK HIGH             
820,Childrens & Education Services,Support for SEN Pupils,Non-Delegated Statements,K90024,Third Party Payments          ,Other Local Authorities       ,EB51,OLA Payments - Special Units  ,3554,30/11/2016,R,CHEAM HIGH SCHOOL             
821,Childrens & Education Services,Support for SEN Pupils,Non-Delegated Statements,K90024,Third Party Payments          ,Other Local Authorities       ,EB51,OLA Payments - Special Units  ,12824,02/11/2016,R,ACHIEVING FOR CHILDREN        
822,Childrens & Education Services,Support for SEN Pupils,Non-Delegated Statements,K90024,Third Party Payments          ,Other Local Authorities       ,EB55,Placements                    ,2856.6,23/11/2016,R,CASTLE KINDERGARTEN           
823,Childrens & Education Services,Support for SEN Pupils,Non-Delegated Statements,K90024,Third Party Payments          ,Other Establishments          ,EG01,Alternative SEN Provision               ,655,31/10/2016,R,HA TUTORS LTD                 
824,Childrens & Education Services,Support for SEN Pupils,Non-Delegated Statements,K90024,Third Party Payments          ,Other Establishments          ,EG01,Alternative SEN Provision               ,682.5,03/11/2016,R,HA TUTORS LTD                 
825,Childrens & Education Services,Support for SEN Pupils,Non-Delegated Statements,K90024,Third Party Payments          ,Other Establishments          ,EG01,Alternative SEN Provision               ,1415,31/10/2016,R,HA TUTORS LTD                 
826,Childrens & Education Services,Support for SEN Pupils,Non-Delegated Statements,K90024,Third Party Payments          ,Other Establishments          ,EG01,Alternative SEN Provision               ,1570,31/10/2016,R,HA TUTORS LTD                 
827,Childrens & Education Services,Support for SEN Pupils,Non-Delegated Statements,K90024,Third Party Payments          ,Other Establishments          ,EG01,Alternative SEN Provision               ,2225.5,31/10/2016,R,HA TUTORS LTD                 
828,Childrens & Education Services,Support for SEN Pupils,Non-Delegated Statements,K90024,Third Party Payments          ,Other Establishments          ,EG01,Alternative SEN Provision               ,2275,01/11/2016,R,REDACTED
829,Childrens & Education Services,Support for SEN Pupils,Non-Delegated Statements,K90024,Third Party Payments          ,Other Establishments          ,EG01,Alternative SEN Provision               ,2677.5,31/10/2016,R,HA TUTORS LTD                 
830,Childrens & Education Services,Support for SEN Pupils,Non-Delegated Statements,K90024,Third Party Payments          ,Other Establishments          ,EG01,Alternative SEN Provision               ,3640,31/10/2016,R,HA TUTORS LTD                 
831,Childrens & Education Services,Support for SEN Pupils,Non-Delegated Statements,K90024,Third Party Payments          ,Other Establishments          ,EG50,Ind Day Schs Payments                   ,9750,08/11/2016,R,THE CHELSEA GROUP OF CHILDREN 
832,Childrens & Education Services,Support for SEN Pupils,Non-Delegated Statements,K90024,Third Party Payments          ,Other Establishments          ,EG50,Ind Day Schs Payments                   ,12765.75,19/10/2016,R,THE CHILDRENS TRUST           
833,Childrens & Education Services,Support for SEN Pupils,Non-Delegated Statements,K90024,Third Party Payments          ,Other Establishments          ,EG50,Ind Day Schs Payments                   ,13000,11/11/2016,R,OCTAVIA HOUSE SCHOOLS LTD     
834,Childrens & Education Services,Support for SEN Pupils,Non-Delegated Statements,K90024,Third Party Payments          ,Other Establishments          ,EG50,Ind Day Schs Payments                   ,13191.02,15/09/2016,R,UNSTED PARK                   
835,Childrens & Education Services,Support for SEN Pupils,Non-Delegated Statements,K90024,Third Party Payments          ,Other Establishments          ,EG50,Ind Day Schs Payments                   ,15962.5,19/10/2016,R,THE CHILDRENS TRUST           
836,Childrens & Education Services,Support for SEN Pupils,Non-Delegated Statements,K90024,Third Party Payments          ,Other Establishments          ,EG50,Ind Day Schs Payments                   ,17333.33,15/11/2016,R,ROEHAMPTON LODGE PRIORY       
837,Childrens & Education Services,Support for SEN Pupils,Non-Delegated Statements,K90024,Third Party Payments          ,Other Establishments          ,EG50,Ind Day Schs Payments                   ,18575,08/11/2016,R,THE CHELSEA GROUP OF CHILDREN 
838,Childrens & Education Services,Support for SEN Pupils,Non-Delegated Statements,K90024,Third Party Payments          ,Other Establishments          ,EG50,Ind Day Schs Payments                   ,18615,20/10/2016,R,PHILPOTS MANOR SCHOOL         
839,Childrens & Education Services,Support for SEN Pupils,Non-Delegated Statements,K90024,Third Party Payments          ,Other Establishments          ,EG50,Ind Day Schs Payments                   ,21600,15/11/2016,R,UNSTED PARK                   
840,Childrens & Education Services,Support for SEN Pupils,Non-Delegated Statements,K90024,Third Party Payments          ,Other Establishments          ,EG50,Ind Day Schs Payments                   ,21666.67,15/11/2016,R,ROEHAMPTON LODGE PRIORY       
841,Childrens & Education Services,Support for SEN Pupils,Non-Delegated Statements,K90024,Third Party Payments          ,Other Establishments          ,EG50,Ind Day Schs Payments                   ,22333.33,15/11/2016,R,ROEHAMPTON LODGE PRIORY       
842,Childrens & Education Services,Support for SEN Pupils,Non-Delegated Statements,K90024,Third Party Payments          ,Other Establishments          ,EG50,Ind Day Schs Payments                   ,22377.6,15/11/2016,R,UNSTED PARK                   
843,Childrens & Education Services,Support for SEN Pupils,Non-Delegated Statements,K90024,Third Party Payments          ,Other Establishments          ,EG50,Ind Day Schs Payments                   ,22377.6,15/11/2016,R,UNSTED PARK                   
844,Childrens & Education Services,Support for SEN Pupils,Non-Delegated Statements,K90024,Third Party Payments          ,Other Establishments          ,EG50,Ind Day Schs Payments                   ,22500,15/11/2016,R,ROEHAMPTON LODGE PRIORY       
845,Childrens & Education Services,Support for SEN Pupils,Non-Delegated Statements,K90024,Third Party Payments          ,Other Establishments          ,EG50,Ind Day Schs Payments                   ,23333.33,15/11/2016,R,ROEHAMPTON LODGE PRIORY       
846,Childrens & Education Services,Support for SEN Pupils,Non-Delegated Statements,K90024,Third Party Payments          ,Other Establishments          ,EG50,Ind Day Schs Payments                   ,29377.6,15/11/2016,R,UNSTED PARK                   
847,Childrens & Education Services,Support for SEN Pupils,Non-Delegated Statements,K90024,Third Party Payments          ,Other Establishments          ,EG50,Ind Day Schs Payments                   ,32379.33,09/11/2016,R,KISIMUL SCHOOL                
848,Childrens & Education Services,Support for SEN Pupils,Non-Delegated Statements,K90024,Third Party Payments          ,Other Establishments          ,EG50,Ind Day Schs Payments                   ,32703,09/11/2016,R,KISIMUL SCHOOL                
849,Childrens & Education Services,Support for SEN Pupils,Non-Delegated Statements,K90024,Third Party Payments          ,Other Establishments          ,EG50,Ind Day Schs Payments                   ,33357.33,09/11/2016,R,KISIMUL SCHOOL                
850,Childrens & Education Services,Behavioural Support,Language & Learning Service,K90025,Employees                     ,Direct Employee Expenses      ,AA17,Agency Staff & Casual Paymts            ,585,01/11/2016,R,REDACTED
851,Childrens & Education Services,Admissions & Planning Sch Prov,Retained Schools Budgets,K90030,Supplies & Services           ,Services                      ,DF09,Miscellaneous Fees                      ,552,24/11/2016,R,SCHOOL SPEAKERS LIMITED       
852,Childrens & Education Services,Facilitating School Improvemnt,SSQ CORE OFFER (DSG),K90040,Supplies & Services           ,Expenses                      ,DH02,Conferences                             ,750,06/05/2016,R,PHENOMENAL TRAINING LTD       
853,Childrens & Education Services,Support for SEN Pupils,ART SEN Residential (DSG),K90050,Third Party Payments          ,Other Establishments          ,EG51,Ind Resid Schs Payments                 ,18811,15/09/2016,R,MUNTHAM HOUSE SCHOOL          
854,Childrens & Education Services,Support for SEN Pupils,ART SEN Residential (DSG),K90050,Third Party Payments          ,Other Establishments          ,EG51,Ind Resid Schs Payments                 ,38342,01/09/2016,R,ST JOSEPHS SCHOOL             
855,Childrens & Education Services,Support for SEN Pupils,ART SEN Residential (DSG),K90050,Third Party Payments          ,Other Establishments          ,EG51,Ind Resid Schs Payments                 ,39510,31/08/2016,R,YOUNG EPILEPSY                
856,Childrens & Education Services,Support for SEN Pupils,ART SEN Residential (DSG),K90050,Third Party Payments          ,Other Establishments          ,EG51,Ind Resid Schs Payments                 ,48100,31/10/2016,R,COTSWOLD CHINE SCHOOL         
857,Childrens & Education Services,Support for SEN Pupils,ART SEN Residential (DSG),K90050,Third Party Payments          ,Other Establishments          ,EG51,Ind Resid Schs Payments                 ,51783.33,30/08/2016,R,YOUNG EPILEPSY                
858,Childrens & Education Services,Support for SEN Pupils,ART SEN Residential (DSG),K90050,Third Party Payments          ,Other Establishments          ,EG51,Ind Resid Schs Payments                 ,61287.5,22/08/2016,R,KISIMUL SCHOOL                
859,Childrens & Education Services,Support for SEN Pupils,ART SEN Residential (DSG),K90050,Third Party Payments          ,Other Establishments          ,EG51,Ind Resid Schs Payments                 ,62405,23/09/2016,R,THE MULBERRY BUSH ORGANISATION
860,Childrens & Education Services,Support for SEN Pupils,Non-Maintained Post 16 SEN              ,K90052,Third Party Payments          ,Other Establishments          ,EG50,Ind Day Schs Payments                   ,13666,05/11/2016,R,CENTRE ACADEMY LONDON         
